Workbook

Sheet Input Summary
A1: Title: | J1: By: | L1: Date:
J2: Checked: | L2: Date:
A6: This tab is intended as a worksheet summary page to help in the gathering of information required to run the integral abutment worksheet main tab. The input values are listed in the order in which they are required in the main tab, along with the allowable range and a brief description of the value, if necessary. A more thorough explanation of the value can often be found in the main tab. This sheet can be printed and the values filled in by hand. Additionally, for more advanced users, this tab can be used to input the values to the main tab. Pressing the upper button to the right will clear the values from this tab. Pressing the lower button to the right will insert the values into the corresponding cells in the main tab. Note that if the cell is blank on this tab, inserting the values will clear the corresponding cell in the main tab.
A15: Bridge Data
A16: Girder material (steel or concrete)
A17: Girder type (I-girder or box girder)
A18: Total bridge length - centerline end bearing to centerline end bearing | L18: ft
A19: Length of span adjacent to abutment - centerline bearing to centerline bearing | L19: ft
A20: Skew (45o to 90o) | L20: o
A21: Curb-to-curb (roadway) width | L21: ft
A22: Sum of clear sidewalk widths | L22: ft
A23: Out-to-out superstructure width | L23: ft
A24: Number of girders
A25: Girder spacing normal to longitudinal axis of bridge | L25: ft
A26: Girder width | L26: ft
A27: Girder depth | L27: ft
A28: Bearing pad thickness - usually 3/4 inch | L28: in
A29: Average deck + haunch thickness | L29: in
A30: Barrier height - typically 3.50 ft | L30: ft
A31: Additional height due to cross slope etc. | L31: ft
A32: Approach slab length | L32: ft
A34: Integral Abutment Data
A35: Pile cap height | E35: Left end | L35: ft
E36: Centerline | L36: ft
E37: Right end | L37: ft
A38: Type of wingwall (R - Rectangular, T - Tapered, D - Detached)
A39: Wingwall length from back face of abutment - including 12" chamfer | L39: ft
A41: Load Data
A42: h i (eta) factor - load modifier to acount for ductility, redundancy, and operational importance
A43: Non-composite dead load, DC1 | F43: Interior girder | L43: k
F44: Exterior girder | L44: k
A45: Composite dead load, DC2 | F45: Interior girder = Exterior girder | L45: k
A46: Composite dead load, DW | F46: Interior girder = Exterior girder | L46: k
A47: Live load reaction distribution factor
A48: Live load rotation distribution factor
A49: Unfactored live load reactions, (with distribution factor & impact) | H49: PHL-93 - max | L49: k
H50: min | L50: k
H51: P-82 - max | L51: k
H52: min | L52: k
A53: Future wearing surface currently present on bridge (Y or N)?
A54: Unfactored live load rotations, (with distribution factor & impact) | H54: PHL-93 - max | L54: radians
H55: min | L55: radians
H56: P-82 - max | L56: radians
H57: min | L57: radians
A58: Composite dead load induced rotations (i.e. future wearing surface and DC2) | L58: radians
A59: Wind pressure | L59: ksf
A60: Centrifugal force | L60: k
A62: Pile Data
A63: Type of pile (H - steel H-pile, P - concrete-filled pipe pile)
A64: Pile designation, HP##x## (H-piles), or pipe (pipe piles)
A65: Steel yield stress, Fy | L65: ksi
A66: Pile section depth, d (H-piles only) | L66: in
A67: Concrete compressive strength, f'c (pipe piles only) | L67: ksi
A68: Flange width, bf (H-piles), or outside diameter, Do (pipe piles) | L68: in
A69: Flange thickness, tf (H-piles), or steel pipe wall thickness, tp (pipe piles) | L69: in
A70: Pile area, Ap (H-piles), or pile area with concrete transformed to steel, Atr (pipe piles) | L70: in2
A71: Weak axis moment of inertia (H-piles), transformed moment of inertia (pipe piles), Iy-y | L71: in4
A72: Elastic section modulus (H-piles), transformed section modulus (pipe piles), Sy-y | L72: in3
A73: Radius of gyration, ry-y | L73: in
A74: Plastic section modulus, Zy-y | L74: in3
A75: Number of piles
A76: Spacing of piles along abutment | L76: ft
A77: Total pile length, Ltot | L77: ft
A78: Assumed depth to pile fixity | L78: ft
A80: Additional Load Data
A81: Barrier (+ additional miscellaneous dead) load | L81: k/ft
A82: Percentage of total bridge expansion occuring at abutment being analyzed | L82: %
A84: Lateral Pile Analysis Results
A85: Depth to fixity, Lp, depth at which pile deflection equals zero | L85: in
A86: Depth to uppermost point of inflection, Li1 | L86: in
A87: Depth to second uppermost point of inflection, Li2 | L87: in
A88: Depth at which deflection equals 2% of pile width (or diameter), Ln | L88: in
A89: Maximum bending moment, Mu, below the uppermost point of inflection | L89: k-ft
A91: Geotechnical Capacity of the Pile
A92: Tip (bearing) resistance factor, fqp
A93: Shaft (skin friction) resistance factor, fqs
A94: Unit tip resistance, qp | L94: tsf
A95: Unit shaft resistance, qs | L95: tsf
A97: Structural Capacity of the Pile
A98: Axial compression resistance factor for pile tip (potentially damaged), fc
A99: Axial compression resistance factor for steel portion of concrete filled steel pipe piles, fs
A100: Axial compression resistance factor for combined pile forces (less potential for damage), fc
A101: Flexural resistance factor for combined pile forces (less potential for damage), ff
A103: Pile Cap Beam Reinforcing Data
A104: Concrete compressive strength, f'c | L104: ksi
A105: Reinforcing steel yield strength, fy | L105: ksi
A106: ----------------------------------------------------------------------------------------------------------------------------------------------------------------------
A107: Optional Scour Check
A108: Is a pile analysis for scour required?
A109: Depth of maximum scour, Dsc (required for LPile run) | L109: in
A111: Post-Scour Lateral Pile Analysis Results
A112: Depth to fixity, Lsc, depth at which pile deflection equals zero at Service I Limit State | L112: in (Design Flood)
A113: Depth to fixity, Lsc, depth at which pile deflection equals zero at Strength Limit State | L113: in (Design Flood)
A114: Depth where Service I deflection equals 2% of pile width (or diameter), Lsn (friction piles only) | L114: in (Design Flood)
A115: Maximum bending moment, Msu, at the pile-abutment interface at Service I Limit State | L115: k-ft (Design Flood)
A116: Maximum bending moment, Msu, at the pile-abutment interface at Strength Limit State | L116: k-ft (Design Flood)
A117: Depth to fixity, Lsc, depth at which pile deflection equals zero at Service I Limit State | L117: in (Superflood)
A118: Maximum bending moment, Msu, at the pile-abutment interface at Service I Limit State | L118: k-ft (Superflood)

Sheet Main
A1: Title: | J1: By: | L1: Date:
J2: Checked: | L2: Date:
A4: SPREADSHEET PROGRAM DESCRIPTION
A6: This spreadsheet is intended to be used as an aid in designing and analyzing integral abutments. No users manual is provided, but explanations of input values are given throughout the spreadsheet. The spreadsheet is intended to be used in conjunction with the computer program LPile or COM624P, which analyze the lateral behavior of piles, and with PennDOT's steel or prestressed concrete girder design programs. Design Specifications for integral abutments are available in PennDOT Design Manual Part 4 (DM-4), Appendix G. References to applicable provisions in the DM-4, as well as to the AASHTO LRFD Bridge Design Specifiction, 2010, are made. Many dimensions for integral abutments are set forth in PennDOT's BD-667M Standard Drawings. The spreadsheet is written in English units only. Warning and Error messages are provided where possible. An Error message indicates an input value is incorrect and should be changed, a Warning message flags an input value that is suspect, and the user should verify the value, or in some cases, obtain the approval of the Chief Bridge Engineer. The lateral pile analysis results from COM624P may be used where the spreadsheet calls for LPile results.
A17: Different sheets (tabs), labeled along the bottom of the window, perform different tasks within the spreadsheet. The first tab in the spreadsheet summarizes the input values by providing a simple list which can be printed and filled in by hand, or used to insert the input values into the Main tab. The current tab is the Main tab where most of the analysis takes place. The load factors for each load case are listed on the Load Factor tab. The Cap Reinforcement tab calculates the area of reinforcement needed for the pile cap. The Pile Data tab lists the properties of available H-pile sections, calculates the properties of concrete filled pipe piles, and lists the current pile properties for insertion into the Main tab.
D24: - denotes input cells
A26: BRIDGE DATA
A28: Input all the geometric and material data for the proposed bridge. This information should be available from a superstructure design already performed independently, as well as a Type, Size, and Location (TS&L) Report, if available.
A31: The girder material is required to determine the coefficient of thermal expansion of the bridge and the uniform temperature change.
B33: Girder material (S - Steel, C - Concrete) | I33: =+IF(G33="C"," ",IF(G33="S"," ","Error - only choices are S or C")) -> Error - only choices are S or C | R33: =IF(LEFT(I33,5)="Error",1,0) -> 1 | S33: =IF(LEFT(I33,5)="Warni",1,0) -> 0
A35: There are three types of girders which can be used with integral abutments: Steel I-girders, concrete I-girders, or concrete spread box girders.
B38: Girder type (I - I-girder, B - Box girder)
B39: =IF(G38="I","",IF(G38="B",IF(G33="C","","Error - only concrete box girders are allowed"),"Error - choose I - I-girder or B - Box girder")) -> Error - choose I - I-girder or B - Box girder | R39: =IF(LEFT(B39,5)="Error",1,0) -> 1 | S39: =IF(LEFT(B39,5)="Warni",1,0) -> 0
A40: Per DM-4 Ap.G.1.2.1, steel bridge lengths in excess of 390 ft and concrete bridge lengths in excess of 590 ft require the written approval of the Chief Bridge Engineer for use with integral abutments. In addition, bridges in excess of these limits require consideration of secondary forces such as those caused by creep, shrinkage, thermal gradient, or differential settlements. The spreadsheet does not take into account abutment loads caused by creep, shrinkage, thermal gradient, and differential settlement. Per DM-4 Ap.G.1.2.7.5, the methods of applying secondary forces also require the approval of the Chief Bridge Engineer.
B46: Total bridge length - centerline end bearing to centerline end bearing
H47: ft
B48: =+IF(G33="C",IF(length>590,O48,""),IF(G33="S",IF(length>390,O49,""),"")) ->  | O48: Warning - concrete bridge length limited to 590 ft. Use of integral abutment on bridges with lengths in excess of this limit shall be considered on a case-by-case basis and shall require written approval of Chief Bridge Engineer at the Type, Size, and Location stage. | R48: =IF(LEFT(B48,5)="Error",1,0) -> 0 | S48: =IF(LEFT(B48,5)="Warni",1,0) -> 0
N49: Error - skew must be greater than or equal to 70 degrees for multiple spans | O49: Warning - steel bridge length limited to 390 ft. Use of integral abutment on bridges with lengths in excess of this limit shall be considered on a case-by-case basis and shall require written approval of Chief Bridge Engineer at the Type, Size, and Location stage.
N50: Error - skew must be greater than or equal to 70 degrees for single spans longer than 130 ft
A51: The length of the span adjacent to the abutment is required to calculate the pedestrian loads and wind loads on the abutment. It is also used to assess whether the bridge is simply supported or continuous, and in the simplified procedure to determine axial forces induced in the piles in continuous bridges due to thermal movements. Input the total span length for single span bridges. | N51: Error - skew must be greater than or equal to 60 degrees for single spans between 90 ft and 130 ft
N52: Error - skew must be greater than or equal to 45 degrees for single spans 90 ft or less
B55: Length of span adjacent to abutment - centerline bearing to centerline bearing
H56: ft
B57: =+IF(length<G56,"Error - first span cannot be longer than total bridge",IF(G56>0,"","Error - first span must have a positive length - input total span length for simply supported bridges")) -> Error - first span must have a positive length - input total span length for simply supported bridges | R57: =IF(LEFT(B57,5)="Error",1,0) -> 1 | S57: =IF(LEFT(B57,5)="Warni",1,0) -> 0
A58: DM-4 Ap.G.1.2.2, skews are limited to 70 degrees or more for continuous spans and single spans longer than 130 ft. Skews of up to 60 degrees are allowed for single spans in excess of 90 ft but not longer than 130 ft. For single spans 90 ft and less, skews up to 45 degrees are permitted. Only positive skew values >45 or <90 degrees can be used in the spreadsheet.
B62: Skew | H62: degrees | I62: =+PI()*G62/180 -> 0 | J62: radians
B63: =IF(skew>90,"Error - skews for integral abutment bridges should be between 45 and 90 degrees",+IF(skew<70,IF(skew<60,IF(skew<45,IF(length>G56,error1,IF(length>130,error2,IF(length>90,error3,error4))),IF(length>G56,error1,IF(length>130,error2,IF(length>90,error3,"")))),IF(length>G56,error1,IF(length>130,error2,""))),"")) -> Error - skew must be greater than or equal to 45 degrees for single spans 90 ft or less | R63: =IF(LEFT(B63,5)="Error",1,0) -> 1 | S63: =IF(LEFT(B63,5)="Warni",1,0) -> 0
A64: =A26&" - Cont'd" -> BRIDGE DATA - Cont'd
A66: The curb-to-curb roadway width, the sum of clear sidewalk widths, and the out-to-out superstructure widths are required input. Warnings will be supplied if these values plus conservative estimates of Barrier widths are not consistent. It is the users responsibility to make sure these values are correct, however. The roadway and sidewalk widths are used in calculating live load reactions. The out-to-out superstructure width is used to determine both loadings and the length of the integral abutment.
B71: Curb-to-curb (roadway) width | H71: ft
B72: =+IF(curbwidth>width,"Error - curb-to-curb width cannot be wider than the out-to-out structure width"," ") ->  | R72: =IF(LEFT(B72,5)="Error",1,0) -> 0 | S72: =IF(LEFT(B72,5)="Warni",1,0) -> 0
B73: Sum of clear widths of sidewalks on bridge | H73: ft
B74: =IF(width-curbwidth-3.375<G73,"Warning - roadway width plus sidewalk widths plus assumed Barrier widths (1' - 8 1/4"" each) are larger than the out-to-out dimensions of bridge","") -> Warning - roadway width plus sidewalk widths plus assumed Barrier widths (1' - 8 1/4" each) are larger than the out-to-out dimensions of bridge | R74: =IF(LEFT(B74,5)="Error",1,0) -> 0 | S74: =IF(LEFT(B74,5)="Warni",1,0) -> 1
B76: Out-to-out superstructure width | H76: ft
B77: =+IF(width<curbwidth+3.375,"Warning - out-to-out width is usually at least the curb-to-curb width plus the width of Barriers (1' - 8 1/4"" each)"," ") -> Warning - out-to-out width is usually at least the curb-to-curb width plus the width of Barriers (1' - 8 1/4" each) | R77: =IF(LEFT(B77,5)="Error",1,0) -> 0 | S77: =IF(LEFT(B77,5)="Warni",1,0) -> 1
A97: Per AASHTO 3.6.1.1.1, the maximum number of lanes with sidewalks is determined by dividing the width of available roadway (curb-to-curb) by the specified lane width (12 ft) and rounding down to the nearest integer. Widths between 20 ft and 24 ft are assumed to carry two lanes, however. Similarly, the maximum number of lanes without sidewalks is determined by taking the out-to-out width of the structure minus two assumed 1.6875 ft Barriers, dividing by the specified lane width, and rounding down to the nearest integer. Again, widths between 20 ft and 24 ft are assumed to carry two lanes.
B103: ="Curb-to-curb width of roadway divided by lane width "&"= "&curbwidth&"/12 = "&FIXED(curbwidth/12,2,TRUE) -> Curb-to-curb width of roadway divided by lane width = /12 = 0.00
B104: Maximum number of lanes with sidewalks = | G104: =IF(curbwidth>=24,ROUNDDOWN(curbwidth/12,0),IF(curbwidth>=20,2,IF(curbwidth>=10,1,0))) -> 0
C105: =+IF(curbwidth<24,IF(curbwidth>=20,"Width of roadway is between 20 and 24 ft so two lanes are assumed"," ")," ") -> 
B106: ="Total bridge clear width divided by lane width "&"= ("&width&" - 3.375)/12 = "&FIXED((width-3.375)/12,2,TRUE) -> Total bridge clear width divided by lane width = ( - 3.375)/12 = -0.28
B107: Maximum number of lanes without sidewalks = | G107: =IF(width-3.375>=24,ROUNDDOWN((width-3.375)/12,0),IF((width-3.375)>=20,2,IF((width-3.375)>=10,1,0))) -> 0
C108: =+IF(width-3.375<24,IF(width-3.375>=20,"Clear width of roadway is between 20 and 24 ft so two lanes are assumed"," ")," ") -> 
A109: =A64 -> BRIDGE DATA - Cont'd
A111: The number of girders and the girder spacing are needed to determine the maximum girder reaction for pile cap design. Other dimensions are used to determine various things such as end diaphragm height and lateral wind area of the span, which are utilized in calculating dead and wind loads.
B115: Number of girders in the cross-section
B117: Girder spacing normal to longitudinal axis | H117: ft
B119: Girder width | H119: ft (maximum of top or bottom flange width at the abutment)
B120: =IF(girdertype="I",IF((ngirder-1)*G117+G119>width,"Error - out-to-out of I-girders is greater than the out-to-out superstructure width, maximum spacing is approximately "&FIXED((width-G119)/(ngirder-1),0,TRUE)&" ft.",IF((width-(ngirder-1)*G117)/2>G117,"Warning - overhang is longer than girder spacing","")),IF((ngirder-1)*G117+G119>width,"Error - out-to-out of box girders is greater than the out-to-out superstructure width. For the current girder width "&G119&" ft, maximum spacing is approximately "&FIXED((width-G119)/(ngirder-1),0,TRUE)&" ft.",IF((G117-G119)<0.084,"Error - box beam spacing is too small, adjacent box beams are not permitted",IF((G117-G119)<0.6*G119,"Warning - box beam clear spacing is less than 60% of the beam width, adjacent box beams are not permitted, check beam spacing",IF((width-(ngirder-1)*G117-G119)/2>(G117-G119),"Warning - overhang is longer than girder clear spacing",""))))) -> Error - box beam spacing is too small, adjacent box beams are not permitted | R120: =IF(LEFT(B120,5)="Error",1,0) -> 1 | S120: =IF(LEFT(B120,5)="Warni",1,0) -> 0
B122: Girder depth | H122: ft, see limits per DM-4 Ap.G.1.2.8
B123: =+IF(G122>6,"Warning - girders deeper than 6.0 ft require the written approval of the Chief Bridge Engineer as per DM-4 Ap. G1.2.8","") ->  | R123: =IF(LEFT(B123,5)="Error",1,0) -> 0 | S123: =IF(LEFT(B123,5)="Warni",1,0) -> 0
B125: Bearing pad thickness | H125: in, see DM-4 Ap.G.1.7
B126: =IF(G125=0.75,"","Warning - bearing pad thickness is specified as 0.75 in (DM-4 Ap.G.1.7), altering it requires written permission from the Chief Bridge Engineer.") -> Warning - bearing pad thickness is specified as 0.75 in (DM-4 Ap.G.1.7), altering it requires written permission from the Chief Bridge Engineer. | R126: =IF(LEFT(B126,5)="Error",1,0) -> 0 | S126: =IF(LEFT(B126,5)="Warni",1,0) -> 1
B128: Deck + haunch thickness | H128: in
B129: =IF(G128>18,"Warning - deck + haunch thickness exceeds 18 in, check dimension","") -> 
B130: Barrier height | H130: ft
B132: Additional height due to cross slope etc. | H132: ft
B134: Total superstructure depth for wind analysis = top of Barrier to bottom of girder
F135: =G130&" ft + "&G128&" in / (12 in/ft) + "&G122&" ft + "&G132&" =" -> ft + in / (12 in/ft) + ft + = | G135: =TEXT(G130+G128/12+G122+G132,"0.000") -> 0.000 | H135: ft
A137: The moment of inertia of the girders about the longitudinal axis of the bridge is calculated as illustrated in the figure below (five I-girders shown for illustrative purposes, the actual number of girders is used in the calculations). This value is used later to determine girder reactions due to transverse and overturning loadings.
A141: Given a group of n girders, the second moment of inertia is calculated by summing the squares of the distances of the girders from the center of gravity of the girder group, or I = Sdi2. For a single line of n equally spaced girders, the equation I = n (n2 - 1) L2 / 12 gives the same result, where n is the number of girders, and L is the girder spacing.
B156: ="Moment of inertia of "&ngirder&" "&IF(girdertype="I","I-girders","box girders")&" about the longitudinal axis of the bridge:" -> Moment of inertia of box girders about the longitudinal axis of the bridge:
F157: =+ngirder&"("&ngirder&"^2 - 1)(("&G117&" ft)^2)/12 =" -> (^2 - 1)(( ft)^2)/12 = | G157: =+G115*(G115-1)*(G115+1)*G117^2/12 -> 0 | H157: ft2
A159: INTEGRAL ABUTMENT DATA
A161: Given the geometry of the superstructure, the location of the proposed abutment, and the topography of the site, the geomety of the integral abutment can be calculated, and the wingwall lengths can be determined. Many of the dimensions are set in the PennDOT standards (see BD-667M Standard Drawing).
A165: The abutment length is measured along the line of bearing. Note that specifying detached wingwalls later in the spreadsheet results in a slightly longer abutment (see BD-667M for detached wingwall details).
B168: Abutment length | F168: ="("&+width&+IF(H240="D","+2.333","")&") / sin "&skew&" =" -> () / sin = | G168: =+G76/SIN(I62)+IF(H240="D",2*14/12/SIN(I62),0) ->  | H168: ft
A170: Per DM-4 Ap.G.1.4.1, the abutment width is set at 4 ft so that for any potential skew angle, the pile cap reinforcement can fit around the piles.
B173: Abutment width | G173: 4 | H173: ft
A175: Per DM-4 Ap.G.1.4.1, the minimum pile cap height is 3.25 ft. The flexural design of the pile cap is based on the supplied minimum dimension. There are a number of factors which can affect the maximum pile cap height. These include, but are not limited to, bridge width and cross-slopes, superelevation, skew, etc.
A179: Although DM-4 Ap.G.1.4.1 permits the opposite ends of integral abutments to vary up to 1.5 ft in height due to superelevation (1 ft for skews less than 80o), sloping the bottom of the pile cap such that the ends are equal is recommended by PennDOT to simplify reinforcement details.
B183: Left end pile cap height, dpc1 | H183: ft
B185: Pile cap height at the crown of the roadway, or at the bridge midwidth for a superelevated roadway, dpc,cl
H186: ft
B188: Right end pile cap height, dpc2 | H188: ft
B189: =IF(MIN(G183:G188)<3.25,"Error - minimum pile cap height is 3.25 ft","") -> Error - minimum pile cap height is 3.25 ft | R189: =IF(LEFT(B189,5)="Error",1,0) -> 1 | S189: =IF(LEFT(B189,5)="Warni",1,0) -> 0
B190: Difference between the height of the cap at the ends, |dpc1 - dpc2| = | I190: ="| "&FIXED(G183,3,TRUE)&" - "&FIXED(G188,3,TRUE)&" | =" -> | 0.000 - 0.000 | = | J190: =+ABS(G183-G188) -> 0 | K190: ft
B191: =+IF(skew<80,IF(MAX(G183,G186,G188)-MIN(G183,G186,G188)>1,"Error - difference between ends of pile cap are limited to 1 ft for skews less than 80 degrees - bottom of cap must be sloped"," "),IF(MAX(G183,G186,G188)-MIN(G183,G186,G188)>1.5,"Error - difference between ends of pile cap are limited to 1.5 ft for skews of 80 degrees or greater - bottom of cap must be sloped"," ")) ->  | R191: =IF(LEFT(B191,5)="Error",1,0) -> 0 | S191: =IF(LEFT(B191,5)="Warni",1,0) -> 0
A193: The previous three values are used to calculate an average pile cap height and assume a constantly sloping top of cap with a crown at the center, as illustrated in the figure below. Only the minimum value is used to design the pile cap, the average value is used for selfweight calculations. Note that if the cap does not have either a constant cross-slope or crown at the midwidth, the average pile cap height will not be precisely correct. If a more exact selfweight is required, the maximum height at midwidth can be adjusted until the desired average pile cap height is attained.
B204: Average pile cap height | G204: =+"("&G183&"+"&G188&")/4 + "&G186&"/2 =" -> (+)/4 + /2 = | H204: =+(G183+G188)/4+G186/2 -> 0 | I204: ft
A206: The end diaphragm height is equal to the deck and haunch thickness + girder depth + bearing pad depth.
B207: End diaphragm height | G207: =+G128&"/12 + "&G122&" + "&G125&"/12 =" -> /12 + + /12 = | H207: =+G122+G128/12+G125/12 -> 0 | I207: ft
A209: The total average abutment height is equal to the end diaphragm height plus the average pile cap height.
B210: Total average abutment height | G210: =+FIXED(H207,3,TRUE)&" + "&FIXED(H204,3,TRUE)&" =" -> 0.000 + 0.000 = | H210: =+H204+H207 -> 0 | I210: ft
A212: WINGWALL DATA
A214: Per DM-4 Ap.G.1.4.4, one of three wingwall configurations can be used: attached rectangular wingwall, attached tapered wingwall and detached wingwall. The selection of the wingwall type depends on the girder depth, the bridge skew angle and wingwall length. The wingwall length needs to accomodate the MASH-compliant barrier end transition length which varies by barrier type. A 1 ft. chamfer is provided in the interior corner of the wingwall/abutment connection (see figure). To use the standard details on BD-667M for an attached wingwall, the wingwall length must be within the limits set forth in Tables 1 - 3 on BD-667M, Sheet 5.
B240: Type of wingwall (R - Rectangular, T - Tapered, D - Detached)
B241: Average Wingwall length (including 1 ft chamfer)* | I241: ft
B242: * to use the standard details on BD-667M for an attached wingwall, the wingwall length must be within the limits set forth in Tables 1 - 3 on BD-667M, Sheet 5. | R242: =IF(LEFT(B242,5)="Error",1,0) -> 0 | S242: =IF(LEFT(B242,5)="Warni",1,0) -> 0
A244: The wingwall dimensions are required for dead load calculations.
A246: The average wingwall height at the abutment back face is conservatively assumed to be equal to the average height of the abutment.
B249: Wingwall height at back face of abutment | G249: =+H210 -> 0 | H249: ft
A251: Per DM-4 Ap.G.1.4.4, the height at the end is assumed to be either equal to the height at the abutment for rectangular (R) or detached (D) wingwalls, or 2 ft for tapered (T) wingwalls
B254: Wingwall height at end | G254: =+IF(H240="T",2,G249) -> 0 | H254: ft
A256: The attached wingwall thickness is assumed to be the same width as the typical concrete Barrier. An effective average thickness is assumed for the abutment extension for detached wingwalls. To obtain the effective width, the 10 in x 12 in overlap section (see BD-667M Standard Drawing) is smeared over the length of the stub.
B260: Wingwall width | G260: =IF(H240="D",1.6875+1.1667+10*12/144/H241,1.6875) -> 1.6875 | H260: ft
A262: LOAD DATA
A264: Per AASHTO 1.3.2.1, the LRFD design philosophy employs the equation ShigiQi £ jRn = Rr. In this equation, gi is a load factor, Qi is a load effect, j is a resistance factor, Rn is a nominal resistance, and Rr is a factored resistance. This leaves the h i (eta) factor, which is a load modifier used to account for ductility, redundancy, and operational importance. h i,max is used when maximizing loads. h i,min is used when minimizing loads. DM-4 1.3.2.1 limits h i to not be less than 1.0 nor greater than 1.0.
B270: h i factor
B271: =IF(G270>1,"Warning - eta factor is larger than the 1.0 value that PennDOT allows, check value",IF(G270<1,"Warning - eta factor is smaller than the 1.0 value that PennDOT allows, check value","")) -> Warning - eta factor is smaller than the 1.0 value that PennDOT allows, check value | R271: =IF(LEFT(B271,5)="Error",1,0) -> 0 | S271: =IF(LEFT(B271,5)="Warni",1,0) -> 1
B272: h i,max = h i ³ 1.00 | G272: =IF(G270<0.95,0.95,G270) -> 0.95
B273: h i,min = 1/h i £ 1.00 | G273: =IF(1/G270>1,1,1/G270) -> 
A275: ="The loads applied to integral abutments are described in DM-4 Ap.G1.2.7. The unfactored girder design loads are available from the superstructure design performed using PennDOT's "&IF(G33="S","steel",IF(G33="C","prestressed concrete",""))&O275 -> The loads applied to integral abutments are described in DM-4 Ap.G1.2.7. The unfactored girder design loads are available from the superstructure design performed using PennDOT's girder design program. Both the interior and exterior noncomposite girder design dead loads are required input, although if only the controlling value is known, it can be conservatively used for both. The remaining composite dead loads should be the same whether they come from an interior or exterior girder design. The maximum and minimum unfactored live loads, with impact and distribution factors included, are also required input. The reaction and rotation distribution factors are required as well, so that they can be divided out to get the reaction and rotation per traffic lane, respectively. These values are available directly from the PennDOT beam design programs. Either the exterior or interior girder design can be used for the live load values, as long as all the values (reactions, rotations, and distribution factors) come from the same girder design. Additional loads are calculated later. | O275: girder design program. Both the interior and exterior noncomposite girder design dead loads are required input, although if only the controlling value is known, it can be conservatively used for both. The remaining composite dead loads should be the same whether they come from an interior or exterior girder design. The maximum and minimum unfactored live loads, with impact and distribution factors included, are also required input. The reaction and rotation distribution factors are required as well, so that they can be divided out to get the reaction and rotation per traffic lane, respectively. These values are available directly from the PennDOT beam design programs. Either the exterior or interior girder design can be used for the live load values, as long as all the values (reactions, rotations, and distribution factors) come from the same girder design. Additional loads are calculated later.
A285: Dead Load Reactions - Unfactored:
B286: Non-composite DC1 loads - include girder, deck, haunch, interior diaphragms
C287: Interior girder, DC1 | H287: k
C288: Exterior girder, DC1 | H288: k
B289: Composite DC2 loads - include Barriers
C290: Interior girder, DC2 | H290: k
C291: Exterior girder, DC2 | G291: =+G290 -> 0 | H291: k
B292: Composite DW loads - include future wearing surface
C293: Interior girder, DW | H293: k
C294: Exterior girder, DW | G294: =+G293 -> 0 | H294: k
A296: Live load reaction distribution factor
A297: Live load rotation distribution factor
A299: Live Load Reactions - Unfactored from girder design program (distribution and impact factor included):
B300: PHL-93 | D300: max | H300: k
D301: min | H301: k
B302: P-82 | D302: max | H302: k
D303: min | H303: k
B304: =IF(LLphl93max*LLphl93min>0,"Warning - max loads should be positive, min loads should be negative or zero",IF(LLp82max*LLp82min>0,"Warning - max loads should be positive, min loads should be negative or zero",IF(curbwidth=0,"Warning - curb-to-curb width = 0, make sure vehicular loads are appropriate for a pedestrian bridge",""))) -> Warning - curb-to-curb width = 0, make sure vehicular loads are appropriate for a pedestrian bridge | R304: =IF(LEFT(B304,5)="Error",1,0) -> 0 | S304: =IF(LEFT(B304,5)="Warni",1,0) -> 1
A305: Live Load Reactions - Unfactored - distribution factor removed - reaction due to live load on one traffic lane:
B306: PHL-93 | D306: max | F306: ="("&G300&")/("&$G$296&") = " -> ()/() = | G306: =+G300/$G$296 ->  | H306: k
D307: min | F307: ="("&G301&")/("&$G$296&") = " -> ()/() = | G307: =+G301/$G$296 ->  | H307: k
B308: P-82 | D308: max | F308: ="("&G302&")/("&$G$296&") = " -> ()/() = | G308: =+G302/$G$296 ->  | H308: k
D309: min | F309: ="("&G303&")/("&$G$296&") = " -> ()/() = | G309: =+G303/$G$296 ->  | H309: k
A311: Per DM-4 Ap.G.1.2.7.2, the total pedestrian load reaction at the abutment is calculated assuming the approach slab and the first span are simply supported. The first span portion is calculated here, the approach slab portion is added in with the approach slab loads. The pedestrian load per unit area is as specified in DM-4 3.6.1.6 and the total width of sidewalk input earlier is used. This reaction is then distributed equally to all girders and piles.
B316: Pedestrian | D316: max | F316: ="("&FIXED(IF(curbwidth=0,0.085,IF(G300=0,IF(G301=0,IF(G302=0,IF(G303=0,0.085,0.075),0.075),0.075),0.075)),3,TRUE)&")("&FIXED(G73,0,TRUE)&")("&FIXED(G56,0,TRUE)&")/2 =" -> (0.085)(0)(0)/2 = | G316: =IF(curbwidth=0,0.085,IF(G300=0,IF(G301=0,IF(G302=0,IF(G303=0,0.085,0.075),0.075),0.075),0.075))*G73*(G56)/2 -> 0 | H316: k
D317: min | G317: 0 | H317: k
A318: =A262&" - Cont'd" -> LOAD DATA - Cont'd
A320: Choose the load factors to be used for the DW loads. For new construction or analysis of existing construction, where no future wearing surface is present, the DW load factors are taken as 1.50 max and 0.00 min. For bridges where a future wearing surface is present, the DW load factors are taken as 1.50 max and 0.65 min. Typically, the future wearing surface will not be currently present - N.
B324: Future wearing surface currently present (Y or N)?
B325: DW load factors | E325: Maximum = | F325: 1.5 | G325: Minimum = | H325: =IF(H324="Y",0.65,IF(H324="N",0,"Error - must be Y or N above")) -> Error - must be Y or N above | R325: =IF(LEFT(H325,5)="Error",1,0) -> 1 | S325: =IF(LEFT(H325,5)="Warni",1,0) -> 0
A327: The extreme girder reactions, interior or exterior, are (conservatively) required for the design of the abutment pile cap. The total reaction with all lanes loaded, or the average pile reaction, is required for the pile design, which also requires both interior and exterior girder reactions. Note: The hi factor is included here.
A331: Factored Dead + Live Reaction for Interior Girder:
B332: Strength I
C333: max | D333: =FIXED(etamax,2,TRUE)&"["&'Load Factors'!E6&"("&Main!G287&"+"&Main!G290&") + "&FIXED('Load Factors'!E7,2,TRUE)&"("&Main!G293&") + "&'Load Factors'!E12&"("&FIXED(Main!G306,2,TRUE)&")("&nlane2&")/"&ngirder&"] =" ->  | K333: =etamax*('Load Factors'!E6*(Main!G287+Main!G290)+'Load Factors'!E7*Main!G293+'Load Factors'!E12*Main!G306*nlane2/ngirder) ->  | L333: k
C334: min | D334: =FIXED(etamin,2,TRUE)&"["&FIXED('Load Factors'!F6,2,TRUE)&"("&Main!G287&"+"&Main!G290&") + "&FIXED('Load Factors'!F7,2,TRUE)&"("&Main!G293&")] + "&IF(Main!G307<0,FIXED(etamax,2,TRUE),FIXED(etamin,2,TRUE))&"["&FIXED('Load Factors'!F12,2,TRUE)&"("&FIXED(Main!G307,2,TRUE)&")("&nlane2&")/"&ngirder&"] =" ->  | K334: =etamin*('Load Factors'!F6*(Main!G287+Main!G290)+'Load Factors'!F7*Main!G293)+IF(Main!G307<0,etamax,etamin)*('Load Factors'!F12*Main!G307*nlane2/ngirder) ->  | L334: k
B336: Strength IP
C337: max | D337: =FIXED(etamax,2,TRUE)&"["&'Load Factors'!G6&"("&Main!G287&"+"&Main!G290&") + "&FIXED('Load Factors'!G7,2,TRUE)&"("&Main!G293&") + "&'Load Factors'!G13&"("&Main!G316&")/"&ngirder&" + "&'Load Factors'!G12&"("&FIXED(Main!G306,2,TRUE)&")("&nlane&")/"&ngirder&"] =" ->  | K337: =etamax*('Load Factors'!G6*(Main!G287+Main!G290)+'Load Factors'!G7*Main!G293+'Load Factors'!G12*Main!G306*nlane/ngirder+'Load Factors'!G13*Main!G316/ngirder) ->  | L337: k
C338: min | D338: =FIXED(etamin,2,TRUE)&"["&FIXED('Load Factors'!H6,2,TRUE)&"("&Main!G287&"+"&Main!G290&") + "&FIXED('Load Factors'!H7,2,TRUE)&"("&Main!G293&") + "&FIXED('Load Factors'!H13,2,TRUE)&"("&FIXED(Main!G317,2,TRUE)&")/"&ngirder&"] + "&IF(Main!G307<0,FIXED(etamax,2,TRUE),FIXED(etamin,2,TRUE))&"["&'Load Factors'!H12&"("&FIXED(Main!G307,2,TRUE)&")("&nlane&")/"&ngirder&"] =" ->  | K338: =etamin*('Load Factors'!H6*(Main!G287+Main!G290)+'Load Factors'!H7*Main!G293+'Load Factors'!H13*Main!G317/ngirder)+IF(Main!G307<0,etamax,etamin)*('Load Factors'!H12*Main!G307*nlane/ngirder) ->  | L338: k
B340: Strength II
C341: max | D341: =FIXED(etamax,2,TRUE)&"["&'Load Factors'!I6&"("&Main!G287&"+"&Main!G290&") + "&FIXED('Load Factors'!I7,2,TRUE)&"("&Main!G293&") + "&'Load Factors'!I12&"["&FIXED(Main!G308,2,TRUE)&"+"&FIXED(Main!G306,2,TRUE)&"("&nlane2&"-1)]/"&ngirder&"] =" ->  | K341: =etamax*('Load Factors'!I6*(Main!G287+Main!G290)+'Load Factors'!I7*Main!G293+'Load Factors'!I12*(Main!G308+Main!G306*(nlane2-1))/ngirder) ->  | L341: k
C342: min | D342: =FIXED(etamin,2,TRUE)&"["&FIXED('Load Factors'!J6,2,TRUE)&"("&Main!G287&"+"&Main!G290&") + "&FIXED('Load Factors'!J7,2,TRUE)&"("&Main!G293&")] + "&'Load Factors'!J12&"[("&IF(Main!G309<0,FIXED(etamax,2,TRUE),FIXED(etamin,2,TRUE))&")("&FIXED(Main!G309,2,TRUE)&")+("&IF(Main!G307<0,FIXED(etamax,2,TRUE),FIXED(etamin,2,TRUE))&")("&FIXED(Main!G307,2,TRUE)&")("&nlane2&"-1)]/"&ngirder&" =" ->  | K342: =etamin*('Load Factors'!J6*(Main!G287+Main!G290)+'Load Factors'!J7*Main!G293)+'Load Factors'!J12*(IF(Main!G309<0,etamax,etamin)*Main!G309+IF(Main!G307<0,etamax,etamin)*Main!G307*(nlane2-1))/ngirder ->  | L342: k
B344: Strength III
C345: max | D345: =FIXED(etamax,2,TRUE)&"["&'Load Factors'!K6&"("&Main!G287&"+"&Main!G290&") + "&FIXED('Load Factors'!K7,2,TRUE)&"("&Main!G293&")] =" -> 0.95[1.25(+) + 1.50()] = | K345: =etamax*('Load Factors'!K6*(Main!G287+Main!G290)+'Load Factors'!K7*Main!G293) -> 0 | L345: k
C346: min | D346: =FIXED(etamin,2,TRUE)&"["&FIXED('Load Factors'!L6,2,TRUE)&"("&Main!G287&"+"&Main!G290&") + "&FIXED('Load Factors'!L7,2,TRUE)&"("&Main!G293&")] =" ->  | K346: =etamin*('Load Factors'!L6*(Main!G287+Main!G290)+'Load Factors'!L7*Main!G293) ->  | L346: k
B348: Strength V
C349: max | D349: =FIXED(etamax,2,TRUE)&"["&'Load Factors'!M6&"("&Main!G287&"+"&Main!G290&") + "&FIXED('Load Factors'!M7,2,TRUE)&"("&Main!G293&") + "&'Load Factors'!M12&"("&FIXED(Main!G306,2,TRUE)&")("&nlane2&")/"&ngirder&"] =" ->  | K349: =etamax*('Load Factors'!M6*(Main!G287+Main!G290)+'Load Factors'!M7*Main!G293+'Load Factors'!M12*Main!G306*nlane2/ngirder) ->  | L349: k
C350: min | D350: =FIXED(etamin,2,TRUE)&"["&FIXED('Load Factors'!N6,2,TRUE)&"("&Main!G287&"+"&Main!G290&") + "&FIXED('Load Factors'!N7,2,TRUE)&"("&Main!G293&")] + "&IF(Main!G307<0,FIXED(etamax,2,TRUE),FIXED(etamin,2,TRUE))&"["&'Load Factors'!N12&"("&FIXED(Main!G307,2,TRUE)&")("&nlane2&")/"&ngirder&"] =" ->  | K350: =etamin*('Load Factors'!N6*(Main!G287+Main!G290)+'Load Factors'!N7*Main!G293)+IF(Main!G307<0,etamax,etamin)*('Load Factors'!N12*Main!G307*nlane2/ngirder) ->  | L350: k
A352: Factored Dead + Live Reaction for Exterior Girder:
B353: Strength I
C354: max | D354: =FIXED(etamax,2,TRUE)&"["&'Load Factors'!E6&"("&Main!G288&"+"&Main!G291&") + "&FIXED('Load Factors'!E7,2,TRUE)&"("&Main!G294&") + "&'Load Factors'!E12&"("&FIXED(Main!G306,2,TRUE)&")("&nlane2&")/"&ngirder&"] =" ->  | K354: =etamax*('Load Factors'!E6*(Main!G288+Main!G291)+'Load Factors'!E7*Main!G294+'Load Factors'!E12*Main!G306*nlane2/ngirder) ->  | L354: k
C355: min | D355: =FIXED(etamin,2,TRUE)&"["&FIXED('Load Factors'!F6,2,TRUE)&"("&Main!G288&"+"&Main!G291&") + "&FIXED('Load Factors'!F7,2,TRUE)&"("&Main!G294&")] + "&IF(Main!G307<0,FIXED(etamax,2,TRUE),FIXED(etamin,2,TRUE))&"["&'Load Factors'!F12&"("&FIXED(Main!G307,2,TRUE)&")("&nlane2&")/"&ngirder&"] =" ->  | K355: =etamin*('Load Factors'!F6*(Main!G288+Main!G291)+'Load Factors'!F7*Main!G294)+IF(Main!G307<0,etamax,etamin)*('Load Factors'!F12*Main!G307*nlane2/ngirder) ->  | L355: k
B357: Strength IP
C358: max | D358: =FIXED(etamax,2,TRUE)&"["&'Load Factors'!G6&"("&Main!G288&"+"&Main!G291&") + "&FIXED('Load Factors'!G7,2,TRUE)&"("&Main!G294&") + "&'Load Factors'!G13&"("&Main!G316&")/"&ngirder&" + "&'Load Factors'!G12&"("&FIXED(Main!G306,2,TRUE)&")("&nlane&")/"&ngirder&"] =" ->  | K358: =etamax*('Load Factors'!G6*(Main!G288+Main!G291)+'Load Factors'!G7*Main!G294+'Load Factors'!G12*Main!G306*nlane/ngirder+'Load Factors'!G13*Main!G316/ngirder) ->  | L358: k
C359: min | D359: =FIXED(etamin,2,TRUE)&"["&FIXED('Load Factors'!H6,2,TRUE)&"("&Main!G288&"+"&Main!G291&") + "&FIXED('Load Factors'!H7,2,TRUE)&"("&Main!G294&") + "&FIXED('Load Factors'!H13,2,TRUE)&"("&FIXED(G317,2,TRUE)&")/"&ngirder&"] + "&IF(Main!G307<0,FIXED(etamax,2,TRUE),FIXED(etamin,2,TRUE))&"["&'Load Factors'!H12&"("&FIXED(Main!G307,2,TRUE)&")("&nlane&")/"&ngirder&"] =" ->  | K359: =etamin*('Load Factors'!H6*(Main!G288+Main!G291)+'Load Factors'!H7*Main!G294+'Load Factors'!H13*Main!G317/ngirder)+IF(Main!G307<0,etamax,etamin)*('Load Factors'!H12*Main!G307*nlane/ngirder) ->  | L359: k
B361: Strength II
C362: max | D362: =FIXED(etamax,2,TRUE)&"["&'Load Factors'!I6&"("&Main!G288&"+"&Main!G291&") + "&FIXED('Load Factors'!I7,2,TRUE)&"("&Main!G294&") + "&'Load Factors'!I12&"["&FIXED(Main!G308,2,TRUE)&"+"&FIXED(Main!G306,2,TRUE)&"("&nlane2&"-1)]/"&ngirder&"] =" ->  | K362: =etamax*('Load Factors'!I6*(Main!G288+Main!G291)+'Load Factors'!I7*Main!G294+'Load Factors'!I12*(Main!G308+Main!G306*(nlane2-1))/ngirder) ->  | L362: k
C363: min | D363: =FIXED(etamin,2,TRUE)&"["&FIXED('Load Factors'!J6,2,TRUE)&"("&Main!G288&"+"&Main!G291&") +"&FIXED('Load Factors'!J7,2,TRUE)&"("&Main!G294&")] + "&'Load Factors'!J12&"[("&IF(Main!G309<0,FIXED(etamax,2,TRUE),FIXED(etamin,2,TRUE))&")("&FIXED(Main!G309,2,TRUE)&")+("&IF(Main!G307<0,FIXED(etamax,2,TRUE),FIXED(etamin,2,TRUE))&")("&FIXED(Main!G307,2,TRUE)&")("&nlane2&"-1)]/"&ngirder&" =" ->  | K363: =etamin*('Load Factors'!J6*(Main!G288+Main!G291)+'Load Factors'!J7*Main!G294)+'Load Factors'!J12*(IF(Main!G309<0,etamax,etamin)*Main!G309+IF(Main!G307<0,etamax,etamin)*Main!G307*(nlane2-1))/ngirder ->  | L363: k
B365: Strength III
C366: max | D366: =FIXED(etamax,2,TRUE)&"["&'Load Factors'!K6&"("&Main!G288&"+"&Main!G291&") + "&FIXED('Load Factors'!K7,2,TRUE)&"("&Main!G294&")] =" -> 0.95[1.25(+0) + 1.50(0)] = | K366: =etamax*('Load Factors'!K6*(Main!G288+Main!G291)+'Load Factors'!K7*Main!G294) -> 0 | L366: k
C367: min | D367: =FIXED(etamin,2,TRUE)&"["&FIXED('Load Factors'!L6,2,TRUE)&"("&Main!G288&"+"&Main!G291&") + "&FIXED('Load Factors'!L7,2,TRUE)&"("&Main!G294&")] =" ->  | K367: =etamin*('Load Factors'!L6*(Main!G288+Main!G291)+'Load Factors'!L7*Main!G294) ->  | L367: k
B369: Strength V
C370: max | D370: =FIXED(etamax,2,TRUE)&"["&'Load Factors'!M6&"("&Main!G288&"+"&Main!G291&") + "&FIXED('Load Factors'!M7,2,TRUE)&"("&Main!G294&") + "&'Load Factors'!M12&"("&FIXED(Main!G306,2,TRUE)&")("&nlane2&")/"&ngirder&"] =" ->  | K370: =etamax*('Load Factors'!M6*(Main!G288+Main!G291)+'Load Factors'!M7*Main!G294+'Load Factors'!M12*Main!G306*nlane2/ngirder) ->  | L370: k
C371: min | D371: =FIXED(etamin,2,TRUE)&"["&FIXED('Load Factors'!N6,2,TRUE)&"("&Main!G288&"+"&Main!G291&") + "&FIXED('Load Factors'!N7,2,TRUE)&"("&Main!G294&")] + "&IF(Main!G307<0,FIXED(etamax,2,TRUE),FIXED(etamin,2,TRUE))&"["&'Load Factors'!N12&"("&FIXED(Main!G307,2,TRUE)&")("&nlane2&")/"&ngirder&"] =" ->  | K371: =etamin*('Load Factors'!N6*(Main!G288+Main!G291)+'Load Factors'!N7*Main!G294)+IF(Main!G307<0,etamax,etamin)*('Load Factors'!N12*Main!G307*nlane2/ngirder) ->  | L371: k
A373: =A318 -> LOAD DATA - Cont'd
A375: When designing integral abutments, only the girder rotations that are transferred to the piles are needed. Most dead load rotations occur prior to pouring the end diaphragm, and therefore will not be transferred to the piles. The exception to this is any composite dead loads such as future wearing surface or Barriers. The extreme live load and composite dead load girder rotations are conservatively used as the design rotations for the piles. The unfactored live load and composite dead load rotations are available from the girder design.
A381: Unfactored Live Load rotations per girder (including distribution factor):
B383: PHL-93
C384: max | E384: radians | F384: =+D384*180/PI() -> 0 | G384: degrees | H384: =IF(phl93rotmax<0,"Warning - Maximum rotation should be positive.","") ->  | S384: =IF(LEFT(H384,5)="Warni",1,0) -> 0
C385: min | E385: radians | F385: =+D385*180/PI() -> 0 | G385: degrees | H385: =IF(phl93rotmin>0,"Warning - Minimum rotation should be negative.","") ->  | S385: =IF(LEFT(H385,5)="Warni",1,0) -> 0
B387: P-82
C388: max | E388: radians | F388: =+D388*180/PI() -> 0 | G388: degrees | H388: =IF(p82rotmax<0,"Warning - Maximum rotation should be positive.","") ->  | S388: 0
C389: min | E389: radians | F389: =+D389*180/PI() -> 0 | G389: degrees | H389: =IF(p82rotmin>0,"Warning - Minimum rotation should be negative.","") ->  | S389: 0
B390: =IF(phl93rotmax*phl93rotmin>0,"Warning - max and min live load rotations should be opposite signs (or one should be zero)",IF(p82rotmax*p82rotmin>0,"Warning - max and min live load rotations should be opposite signs (or one should be zero)","")) ->  | R390: =IF(LEFT(B390,5)="Error",1,0) -> 0 | S390: =IF(LEFT(B390,5)="Warni",1,0) -> 0
A391: The rotations above are the single girder unfactored rotations. To get the average girder rotations required for the design of integral abutments, the maximum number of traffic lanes on the bridge are loaded and the loads are assumed equally distributed to all girders. To accomplish this using the above results from the girder design program, the rotation distribution factor is divided out to get the rotation of the full traffic lane applied to one girder. Then, the result is multiplied by the number of lanes and divided by the number of girders in the bridge.
A397: Average Live Load rotations per girder:
B399: PHL-93
C400: max | D400: ="("&FIXED(D384,6,TRUE)&"/"&distrfactrot&")("&nlane2&"/"&ngirder&") =" -> (0.000000/)(0/) = | G400: =D384/distrfactrot*(nlane2/ngirder) ->  | H400: radians | I400: =+G400*180/PI() ->  | J400: degrees
C401: min | D401: ="("&FIXED(D385,6,TRUE)&"/"&distrfactrot&")("&nlane2&"/"&ngirder&") =" -> (0.000000/)(0/) = | G401: =D385/distrfactrot*(nlane2/ngirder) ->  | H401: radians | I401: =+G401*180/PI() ->  | J401: degrees
B403: P-82
C404: max | D404: ="("&FIXED(D388,6,TRUE)&"/"&distrfactrot&")("&nlane2&"/"&ngirder&") =" -> (0.000000/)(0/) = | G404: =D388/distrfactrot*(nlane2/ngirder) ->  | H404: radians | I404: =+G404*180/PI() ->  | J404: degrees
C405: min | D405: ="("&FIXED(D389,6,TRUE)&"/"&distrfactrot&")("&nlane2&"/"&ngirder&") =" -> (0.000000/)(0/) = | G405: =D389/distrfactrot*(nlane2/ngirder) ->  | H405: radians | I405: =+G405*180/PI() ->  | J405: degrees
A408: ="The total rotation of any composite dead load rotations (unfactored), e.g. future wearing surface and Barriers, can be input here. This value will be factored using the maximum DW load factor, "&FIXED('Load Factors'!E7,2,TRUE)&"." -> The total rotation of any composite dead load rotations (unfactored), e.g. future wearing surface and Barriers, can be input here. This value will be factored using the maximum DW load factor, 1.50.
B411: Total rotation of composite dead load rotations | H411: radians | I411: =+G411*180/PI() -> 0 | J411: degrees
B412: =IF(dwrot<0,"Warning - Rotation is typically positive - Verify","") ->  | S412: =IF(LEFT(B412,5)="Warni",1,0) -> 0
A413: Maximum factored rotations are calculated here. The DM-4 allows the P-82 permit load to be placed in only one lane, with PHL-93 load in the remaining lanes. If the P-82 rotation controls the girder design the abutment design rotations are adjusted accordingly to account for P-82 on one lane and PHL-93 on all other lanes. The maximum load factor is used for both the maximum (positive) and minimum (negative) values.
A418: Average factored live load + future dead load rotations (including eta factor):
A420: max
A421: ="("&FIXED(etamax,2,TRUE)&")["&IF((ABS(G404)/nlane2+ABS(G400)*(nlane2-1)/nlane2)*'Load Factors'!I12>ABS(G400)*'Load Factors'!E12,"("&'Load Factors'!I12&")("&FIXED(G404,6,TRUE)&"/"&nlane2&" + "&FIXED(G400,6,TRUE)&"("&nlane2&"-1)/"&nlane2&") + ("&FIXED('Load Factors'!I7,2,TRUE)&")("&IF(G411*phl93rotmax<0,"0.000000",FIXED(G411,6,TRUE))&")] =","("&'Load Factors'!E12&")("&FIXED(G400,6,TRUE)&") + ("&FIXED('Load Factors'!E7,2,TRUE)&")("&IF(G411*phl93rotmax<0,"0.000000",FIXED(G411,6,TRUE))&")] =") ->  | H421: =etamax*(IF((ABS(G404)/nlane2+ABS(G400)*(nlane2-1)/nlane2)*'Load Factors'!I12>ABS(G400)*'Load Factors'!E12,'Load Factors'!I12*(G404/nlane2+G400*(nlane2-1)/nlane2)+'Load Factors'!I7*IF(G411*phl93rotmax<0,0,G411),'Load Factors'!E12*Main!G400+'Load Factors'!E7*IF(G411*phl93rotmax<0,0,G411))) ->  | I421: radians | J421: =+H421*180/PI() ->  | K421: degrees
B422: ="Controlling load: "&IF((ABS(G404)/nlane2+ABS(G400)*(nlane2-1)/nlane2)*1.35>ABS(G400)*1.75,"one lane P-82, remaining lanes PHL-93","PHL-93 all lanes") -> 
A424: min
A425: ="("&FIXED(etamax,2,TRUE)&")["&IF((ABS(G405)/nlane2+ABS(G401)*(nlane2-1)/nlane2)*'Load Factors'!I12>ABS(G401)*'Load Factors'!E12,"("&'Load Factors'!I12&")("&FIXED(G405,6,TRUE)&"/"&nlane2&" + "&FIXED(G401,6,TRUE)&"("&nlane2&"-1)/"&nlane2&") + ("&FIXED('Load Factors'!I7,2,TRUE)&")("&IF(G411*phl93rotmax<0,FIXED(G411,6,TRUE),"0.000000")&")] =","("&'Load Factors'!E12&")("&FIXED(G401,6,TRUE)&") + ("&FIXED('Load Factors'!E7,2,TRUE)&")("&IF(G411*phl93rotmax<0,FIXED(G411,6,TRUE),"0.000000")&")] =") ->  | H425: =etamax*(IF((ABS(G405)/nlane2+ABS(G401)*(nlane2-1)/nlane2)*'Load Factors'!I12>ABS(G401)*'Load Factors'!E12,'Load Factors'!I12*(G405/nlane2+G401*(nlane2-1)/nlane2)+'Load Factors'!I7*IF(G411*phl93rotmax<0,G411,0),'Load Factors'!E12*G401+'Load Factors'!E7*IF(G411*phl93rotmax<0,G411,0))) ->  | I425: radians | J425: =+H425*180/PI() ->  | K425: degrees
B426: ="Controlling load: "&IF((ABS(G405)/nlane2+ABS(G401)*(nlane2-1)/nlane2)*1.35>ABS(G401)*1.75,"one lane P-82, remaining lanes PHL-93",IF((ABS(G405)/nlane2+ABS(G401)*(nlane2-1)/nlane2)*1.35<ABS(G401)*1.75,"PHL-93 all lanes","")) -> 
A428: =A373 -> LOAD DATA - Cont'd
A430: Additional Loads
A431: Additional loads due to wind and centrifugal force are calculated here. The approach slab dead and live loads, and wingwall and abutment dead loads are calculated in the next section.
A434: Wind Loads
A435: The appropriate wind pressure on the structure is input here and discussed in DM-4 Ap.G1.2.7.3 and AASHTO 3.8.
B437: Wind on structure | F437: Transverse pressure = | H437: ksf
... 854 more rows

Sheet Scour (hidden)
A1: Title: | J1: By: | L1: Date:
J2: Checked: | L2: Date:
A5: This tab is used for the analysis of a pile under maximum scour conditions only. It must be run in conjunction with the main integral abutment design tab where the geometry and loads are input. The maximum scour condition is considered to be an Extreme Event. The analysis of the pile is performed using the loads for the Extreme Event II limit state (see tab for load factors). The h (eta) factor for operational importance is the only eta factor incorporated into these loads. The factored loads and rotations for this limit state are calculated below.
A11: Load Data
A12: For the Extreme Event II limit state, the h (eta) factors for ductility and redundancy are assumed to be equal to 1.00. The h factor for operational importance, can be a value between 0.95 and 1.05. | L12: A1.3.2
L13: D1.3.2
B14: h i factor for operational importance | G14: 1
B15: h i,max = 0.95 £ h i £ 1.05 | G15: =IF(G14<0.95,0.95,IF(G14>1.05,1.05,G14)) -> 1
B16: h i,min = 1/h i £ 1.00 | G16: =IF(1/G14>1,1,1/G14) -> 1
A18: Factored Dead + Live reaction for girders - including h (eta) factor
A20: Factored Dead + Live reaction for interior girder:
A21: Extreme II
B22: max | D22: =FIXED(scoureta,2,TRUE)&"["&'Load Factors'!R6&"("&Main!G287&"+"&Main!G290&") + "&FIXED('Load Factors'!R7,2,TRUE)&"("&Main!G293&") + "&FIXED('Load Factors'!R12,2,TRUE)&"("&FIXED(Main!G306,2,TRUE)&")("&nlane2&")/"&ngirder&"] =" ->  | J22: =scoureta*('Load Factors'!R6*(Main!G287+Main!G290)+'Load Factors'!R7*Main!G293+'Load Factors'!R12*Main!G306*nlane2/ngirder) ->  | K22: k
B23: min | D23: =FIXED(scouretamin,2,TRUE)&"["&FIXED('Load Factors'!S6,2,TRUE)&"("&Main!G287&"+"&Main!G290&") + "&FIXED('Load Factors'!S7,2,TRUE)&"("&Main!G293&")] + "&FIXED(scoureta,2,TRUE)&"["&FIXED('Load Factors'!S12,2,TRUE)&"("&FIXED(Main!G307,2,TRUE)&")("&nlane2&")/"&ngirder&"] =" ->  | J23: =scouretamin*('Load Factors'!S6*(Main!G287+Main!G290)+'Load Factors'!S7*Main!G293)+scoureta*('Load Factors'!S12*Main!G307*nlane2/ngirder) ->  | K23: k
A25: Factored Dead + Live reaction for exterior girder:
A26: Extreme II
B27: max | D27: =FIXED(scoureta,2,TRUE)&"["&'Load Factors'!R6&"("&Main!G288&"+"&Main!G291&") + "&FIXED('Load Factors'!R7,2,TRUE)&"("&Main!G294&") + "&FIXED('Load Factors'!R12,2,TRUE)&"("&FIXED(Main!G306,2,TRUE)&")("&nlane2&")/"&ngirder&"] =" ->  | J27: =scoureta*('Load Factors'!R6*(Main!G288+Main!G291)+'Load Factors'!R7*Main!G294+'Load Factors'!R12*Main!G306*nlane2/ngirder) ->  | K27: k
B28: min | D28: =FIXED(scouretamin,2,TRUE)&"["&FIXED('Load Factors'!S6,2,TRUE)&"("&Main!G288&"+"&Main!G291&") + "&FIXED('Load Factors'!S7,2,TRUE)&"("&Main!G294&")] + "&FIXED(scoureta,2,TRUE)&"["&FIXED('Load Factors'!S12,2,TRUE)&"("&FIXED(Main!G307,2,TRUE)&")("&nlane2&")/"&ngirder&"] =" ->  | J28: =scouretamin*('Load Factors'!S6*(Main!G288+Main!G291)+'Load Factors'!S7*Main!G294)+scoureta*('Load Factors'!S12*Main!G307*nlane2/ngirder) ->  | K28: k
A30: Total factored dead and live load reactions per pile, assuming two exterior girders, with the remaining being interior girders.
A32: Extreme Factored Dead + Live Loads per pile:
A33: Extreme II
B34: max | C34: ="[("&FIXED(J22,1,TRUE)&")("&FIXED(Main!G115-2,0,TRUE)&")+("&FIXED(J27,1,TRUE)&")(2)]/"&Main!G566&" + "&FIXED(scoureta,2,TRUE)&"{["&FIXED('Load Factors'!R6,2,TRUE)&"("&FIXED(Main!I655,1,TRUE)&"+"&FIXED(Main!I663,1,TRUE)&"+"&FIXED(Main!G676,1,TRUE)&")+"&FIXED('Load Factors'!R7,2,TRUE)&"("&FIXED(Main!I657,1,TRUE)&")+"&FIXED('Load Factors'!R12,2,TRUE)&"("&FIXED(nlane2,0,TRUE)&")("&FIXED(Main!I659,1,TRUE)&")]/"&Main!G566&" + "&FIXED('Load Factors'!R16,2,TRUE)&"("&FIXED(Main!J639,1,TRUE)&") + "&FIXED('Load Factors'!R17,2,TRUE)&"("&FIXED(Main!F747,1,TRUE)&")} " -> 
C35: max = | D35: =(J22*(Main!G115-2)+J27*2)/Main!G566+(('Load Factors'!R6*(Main!I655+Main!I663+Main!G676)+'Load Factors'!R7*Main!I657+'Load Factors'!R12*nlane2*Main!I659)/Main!G566+'Load Factors'!R16*Main!J639+'Load Factors'!R17*Main!F747)*scoureta ->  | E35: k/pile
B37: min | C37: ="[("&FIXED(J23,1,TRUE)&")("&FIXED(Main!G115-2,0,TRUE)&")+("&FIXED(J28,1,TRUE)&")(2)]/"&Main!G566&" + "&FIXED(scouretamin,2,TRUE)&"{["&FIXED('Load Factors'!S6,2,TRUE)&"("&FIXED(Main!I655,1,TRUE)&"+"&FIXED(Main!I663,1,TRUE)&"+"&FIXED(Main!G676,1,TRUE)&")+"&FIXED('Load Factors'!S7,2,TRUE)&"("&FIXED(Main!I657,1,TRUE)&")+"&FIXED('Load Factors'!S12,2,TRUE)&"("&FIXED(nlane2,0,TRUE)&")(0.0)]/"&Main!G566&"} + "&FIXED(scoureta,2,TRUE)&"["&FIXED('Load Factors'!S16,2,TRUE)&"("&FIXED(Main!J640,1,TRUE)&") + "&FIXED('Load Factors'!S17,2,TRUE)&"(0.0)] " -> 
C38: min = | D38: =(J23*(Main!G115-2)+J28*2)/Main!G566+scouretamin*(('Load Factors'!S6*(Main!I655+Main!I663+Main!G676)+'Load Factors'!S7*Main!I657+'Load Factors'!S12*nlane2*0)/Main!G566)+scoureta*('Load Factors'!S16*Main!J640) ->  | E38: k/pile
D39: =IF(D38<0,"Error - no uplift is permitted on any pile in integral abutments per DM-4 Ap. G1.2.1","") ->  | R39: =IF(LEFT(D39,5)="Error",1,0) ->  | S39: =IF(LEFT(D39,5)="Warni",1,0) -> 
A40: Live Load rotations for the Extreme Event II limit state are determined using the PHL-93 loading. These are added to any composite factored dead load rotations. The h (eta) factor is included here as well.
A43: Factored rotations
A44: Extreme II
B45: max | E45: ="[("&FIXED('Load Factors'!R12,2,TRUE)&")("&FIXED(Main!G400,4,TRUE)&") + ("&FIXED('Load Factors'!R7,2,TRUE)&")("&IF(Main!G411*Main!G400<0,"0.0000",FIXED(Main!G411,4,TRUE))&")]"&FIXED(scoureta,2,TRUE)&" =" ->  | H45: =+J45*180/PI() ->  | I45: degrees | J45: =('Load Factors'!R12*Main!G400+'Load Factors'!R7*IF(Main!G411*Main!G400<0,0,Main!G411))*scoureta ->  | K45: radians
B46: min | E46: ="[("&FIXED('Load Factors'!S12,2,TRUE)&")("&FIXED(Main!G401,4,TRUE)&") + ("&FIXED('Load Factors'!R7,2,TRUE)&")("&IF(Main!G411*Main!G400<0,FIXED(Main!G411,4,TRUE),"0.0000")&")]"&FIXED(scoureta,2,TRUE)&" =" ->  | H46: =+J46*180/PI() ->  | I46: degrees | J46: =('Load Factors'!S12*Main!G401+'Load Factors'!R7*IF(Main!G411*Main!G400<0,Main!G411,0))*scoureta ->  | K46: radians
A48: Pile Data
A49: The pile properties entered in the main tab are reproduced here.
B51: Pile Properties
C52: Pile designation | G52: =piledesig -> 0
C53: Yield stress of pile steel, Fy | G53: =pileyield -> 0 | H53: ksi
C54: =IF(piletype="P","Compressive strength of pile concrete, f 'c",IF(piletype="H","Pile depth, d","")) ->  | G54: =piledepth -> 0 | H54: =IF(piletype="P","ksi",IF(piletype="H","in","")) -> 
C55: =IF(piletype="H","Flange width, bf",IF(piletype="P","Pipe diameter, Dp","")) ->  | G55: =pilewidth -> 0 | H55: in
C56: =IF(piletype="H","Flange thickness, tf",IF(piletype="P","Pipe thickness, tp","")) ->  | G56: =pilethickness -> 0 | H56: in
C57: =IF(piletype="H","Pile Area, Ap",IF(piletype="P","Pile area transformed to steel, Atr","")) ->  | G57: =pilearea -> 0 | H57: in2
C58: Moment of inertia, Iy-y | G58: =pileinertia -> 0 | H58: in4
C59: Elastic section modulus, Sy-y | G59: =pilesecmod -> 0 | H59: in3
C60: Radius of gyration, ry-y | G60: =pilegyration -> 0 | H60: in
C61: Plastic section modulus, Zy-y | G61: =pileplastsecmod -> 0 | H61: in3
A62: Lateral Pile Analysis
A63: An additional LPile run must be performed for the maximum scour case. For this run the soil is removed down to the depth of maximum scour (pile extends out of the ground). The depth of maximum scour must be determined by the user.
A66: Design values for LPile:
C67: Pile Section | G67: =IF(piletype="H"," "&piledesig,IF(piletype="P"," "&Main!G547&" in","")) -> 
D68: Pile width or diameter | G68: =IF(piletype="H",piledepth,IF(piletype="P",pilewidth,"")) ->  | H68: in
D69: Pile moment of inertia | G69: =+pileinertia -> 0 | H69: in4
D70: Pile area | G70: =+pilearea -> 0 | H70: in2
C71: Vertical axial load | G71: =+D35 ->  | H71: k
C72: Design rotation | G72: =+MAX(ABS(J45),ABS(J46)) ->  | H72: radians | I72: =+MAX(ABS(H45),ABS(H46)) ->  | J72: degrees
C73: Design thermal movement | G73: =+Main!G829 -> 0 | H73: in
C74: Plastic moment (if required) | G74: =Main!G830 -> 0 | H74: k-ft | I74: =G74*12 -> 0 | J74: k-in
C75: Depth of maximum scour, Dsc | H75: in | I75: =+G75/12 -> 0 | J75: ft
B76: =IF(scourdepth>pilelength*12,"Error - scour depth is longer than the pile length","") -> 
A77: Results from LPile (See the figures below for illustrations of the data required from the program).
A79: The depth to fixity is defined as the shallowest depth at which the pile deflection is equal to zero.
C80: Depth to fixity, Lsc = | G80: 175 | H80: in | I80: =+G80/12 -> 14.58333333 | J80: ft
B81: =IF(scourfixity>pilelength*12,"Error - depth to fixity is longer than the pile length","") ->  | R81: =IF(LEFT(B81,5)="Error",1,0) ->  | S81: =IF(LEFT(B81,5)="Warni",1,0) -> 
A82: ="The depth at which friction becomes effective for piles is defined as the point where the deflection reaches less than 2% of the pile "&IF(piletype="H","width","diameter")&". For the present pile (see section properties in main tab), this deflection value is (0.02)("&IF(piletype="P",FIXED(pilewidth,2)&") = "&FIXED(0.02*pilewidth,2)&" in",FIXED(piledepth,1)&") = "&FIXED(0.02*piledepth,2)&" in")&". Any length of pile above this depth is considered ineffective in the design of friction piles. For the scour case, include the length of exposed pile in this value. This value is not required for bearing piles." -> The depth at which friction becomes effective for piles is defined as the point where the deflection reaches less than 2% of the pile diameter. For the present pile (see section properties in main tab), this deflection value is (0.02)(0.0) = 0.00 in. Any length of pile above this depth is considered ineffective in the design of friction piles. For the scour case, include the length of exposed pile in this value. This value is not required for bearing piles.
C86: Depth to 2% deflection, Lsn = | H86: in | I86: =+G86/12 -> 0 | J86: ft
A88: The maximum bending moment in the pile, within the depth to fixity, Lsc.
C89: Maximum bending moment in pile, Msu = | H89: k-ft | I89: =+G89*12 -> 0 | J89: k-in
D92: Lateral pile deflection vs depth | I92: Pile moment vs depth
A109: Pile Capacity Analysis
A110: The total pile length is required in order to calculate the percentage of skin friction lost to scour.
C111: Total pile length, Ltot = | G111: =Main!G569*12 -> 0 | H111: in | I111: =G111/12 -> 0 | J111: ft
A113: The effective shaft length is the total shaft length minus a length at the top of the pile which is ineffective due to the lateral movement which occurs. A displacement of 2% of the pile diameter is used as the boundary above which skin friction becomes ineffective. The depth at which the displacement reaches this critical value was determined previously using the computer program LPile for the post-scour condition.
B118: Post-scour
C119: Effective shaft length, Lse = Ltot - Lsn = | G119: =+G111&" - "&G86 -> 0 -
C120: Lse = | D120: =+G111-G86 -> 0 | E120: ="in = "&FIXED(D120/12,2)&" ft" -> in = 0.00 ft
A122: The resistance factors for tip resistance and shaft resistance are assumed to be unaffected by scour and are the same as in the main tab.
B125: Tip and shaft resistance factors
C126: Tip (bearing) resistance factor, fqp | G126: 1 | L126: D10.5.5.3.3 | N126: =brngresfact -> 0
C127: Shaft (skin friction) resistance factor, fqs | G127: 1 | L127: D10.5.5.3.3 | N127: =frictresfact -> 0
A129: The tip resistance is assumed to be unaffected by scour and is imported from the main tab.
C130: Nominal tip (bearing) resistance, Qp = | G130: =Main!I896 -> 0 | H130: k
A132: The unit shaft resistance of the remaining soil is required for friction piles. For layered soils, a weighted average unit shaft resistance should be used.
B134: Shaft resistance (skin friction)
C135: Unit shaft resistance, qs | H135: tsf = | I135: =+G135*2/144 -> 0 | J135: ksi
C136: Nominal pile shaft resistance, Qs = qsAs | G136: ="= ("&I135&" ksi)("&FIXED(IF(piletype="P",PI()*pilewidth,4*pilewidth+2*(piledepth-'Pile Data'!E28)),2,TRUE)&")("&D120&") =" ->  | I136: =I135*IF(piletype="P",PI()*pilewidth,4*pilewidth+2*(piledepth-'Pile Data'!E28))*D120 ->  | J136: k
B139: Total post-scour factored resistance per pile, QR = fqpQp + fqsQs
F140: ="("&FIXED(G126,2,TRUE)&")("&FIXED(G130,1,TRUE)&") + ("&FIXED(G127,2,TRUE)&")("&FIXED(I136,1,TRUE)&") = " ->  | G140: =(G126*G130+G127*I136) ->  | H140: k
B141: =IF(G140<D35,"Error - "&FIXED(G140,2,TRUE)&" k < "&FIXED(D35,2,TRUE)&" k - Inadequate geotechnical resistance",FIXED(G140,2,TRUE)&" k > "&FIXED(D35,2,TRUE)&" k - OK") ->  | R141: =IF(LEFT(B141,5)="Error",1,0) ->  | S141: =IF(LEFT(B141,5)="Warni",1,0) -> 
A143: Check the capacity of the pile as a structural member
A145: The STRENGTH limit state pile resistance factors in DM-4 are to be applied assuming only axial forces are present at the tip of the pile, where any driving damage is likely to occur. At other locations along the length of the pile, where axial forces and bending are present, the piles are generally undamaged. For these reasons, the axial force only resistance factor is low at the STRENGTH limit state while the combined flexure and axial force resistance factors are higher. The calculated nominal axial resistances are also different, as the pile is assumed fully supported at the tip, but an unbraced length of 0.65 times the depth to fixity is used in the upper portion where the pile is exposed due to scour. Per DM-4 Appendix G 1.4.2.4, the scour check is applied at the extreme event limit state. Per AASHTO 6.5.5, all resistance factors at the extreme event limit state shall be taken to be 1.0.
B155: Pile resistance factors
C156: Axial compression only, fc | G156: 1 | L156: A6.5.5
C158: Axial compression, fc plus | G158: 1 | H158: (used together) | L158: A6.5.5
C159: Flexure, ff | G159: 1
B161: Compressive resistance (pile tip - axial loads only) from main tab:
C162: Nominal axial resistance, Pn = | G162: =Main!#REF! ->  | H162: k
A164: For the check of axial capacity, the entire axial load is considered for end bearing piles. For friction piles, the load at the pile tip is assumed to be the total pile load minus the friction capacity of the top 50% of the pile.
B168: Check axial capacity
C169: Axial load at tip of pile, Pu = | F169: =IF(piletype="P",FIXED(G71,2,TRUE)&" - (0.5)("&G127&")("&FIXED(I136,1,TRUE)&") = ","") ->  | G169: =IF(piletype="P",MAX(G71-0.5*G127*I136,0),G71) ->  | H169: k
C171: Factored axial resistance, Pr = f Pn | G171: ="= ("&FIXED(G156,2)&")("&FIXED(G162,2,TRUE)&") =" -> 
G172: =G156*G162 ->  | H172: k
C173: =IF(G172<G169,"Error - "&FIXED(G172,1,TRUE)&" k < "&FIXED(G169,1,TRUE)&" k - Insufficient axial capacity",FIXED(G172,1,TRUE)&" k > "&FIXED(G169,1,TRUE)&" k - OK") ->  | R173: =IF(LEFT(C173,5)="Error",1,0) ->  | S173: =IF(LEFT(C173,5)="Warni",1,0) -> 
A175: The pile length for buckling is taken as the length from the bottom of the abutment to the point of assumed fixity. The end conditions of this length of pile are assumed to be fixed-fixed resulting in an effective length factor, K, of 0.65. In addition, this check only need be performed if Lsc is larger than 1.54*Lb from the Main tab. | L175: AC4.6.2.5
L177: DM-4 Ap.G.1.4.2.4
B180: =IF(1.54*unbraced>scourfixity,"(1.54)("&FIXED(unbraced,0,TRUE)&") = "&FIXED(1.54*unbraced,0,TRUE)&" > "&FIXED(scourfixity,0,TRUE)&" - No need to check pile as a structural member",FIXED(scourfixity,0,TRUE)&" > (1.54)("&FIXED(unbraced,0,TRUE)&") = "&FIXED(1.54*unbraced,0,TRUE)&" - Need to check pile as a structural member") -> 
C182: =IF(piletype="H","For steel H-piles",IF(piletype="P","For concrete filled steel pipe piles","")) -> 
C183: Fe | D183: =IF(piletype="H","= Fy = "&Main!G545&" ksi",IF(piletype="P","= Fy + 0.85f'c(Ac/As) = "&Main!G545&" + 0.85*"&Main!G546&"("&FIXED(Ac,2,TRUE)&"/"&FIXED(As,2,TRUE)&") = "&FIXED(Main!G545+0.85*Main!G546*(Ac/As),2,TRUE)&" ksi","")) -> 
C184: Ee | D184: =IF(piletype="H","= Est = 29000 ksi",IF(piletype="P","= Est[1+(0.4/n)(Ac/As)] = 29000[1+(0.4/"&n&")("&FIXED(Ac,2,TRUE)&"/"&FIXED(As,2,TRUE)&")] = "&FIXED(29000*(1+(0.4/n)*(Ac/As)),2,TRUE)&" ksi","")) -> 
C185: l = (KLsc/rsp)2 (Fe/Ee) = | I185: ="[(0.65*"&G80&")/("&FIXED(pilegyration,2,TRUE)&"*"&FIXED(PI(),3,TRUE)&")]^2 ("&IF(piletype="H",Main!G545&"/29000) =",IF(piletype="P",FIXED(Main!G545+0.85*Main!G546*(Ac/As),2,TRUE)&"/"&FIXED(29000*(1+(0.4/n)*(Ac/As)),2,TRUE)&") =","")) -> [(0.65*175)/(0.00*3.142)]^2 ( | J185: =IF(1.54*unbraced>scourfixity,NA(),IF(piletype="H",(0.65*G80/(pilegyration*PI()))^2*(Main!G545/29000),IF(piletype="P",(0.65*G80/(pilegyration*PI()))^2*((Main!G545+0.85*Main!G546*(Ac/As))/(29000*(1+(0.4/n)*(Ac/As)))),""))) ->  | L185: =IF(piletype="H","A6.9.4.1",IF(piletype="P","A6.9.5.1","")) -> 
C186: if l £ 2.25, Pn = 0.66lFeAs , if l > 2.25, Pn = 0.88FeAs / l
C187: Nominal axial resistance, Pn = | G187: =IF(J185>2.25,"(0.88)("&IF(piletype="H",Main!G545&")("&FIXED(pilearea,1,TRUE),IF(piletype="P",FIXED(Main!G545+0.85*Main!G546*(Ac/As),2,TRUE)&")("&FIXED(As,2,TRUE),""))&")/("&FIXED(J185,3,TRUE),"0.66^"&FIXED(J185,3,TRUE)&" ("&IF(piletype="H",Main!G545&")("&FIXED(pilearea,1,TRUE),IF(piletype="P",FIXED(Main!G545+0.85*Main!G546*(Ac/As),2,TRUE)&")("&FIXED(As,1,TRUE),""))&") =") -> 
G188: =IF(J185>2.25,0.88*IF(piletype="H",Main!G545*pilearea,IF(piletype="P",(Main!G545+0.85*Main!G546*(Ac/As))*As,""))/J185,0.66^J185*IF(piletype="H",Main!G545*pilearea,IF(piletype="P",(Main!G545+0.85*Main!G546*(Ac/As))*As,""))) ->  | H188: k
C189: Factored axial resistance, Pr = f Pn = | G189: ="("&FIXED(G158,2)&")("&FIXED(G188,1,TRUE)&") =" -> 
G190: =+G188*G158 ->  | H190: k
B192: =IF(piletype="H","Flexural resistance of steel H-piles",IF(piletype="P","Flexural resistance of steel pipe piles","")) -> 
C193: Plastic Moment, Mp = Fy Zy = | G193: =+"("&Main!G545&")("&FIXED(pileplastsecmod,1,TRUE)&") =" -> ()(0.0) =
G194: =+Main!G545*pileplastsecmod -> 0 | H194: k-in | I194: =+G194/12 -> 0 | J194: k-ft
C195: Yield Moment, My = Fy Sy = | G195: ="("&Main!G545&")("&FIXED(pilesecmod,1,TRUE)&") =" -> ()(0.0) =
G196: =+Main!G545*pilesecmod -> 0 | H196: k-in | I196: =+G196/12 -> 0 | J196: k-ft
A198: For H-piles, if the width-to-thickness ratio of the flanges is not sufficient to consider the section compact, an interaction formula from AISC is used to interpolate between the plastic moment resistance and the yield moment resistance.
C202: Mn = Mp - (Mp - My)(l - lp)/(lr - lp) £ Mp | L202: AISC-LRFD, 94
A204: For pipe piles, if the diameter-to-thickness ratio of the pipe is not sufficient to consider the section compact, then the section is considered non-compact. | L204: A6.12.2.3.2
B207: =IF(piletype="H","Width-to-thickness ratio of projecting flange element",IF(piletype="P","Diameter to thickness ratio of steel pipe pile","")) -> 
B208: l = | C208: =IF(piletype="H"," bf / 2tf =",IF(piletype="P"," D/t =","")) ->  | G208: =IF(piletype="H",+Main!G547&"/(2*"&+Main!G548&") = ",IF(piletype="P",+Main!G547&"/"&+Main!G548&" = ","")) ->  | H208: =IF(piletype="H",+FIXED(+Main!G547/2/Main!G548),IF(piletype="P",+Main!G547/Main!G548,"")) -> 
B209: =IF(piletype="H","Width-to-thickness criteria for flange element to reach plastic moment",IF(piletype="P","Diameter-to-thickness criteria for pipe to reach plastic moment","")) -> 
B210: lp = | C210: =IF(piletype="H",FIXED(0.382,3,TRUE),IF(piletype="P",2,"")) ->  | D210: * (E / Fy)1/2 = | G210: =IF(piletype="H","0.382*(29000/"&+Main!G545&")^0.5 = ",IF(piletype="P","2.00*(29000/"&+Main!G545&")^0.5 = ","")) ->  | H210: =IF(piletype="H",+FIXED(0.382*(29000/Main!G545)^0.5),IF(piletype="P",2*(29000/Main!G545)^0.5,"")) -> 
B211: =IF(piletype="H","Width-to-thickness criteria for flange element to reach yield stress",IF(piletype="P","Diameter-to-thickness criteria for pipe to reach yield stress","")) -> 
B212: lr = | C212: =IF(piletype="H",0.56,IF(piletype="P",8.8,"")) ->  | D212: * (E / Fy)1/2 = | G212: =IF(piletype="H","0.56*(29000/"&+Main!G545&")^0.5 = ",IF(piletype="P","8.80*(29000/"&+Main!G545&")^0.5 = ","")) ->  | H212: =IF(piletype="H",+FIXED(0.56*(29000/Main!G545)^0.5),IF(piletype="P",8.8*(29000/Main!G545)^0.5,"")) -> 
B213: Nominal flexural resistance, Mn = | F213: =Main!H1183 -> 
F214: Use Mn = | G214: =Main!J1183 ->  | H214: k-in | I214: =G214/12 ->  | J214: k-ft
B216: Pile factored flexural resistance, Mr = f Mn = | G216: ="("&FIXED(G159,2)&")("&FIXED(G214,1,TRUE)&") =" -> 
G217: =+G214*G159 ->  | H217: k-in | I217: =G217/12 ->  | J217: k-ft
C219: Check moment-axial interaction
D220: Pu / Pr = | F220: =FIXED(D35,1,TRUE)&"/"&FIXED(+G190,1,TRUE)&" = " ->  | G220: =+D35/G190 ->  | L220: A6.9.2.2
D221: if Pu / Pr < 0.2 then Pu / 2.0Pr + Mu / Mr £ 1.0
D222: if Pu / Pr ³ 0.2 then Pu / Pr + (8.0 / 9.0) Mu / Mr £ 1.0
D223: Moment - axial interaction = | I223: =IF(G220<0.2,FIXED(D35,1,TRUE)&"/(2*"&FIXED(G190,1,TRUE)&") + "&FIXED(G89,2)&"/"&FIXED(I217,2,TRUE)&" =",FIXED(D35,1,TRUE)&"/"&FIXED(G190,1,TRUE)&" + (8.0/9.0)("&FIXED(G89,2)&"/"&FIXED(I217,2,TRUE)&") =") ->  | J223: =IF(G220<0.2,G71/G190/2+G89/I217,G71/G190+(8/9)*(G89/I217)) ->  | K223: =IF(J223>1.0049,"> 1.0 NG","< 1.00 OK") -> 
D224: =IF(J223>1.0049,"Error - "&FIXED(J223,2,TRUE)&" > 1.0 - Increase the number of piles or change the pile section","") ->  | R224: =IF(LEFT(D224,5)="Error",1,0) ->  | S224: =IF(LEFT(D224,5)="Warni",1,0) -> 
A225: Scour Analysis Summary
R226: =SUM(R1:R225) ->  | S226: =SUM(S1:S225) -> 
A227: Pile Description
A228: ="Number of piles: "&npiles&" - "&IF(piletype="H",piledesig&" piles",FIXED(pilewidth,1,TRUE)&" in diameter concrete-filled pipe piles") -> Number of piles: - 0.0 in diameter concrete-filled pipe piles
A229: ="Pile spacing: "&FIXED(Main!G568,3)&" ft in a single row along the centerline of bearing of the abutment" -> Pile spacing: 0.000 ft in a single row along the centerline of bearing of the abutment
A230: ="Design pile length: "&G111/12&" ft" -> Design pile length: 0 ft
A231: ="Depth to fixity: "&FIXED(scourfixity,2)&" in ("&FIXED(I80,2,TRUE)&" ft)" -> 
A232: ="Unbraced length: "&FIXED(0.65*scourfixity,2,TRUE)&" in ("&FIXED(0.65*I80,2,TRUE)&" ft)" -> 
A233: ="Depth to the point where the lateral deflection is 2% of the pile width (friction engaged): "&G86&" in ("&FIXED(I86,2,TRUE)&" ft)" -> Depth to the point where the lateral deflection is 2% of the pile width (friction engaged): in (0.00 ft)
A234: ="Pile yield moment, My: "&FIXED(G196,1,TRUE)&" k-in ("&FIXED(I196,1,TRUE)&" k-ft)" -> Pile yield moment, My: 0.0 k-in (0.0 k-ft)
A235: ="Pile plastic moment, Mp: "&FIXED(G194,1,TRUE)&" k-in ("&FIXED(I194,1,TRUE)&" k-ft)" -> Pile plastic moment, Mp: 0.0 k-in (0.0 k-ft)
A236: ="Total factored geotechnical capacity of the pile: "&FIXED(G140,1,TRUE)&" k" -> 
A237: ="Factored axial resistance of the pile at the tip: "&FIXED(G172,1,TRUE)&" k" -> 
A238: ="Factored axial resistance of upper portion of pile for use in interaction equation: "&FIXED(G190,1,TRUE)&" k" -> 
A239: ="Factored flexural resistance of upper portion of pile for use in interaction equation: "&FIXED(G217,1,TRUE)&" k-in ("&FIXED(I217,1,TRUE)&" k-ft)" -> 
A241: Loads and Deformations
A242: ="Maximum axial force in the pile: "&FIXED(D35,1,TRUE)&" k due to the Extreme Event II load case" -> 
A243: ="Maximum bending moment in the pile: "&FIXED(I89,1,TRUE)&" k-in ("&FIXED(scourmaxmom,1,TRUE)&" k-ft)" -> 
A244: ="Total maximum design rotation: "&FIXED(J45,4,TRUE)&" radians ("&FIXED(H45,3,TRUE)&" degrees)" -> 
A245: ="Axial load-moment interaction equation result for the pile (maximum allowable is 1.00): "&FIXED(J223,2,TRUE) -> 
A247: Warnings and Errors
A248: ="The spreadsheet generated "&FIXED(S226,0,TRUE)&" warning(s) and "&FIXED(R226,0,TRUE)&" error(s)." -> 
A249: =IF(S226>0,"The "&FIXED(S226,0,TRUE)&" warning(s) should should be checked to make sure requirements are satisfied.","") -> 
A250: =IF(R226>0,"The "&FIXED(R226,0,TRUE)&" error(s) must be addressed to satisfy design requirements.","") -> 

Sheet COM624P Input (hidden)
B1: COM624P Input Tab Description
C3: This tab assists in running the computer program COM624P by creating a template for the input file with many of the required values inserted in the template. Although a brief description of the input file is provided to the right of the templates, the user will still require the COM624P input manual in order to run the program. The user is required to determine many additional parameters required for the input file, and may even need to change some of the values supplied to the template. This can be accomplished by accessing the generated file(s) using any text editor and simply entering (or changing) the required values. Two file templates can be created by pushing the buttons located to the left. The first creates a template called com624p1.tmp to be used with the Main tab. The second creates a template called com624p2.tmp to be used with the Scour tab.
B13: Main tab template
B15: =Main!B1 -> 0 | H15: Title line - can be altered to be any title desired
B16: 2 | C16: 1 | D16: 0 | H16: Units line - arbitrarily assigned to use SI units
B17: 200 | C17: XX | D17: 1 | E17: 0 | H17: Input control line - missing value is number of soil layers
B18: XX | C18: XX | D18: XX | H18: Input control line - missing values related to soil data
B19: =pilelength/1000 -> 0 | C19: 200000000 | D19: 0 | E19: 0 | H19: Pile geometry line
B20: 0 | C20: 1 | H20: Output control line
B21: 4 | C21: 1 | D21: 0 | E21: 100 | H21: Analysis control line - includes pile boundary conditions
B22: 200 | C22: 0.0001 | D22: 1 | H22: Run control line
B23: 0 | C23: =ROUND(Main!G824,3) ->  | D23: =ROUND(Main!G825,7) -> 0 | E23: =ROUND(Main!G826,4) -> 0 | H23: Pile properties line
B24: 1 | C24: 4 | D24: 0 | E24: 3 | F24: 6790 | H24: Soil profile lines - need as many lines as layers of soil
B25: Additional soil profile lines here
B26: 0 | C26: 14.1 | H26: Unit weight lines - currently loose sand above the water table
B27: 3 | C27: 14.1 | I27: - Soil depth must at least reach bottom of pile
B28: Additional soil unit weight lines here
B29: 0 | C29: 0 | D29: 26 | E29: 0 | H29: Strength parameter lines - currently loose sand
B30: 3 | C30: 0 | D30: 26 | E30: 0 | I30: - Soil depth must at least reach bottom of pile
B31: Additional soil strength parameter lines here
B32: 1 | H32: Number of loading conditions line - can be up to 20
B33: 1 | C33: =ROUND(Main!G829,4) -> 0 | D33: =ROUND(Main!G830,1) -> 0 | E33: =ROUND(Main!G827,1) ->  | H33: Loading conditions line - third value is plastic moment
B34: Additional loading lines here
B37: Scour tab template
B39: =Scour!B1 -> 0 | H39: Title line - can be altered to be any title desired
B40: 2 | C40: 1 | D40: 0 | H40: Units line - arbitrarily assigned to use SI units
B41: 200 | C41: XX | D41: 1 | E41: 0 | H41: Input control line - missing value is number of soil layers
B42: XX | C42: XX | D42: XX | H42: Input control line - missing values related to soil data
B43: =pilelength/1000 -> 0 | C43: 200000000 | D43: =ROUND(scourdepth/1000,1) -> 0 | E43: 0 | H43: Pile geometry line
B44: 0 | C44: 1 | H44: Output control line
B45: 4 | C45: 1 | D45: 0 | E45: 100 | H45: Analysis control line - includes pile boundary conditions
B46: 200 | C46: 0.0001 | D46: 1 | H46: Run control line
B47: 0 | C47: =ROUND(Main!G824,3) ->  | D47: =ROUND(Main!G825,7) -> 0 | E47: =ROUND(Main!G826,4) -> 0 | H47: Pile properties line
B48: 1 | C48: 4 | D48: 0 | E48: 3 | F48: 5430 | H48: Soil profile lines - need as many lines as layers of soil
B49: Additional soil profile lines here
B50: 0 | C50: 7.8 | H50: Unit weight lines - currently loose sand above the water table
B51: 3 | C51: 7.8
B52: Additional soil unit weight lines here
B53: 0 | C53: 0 | D53: 26 | E53: 0 | H53: Strength parameter lines - currently loose sand
B54: 3 | C54: 0 | D54: 26 | E54: 0
B55: Additional soil strength parameter lines here
B56: 1 | H56: Number of loading conditions line - can be up to 20
B57: 1 | C57: =ROUND(Scour!G73,4) -> 0 | D57: =ROUND(Scour!G74,1) -> 0 | E57: =ROUND(Scour!G71,1) ->  | H57: Loading conditions line - third value is plastic moment
B58: Additional loading lines here

Sheet Load Factors
B2: DM-4 Appendix G Table 1.2.7.6-1 - Load Combinations for Integral Abutments
B4: Load Case | C4: SERV I | E4: STR I | G4: STR IP | I4: STR II | K4: STR III | M4: STR V | R4: EXTREME II
C5: max | D5: min | E5: max | F5: min | G5: max | H5: min | I5: max | J5: min | K5: max | L5: min | M5: max | N5: min | R5: max | S5: min
B6: gDC | C6: 1 | D6: 1 | E6: 1.25 | F6: 0.9 | G6: 1.25 | H6: 0.9 | I6: 1.25 | J6: 0.9 | K6: 1.25 | L6: 0.9 | M6: 1.25 | N6: 0.9 | R6: 1.25 | S6: 0.9
B7: gDW | C7: 1 | D7: 1 | E7: 1.5 | F7: =dwmin -> Error - must be Y or N above | G7: 1.5 | H7: =dwmin -> Error - must be Y or N above | I7: 1.5 | J7: =dwmin -> Error - must be Y or N above | K7: 1.5 | L7: =dwmin -> Error - must be Y or N above | M7: 1.5 | N7: =dwmin -> Error - must be Y or N above | R7: 1.5 | S7: =dwmin -> Error - must be Y or N above
B8: gEV | C8: 1 | D8: 1 | E8: 1.35 | F8: 1 | G8: 1.35 | H8: 1 | I8: 1.35 | J8: 1 | K8: 1.35 | L8: 1 | M8: 1.35 | N8: 1 | R8: 1.35 | S8: 1
B9: gEH | C9: 1 | D9: 1 | E9: 1.5 | F9: 1.5 | G9: 1.5 | H9: 1.5 | I9: 1.5 | J9: 1.5 | K9: 1.5 | L9: 1.5 | M9: 1.5 | N9: 1.5 | R9: 1.5 | S9: 1.5
B10: gES | C10: 1 | D10: 1 | E10: 1.5 | F10: 1.5 | G10: 1.5 | H10: 1.5 | I10: 1.5 | J10: 1.5 | K10: 1.5 | L10: 1.5 | M10: 1.5 | N10: 1.5 | R10: 1.5 | S10: 1.5
B11: gLS | C11: 1 | D11: 1 | E11: 1.75 | F11: 1.75 | G11: 1.35 | H11: 1.35 | I11: 1.35 | J11: 1.35 | K11: 0 | L11: 0 | M11: 1.35 | N11: 1.35 | R11: 0.5 | S11: 0.5
B12: gLLIM | C12: 1 | D12: 1 | E12: 1.75 | F12: 1.75 | G12: 1.35 | H12: 1.35 | I12: 1.35 | J12: 1.35 | K12: 0 | L12: 0 | M12: 1.35 | N12: 1.35 | R12: 0.5 | S12: 0.5
B13: gPL | C13: 0 | D13: 0 | E13: 0 | F13: 0 | G13: 1.75 | H13: 1.75 | I13: 0 | J13: 0 | K13: 0 | L13: 0 | M13: 0 | N13: 0 | R13: 0 | S13: 0
B14: gWS | C14: 0.3 | D14: 0.3 | E14: 0 | F14: 0 | G14: 0 | H14: 0 | I14: 0 | J14: 0 | K14: 1.4 | L14: 1.4 | M14: 0.4 | N14: 0.4 | R14: 0 | S14: 0
B15: gWL | C15: 1 | D15: 1 | E15: 0 | F15: 0 | G15: 0 | H15: 0 | I15: 0 | J15: 0 | K15: 0 | L15: 0 | M15: 1 | N15: 1 | R15: 0 | S15: 0
B16: gCE | C16: 1 | D16: 1 | E16: 1.75 | F16: 1.75 | G16: 1.35 | H16: 1.35 | I16: 1.35 | J16: 1.35 | K16: 0 | L16: 0 | M16: 1.35 | N16: 1.35 | R16: 0.5 | S16: 0.5
B17: gTU | C17: 1 | D17: 1 | E17: 1 | F17: 1 | G17: 1 | H17: 1 | I17: 1 | J17: 1 | K17: 1 | L17: 1 | M17: 1 | N17: 1 | R17: 1 | S17: 1
B18: Design vehicle | C18: PHL-93 | E18: PHL-93 | G18: PHL-93 | I18: P-82 | K18: --- | M18: PHL-93 | R18: PHL-93
B19: Note that not all loads and load cases are used in the spreadsheet, they are supplied for information only.

Sheet Cap Reinforcement
A2: This tab calculates the flexural reinforcement required for the pile cap. Actual dimensions from the integral abutment design are used (rather than assumed values) so it may not agree exactly with DM-4 Ap.G. Figure C1.4.3-2.
B5: Flexural Reinforcement of Pile Cap Beam
B7: Input | E7: Computed Moments | H7: Computed Areas of Reinf. | K7: Result
B8: Ru (k) | C8: =+Ru ->  | E8: d (in) | F8: =C$11-C$13 -> -4.26 | H8: k1 (ksi) | I8: =($F$10*12/(0.9*$C$10*POWER($F$8,2))) ->  | K8: As (in2) | L8: =MAX(I10,MIN(I14,I18)) ->  | M8: =IF(L8=I10,"(1)",IF(L8=I14,"(2)",IF(L8=I18,"(3)",""))) -> 
B9: L (in) | C9: =+Lpile*12 -> 0 | E9: W (k/ft) | F9: =(1.25*0.15*C$10*(C$11+C$12))/(144) -> 0 | H9: p1 | I9: =0.85*($C$14/$C$15)*(1-SQRT(1-((2*I8)/(0.85*$C$14)))) ->  | K9: Contr. Moment | L9: =MAX(F10,MIN(F16,1.33*F10)) ->  | M9: k-ft
B10: b (in) | C10: 48 | E10: Mu (k-ft) | F10: =(0.125*F$9*POWER(C$9/12,2)+(0.2*C$8*C$9/12)) ->  | H10: As1 (in2) | I10: =I9*$C$10*$F$8 ->  | J10: (1) | Q10: Eq. 5.5.4.2.1-2
B11: hp (in) | C11: =+MIN(Main!G183:'Main'!G188)*12 -> 0 | K11: Provided Steel Areas | N11: dt | O11: β1 | P11: c | Q11: f | R11: Use f | S11: a | T11: fMn | U11: Status
B12: hb (in) | C12: =+diaphragm*12 -> 0 | E12: fr (ksi) | F12: =0.24*SQRT(C$14) -> 0 | H12: k2 (ksi) | I12: =($F$16*12/(0.9*$C$10*POWER($F$8,2))) ->  | K12: 4 #8 bars: | L12: =4*0.79 -> 3.16 | M12: in2 | N12: =C11-(3+0.625+1/2) -> -4.125 | O12: =IF($C$14<=4,0.85,MAX(0.85-($C$14-4)*0.05,0.65)) -> 0.85 | P12: =L12*$C$15/(0.85*$C$14*O12*$C$10) ->  | Q12: =0.65+0.15*(N12/P12-1) ->  | R12: =IF(Q12<0.75,0.75,IF(Q12>0.9,0.9,Q12)) ->  | S12: =0.85*P12 ->  | T12: =R12*L12*$C$15*(N12-S12/2)/12 ->  | U12: =IF(T12>=$L$9,"OK","NG") -> 
B13: cover (in) | C13: =3+0.625+1.27/2 -> 4.26 | D13: * | E13: Ig (in4) | F13: =(C$10*POWER(C$11,3))/12 -> 0 | H13: p2 | I13: =0.85*($C$14/$C$15)*(1-SQRT(1-((2*I12)/(0.85*$C$14)))) ->  | K13: 4 #9 bars: | L13: =4*1 -> 4 | M13: in2 | N13: =C11-(3+0.625+1.128/2) -> -4.189 | O13: =IF($C$14<=4,0.85,MAX(0.85-($C$14-4)*0.05,0.65)) -> 0.85 | P13: =L13*$C$15/(0.85*$C$14*O13*$C$10) ->  | Q13: =0.65+0.15*(N13/P13-1) ->  | R13: =IF(Q13<0.75,0.75,IF(Q13>0.9,0.9,Q13)) ->  | S13: =0.85*P13 ->  | T13: =R13*L13*$C$15*(N13-S13/2)/12 ->  | U13: =IF(T13>=$L$9,"OK","NG") -> 
B14: f'c (ksi) | C14: =+capfc -> 0 | E14: yt (in) | F14: =C$11/2 -> 0 | H14: As2 (in2) | I14: =I13*$C$10*$F$8 ->  | J14: (2) | K14: 4 #10 bars: | L14: =4*1.27 -> 5.08 | M14: in2 | N14: =C11-(3+0.625+1.27/2) -> -4.26 | O14: =IF($C$14<=4,0.85,MAX(0.85-($C$14-4)*0.05,0.65)) -> 0.85 | P14: =L14*$C$15/(0.85*$C$14*O14*$C$10) ->  | Q14: =0.65+0.15*(N14/P14-1) ->  | R14: =IF(Q14<0.75,0.75,IF(Q14>0.9,0.9,Q14)) ->  | S14: =0.85*P14 ->  | T14: =R14*L14*$C$15*(N14-S14/2)/12 ->  | U14: =IF(T14>=$L$9,"OK","NG") -> 
B15: Fy (ksi) | C15: =+capfy -> 0 | E15: Mcr (k-ft) | F15: =(F$12*(F$13/F$14))/12 ->  | K15: 4 #11 bars: | L15: =4*1.56 -> 6.24 | M15: in2 | N15: =C11-(3+0.625+1.41/2) -> -4.33 | O15: =IF($C$14<=4,0.85,MAX(0.85-($C$14-4)*0.05,0.65)) -> 0.85 | P15: =L15*$C$15/(0.85*$C$14*O15*$C$10) ->  | Q15: =0.65+0.15*(N15/P15-1) ->  | R15: =IF(Q15<0.75,0.75,IF(Q15>0.9,0.9,Q15)) ->  | S15: =0.85*P15 ->  | T15: =R15*L15*$C$15*(N15-S15/2)/12 ->  | U15: =IF(T15>=$L$9,"OK","NG") -> 
E16: 1.2 Mcr (k-ft) | F16: =1.2*F15 ->  | H16: k3 (ksi) | I16: =((1.33*$F$10*12)/(0.9*$C$10*POWER($F$8,2))) -> 
H17: p3 | I17: =0.85*($C$14/$C$15)*(1-SQRT(1-((2*I16)/(0.85*$C$14)))) -> 
H18: As3 (in2) | I18: =I17*$C$10*$F$8 ->  | J18: (3)
B23: Notes:
B24: 1. As1 based on Mu, As2 on 1.2Mcr, As3 on 1.33Mu, and As4 on pmin
B25: 2. The number in parantheses beside the result indicates which Area is being used
B26: * This cover value assumes #5 stirrups, #10 main bars, and 3 in clearance

Sheet Pile Data
A1: Designation | B1: Designation | C1: Area | D1: Depth | E1: tw | F1: bf | G1: tf | H1: Iyy | I1: Syy | J1: ryy | K1: Zyy | L1: T | Z1: Force
A2: Metric | B2: English | C2: in2 | D2: in | E2: in | F2: in | G2: in | H2: in4 | I2: in3 | J2: in | K2: in3 | L2: in | R2: Steel tube | X2: Concrete Filling | Z2: Equilibrium
A3: HP14x117 | B3: HP14x117 | C3: 34.4 | D3: 14.2 | E3: 0.805 | F3: 14.9 | G3: 0.805 | H3: 443 | I3: 59.5 | J3: 3.59 | K3: 91.4 | L3: 11.25 | O3: angle | P3: angle | Q3: N.A. | R3: A1 | S3: y1 | T3: A2 | U3: y2 | V3: A3 | W3: y3 | X3: A1 | Y3: y1 | Z3: Check | AA3: Moment
A4: HP14x102 | B4: HP14x102 | C4: 30.1 | D4: 14 | E4: 0.705 | F4: 14.8 | G4: 0.705 | H4: 380 | I4: 51.4 | J4: 3.56 | K4: 78.8 | L4: 11.25 | O4: (degrees) | P4: (radians) | Q4: (in) | R4: (in2) | S4: (in) | T4: (in2) | U4: (in) | V4: (in2) | W4: (in) | X4: (in2) | Y4: (in) | Z4: (k) | AA4: (k-in)
A5: HP14x89 | B5: HP14x89 | C5: 26.1 | D5: 13.8 | E5: 0.615 | F5: 14.7 | G5: 0.615 | H5: 326 | I5: 44.3 | J5: 3.53 | K5: 67.7 | L5: 11.25 | O5: 0 | P5: =+O5*PI()/180 -> 0 | Q5: =COS(P5/2)*($D$25-2*$E$25)/2 -> 0 | R5: =+(($D$25-$E$25)*ACOS(Q5*2/($D$25-$E$25)))*$E$25 ->  | S5: =+(($D$25-$E$25)/2)*SIN(ACOS(2*Q5/($D$25-$E$25)))/(ACOS(2*Q5/($D$25-$E$25))) ->  | T5: =+(As/2)-R5 ->  | U5: =+(V5*W5-R5*S5)/T5 ->  | V5: =+(As/2) -> 0 | W5: =($D$25-$E$25)/PI() -> 0 | X5: =+($D$25/2-$E$25)^2*(P5-SIN(P5))/2 -> 0 | Y5: =+Q5 -> 0 | Z5: =ABS(0.4*0.85*Main!$G$546*'Pile Data'!X5+Main!$G$545*'Pile Data'!R5-Main!$G$545*('Pile Data'!T5+'Pile Data'!V5)) ->  | AA5: =(0.4*0.85*Main!$G$546*'Pile Data'!X5*Y5+Main!$G$545*('Pile Data'!R5*S5+'Pile Data'!T5*U5+'Pile Data'!V5*W5)) -> 
A6: HP14x73 | B6: HP14x73 | C6: 21.4 | D6: 13.6 | E6: 0.505 | F6: 14.6 | G6: 0.505 | H6: 261 | I6: 35.8 | J6: 3.49 | K6: 54.6 | L6: 11.25 | O6: =+O5+1 -> 1 | P6: =+O6*PI()/180 -> 0.01745329252 | Q6: 0 | T6: =+(As/2)-R6 ->  | V6: =+(As/2) -> 0 | W6: 0 | X6: 0 | Y6: =2*($D$25/2-$E$25)^3*SIN(P6/2)^3/(3*X6) ->  | Z6: =ABS(0.4*0.85*Main!$G$546*'Pile Data'!X6+Main!$G$545*'Pile Data'!R6-Main!$G$545*('Pile Data'!T6+'Pile Data'!V6)) ->  | AA6: =(0.4*0.85*Main!$G$546*'Pile Data'!X6*Y6+Main!$G$545*('Pile Data'!R6*S6+'Pile Data'!T6*U6+'Pile Data'!V6*W6)) -> 
A7: HP12x84 | B7: HP12x84 | C7: 24.6 | D7: 12.3 | E7: 0.685 | F7: 12.3 | G7: 0.685 | H7: 213 | I7: 34.6 | J7: 2.94 | K7: 53.2 | L7: 9.5 | O7: =+O6+1 -> 2 | P7: 0.03490658504 | Q7: 0 | V7: 0 | W7: 0 | X7: 0 | Z7: =ABS(0.4*0.85*Main!$G$546*'Pile Data'!X7+Main!$G$545*'Pile Data'!R7-Main!$G$545*('Pile Data'!T7+'Pile Data'!V7)) ->  | AA7: =(0.4*0.85*Main!$G$546*'Pile Data'!X7*Y7+Main!$G$545*('Pile Data'!R7*S7+'Pile Data'!T7*U7+'Pile Data'!V7*W7)) -> 
A8: HP12x74 | B8: HP12x74 | C8: 21.8 | D8: 12.1 | E8: 0.605 | F8: 12.2 | G8: 0.61 | H8: 186 | I8: 30.4 | J8: 2.92 | K8: 46.6 | L8: 9.5 | O8: 3 | P8: 0.05235987756 | Q8: 0 | V8: 0 | W8: 0 | X8: 0 | Z8: =ABS(0.4*0.85*Main!$G$546*'Pile Data'!X8+Main!$G$545*'Pile Data'!R8-Main!$G$545*('Pile Data'!T8+'Pile Data'!V8)) ->  | AA8: =(0.4*0.85*Main!$G$546*'Pile Data'!X8*Y8+Main!$G$545*('Pile Data'!R8*S8+'Pile Data'!T8*U8+'Pile Data'!V8*W8)) -> 
A9: HP12x63 | B9: HP12x63 | C9: 18.4 | D9: 11.9 | E9: 0.515 | F9: 12.1 | G9: 0.515 | H9: 153 | I9: 25.3 | J9: 2.88 | K9: 38.7 | L9: 9.5 | O9: 4 | P9: 0.06981317008 | Q9: 0 | V9: 0 | W9: 0 | X9: 0 | Z9: =ABS(0.4*0.85*Main!$G$546*'Pile Data'!X9+Main!$G$545*'Pile Data'!R9-Main!$G$545*('Pile Data'!T9+'Pile Data'!V9)) ->  | AA9: =(0.4*0.85*Main!$G$546*'Pile Data'!X9*Y9+Main!$G$545*('Pile Data'!R9*S9+'Pile Data'!T9*U9+'Pile Data'!V9*W9)) -> 
A10: HP12x53 | B10: HP12x53 | C10: 15.5 | D10: 11.8 | E10: 0.435 | F10: 12 | G10: 0.435 | H10: 127 | I10: 21.1 | J10: 2.86 | K10: 32.2 | L10: 9.5 | O10: 5 | P10: 0.0872664626 | Q10: 0 | V10: 0 | W10: 0 | X10: 0 | Z10: =ABS(0.4*0.85*Main!$G$546*'Pile Data'!X10+Main!$G$545*'Pile Data'!R10-Main!$G$545*('Pile Data'!T10+'Pile Data'!V10)) ->  | AA10: =(0.4*0.85*Main!$G$546*'Pile Data'!X10*Y10+Main!$G$545*('Pile Data'!R10*S10+'Pile Data'!T10*U10+'Pile Data'!V10*W10)) -> 
A11: HP10x57 | B11: HP10x57 | C11: 16.7 | D11: 9.99 | E11: 0.565 | F11: 10.2 | G11: 0.565 | H11: 101 | I11: 19.7 | J11: 2.45 | K11: 30.3 | L11: 7.5 | O11: 6 | P11: 0.1047197551 | Q11: 0 | V11: 0 | W11: 0 | X11: 0 | Z11: =ABS(0.4*0.85*Main!$G$546*'Pile Data'!X11+Main!$G$545*'Pile Data'!R11-Main!$G$545*('Pile Data'!T11+'Pile Data'!V11)) ->  | AA11: =(0.4*0.85*Main!$G$546*'Pile Data'!X11*Y11+Main!$G$545*('Pile Data'!R11*S11+'Pile Data'!T11*U11+'Pile Data'!V11*W11)) -> 
A12: HP10x42 | B12: HP10x42 | C12: 12.4 | D12: 9.7 | E12: 0.415 | F12: 10.1 | G12: 0.42 | H12: 71.7 | I12: 14.2 | J12: 2.41 | K12: 21.8 | L12: 7.5 | O12: 7 | P12: 0.1221730476 | Q12: 0 | V12: 0 | W12: 0 | X12: 0 | Z12: =ABS(0.4*0.85*Main!$G$546*'Pile Data'!X12+Main!$G$545*'Pile Data'!R12-Main!$G$545*('Pile Data'!T12+'Pile Data'!V12)) ->  | AA12: =(0.4*0.85*Main!$G$546*'Pile Data'!X12*Y12+Main!$G$545*('Pile Data'!R12*S12+'Pile Data'!T12*U12+'Pile Data'!V12*W12)) -> 
A13: HP8x36 | B13: HP8x36 | C13: 10.6 | D13: 8.02 | E13: 0.445 | F13: 8.16 | G13: 0.445 | H13: 40.3 | I13: 9.88 | J13: 1.95 | K13: 15.2 | L13: 5.75 | O13: 8 | P13: 0.1396263402 | Q13: 0 | V13: 0 | W13: 0 | X13: 0 | Z13: =ABS(0.4*0.85*Main!$G$546*'Pile Data'!X13+Main!$G$545*'Pile Data'!R13-Main!$G$545*('Pile Data'!T13+'Pile Data'!V13)) ->  | AA13: =(0.4*0.85*Main!$G$546*'Pile Data'!X13*Y13+Main!$G$545*('Pile Data'!R13*S13+'Pile Data'!T13*U13+'Pile Data'!V13*W13)) -> 
A14: HP14x117R | B14: HP14x117R | C14: 28.7266 | D14: 14.085 | E14: 0.68 | F14: 14.76 | G14: 0.68 | H14: 364.7656222 | I14: 49.42623607 | J14: 3.563402144 | K14: 75.542594 | O14: 9 | P14: 0.1570796327 | Q14: 0 | V14: 0 | W14: 0 | X14: 0 | Z14: =ABS(0.4*0.85*Main!$G$546*'Pile Data'!X14+Main!$G$545*'Pile Data'!R14-Main!$G$545*('Pile Data'!T14+'Pile Data'!V14)) ->  | AA14: =(0.4*0.85*Main!$G$546*'Pile Data'!X14*Y14+Main!$G$545*('Pile Data'!R14*S14+'Pile Data'!T14*U14+'Pile Data'!V14*W14)) -> 
A15: HP14x102R | B15: HP14x102R | C15: 24.3861 | D15: 13.885 | E15: 0.58 | F15: 14.66 | G15: 0.58 | H15: 304.7709606 | I15: 41.5785758 | J15: 3.535213254 | K15: 63.3956965 | O15: 10 | P15: 0.1745329252 | Q15: 0 | V15: 0 | W15: 0 | X15: 0 | Z15: =ABS(0.4*0.85*Main!$G$546*'Pile Data'!X15+Main!$G$545*'Pile Data'!R15-Main!$G$545*('Pile Data'!T15+'Pile Data'!V15)) ->  | AA15: =(0.4*0.85*Main!$G$546*'Pile Data'!X15*Y15+Main!$G$545*('Pile Data'!R15*S15+'Pile Data'!T15*U15+'Pile Data'!V15*W15)) -> 
A16: HP14x89R | B16: HP14x89R | C16: 20.51385 | D16: 13.705 | E16: 0.49 | F16: 14.57 | G16: 0.49 | H16: 252.7190214 | I16: 34.69032552 | J16: 3.509905129 | K16: 52.77361863 | O16: 11 | P16: 0.1919862177 | Q16: 0 | V16: 0 | W16: 0 | X16: 0 | Z16: =ABS(0.4*0.85*Main!$G$546*'Pile Data'!X16+Main!$G$545*'Pile Data'!R16-Main!$G$545*('Pile Data'!T16+'Pile Data'!V16)) ->  | AA16: =(0.4*0.85*Main!$G$546*'Pile Data'!X16*Y16+Main!$G$545*('Pile Data'!R16*S16+'Pile Data'!T16*U16+'Pile Data'!V16*W16)) -> 
A17: HP14x73R | B17: HP14x73R | C17: 15.8251 | D17: 13.485 | E17: 0.38 | F17: 14.46 | G17: 0.38 | H17: 191.5442745 | I17: 26.49298402 | J17: 3.479055492 | K17: 40.1867765 | O17: 12 | P17: 0.2094395102 | Q17: 0 | V17: 0 | W17: 0 | X17: 0 | Z17: =ABS(0.4*0.85*Main!$G$546*'Pile Data'!X17+Main!$G$545*'Pile Data'!R17-Main!$G$545*('Pile Data'!T17+'Pile Data'!V17)) ->  | AA17: =(0.4*0.85*Main!$G$546*'Pile Data'!X17*Y17+Main!$G$545*('Pile Data'!R17*S17+'Pile Data'!T17*U17+'Pile Data'!V17*W17)) -> 
A18: HP12x84R | B18: HP12x84R | C18: 19.81 | D18: 12.155 | E18: 0.56 | F18: 12.17 | G18: 0.56 | H18: 168.3934561 | I18: 27.67353428 | J18: 2.915549152 | K18: 42.335636 | O18: 13 | P18: 0.2268928028 | Q18: 0 | V18: 0 | W18: 0 | X18: 0 | Z18: =ABS(0.4*0.85*Main!$G$546*'Pile Data'!X18+Main!$G$545*'Pile Data'!R18-Main!$G$545*('Pile Data'!T18+'Pile Data'!V18)) ->  | AA18: =(0.4*0.85*Main!$G$546*'Pile Data'!X18*Y18+Main!$G$545*('Pile Data'!R18*S18+'Pile Data'!T18*U18+'Pile Data'!V18*W18)) -> 
A19: HP12x74R | B19: HP12x74R | C19: 17.079275 | D19: 12.005 | E19: 0.485 | F19: 12.09 | G19: 0.485 | H19: 142.9513398 | I19: 23.64786432 | J19: 2.893073048 | K19: 36.09469122 | O19: 14 | P19: 0.2443460953 | Q19: 0 | V19: 0 | W19: 0 | X19: 0 | Z19: =ABS(0.4*0.85*Main!$G$546*'Pile Data'!X19+Main!$G$545*'Pile Data'!R19-Main!$G$545*('Pile Data'!T19+'Pile Data'!V19)) ->  | AA19: =(0.4*0.85*Main!$G$546*'Pile Data'!X19*Y19+Main!$G$545*('Pile Data'!R19*S19+'Pile Data'!T19*U19+'Pile Data'!V19*W19)) -> 
A20: HP12x63R | B20: HP12x63R | C20: 13.66365 | D20: 11.815 | E20: 0.39 | F20: 12 | G20: 0.39 | H20: 112.3745488 | I20: 18.72909146 | J20: 2.867811593 | K20: 28.49960588 | O20: 15 | P20: 0.2617993878 | Q20: 0 | V20: 0 | W20: 0 | X20: 0 | Z20: =ABS(0.4*0.85*Main!$G$546*'Pile Data'!X20+Main!$G$545*'Pile Data'!R20-Main!$G$545*('Pile Data'!T20+'Pile Data'!V20)) ->  | AA20: =(0.4*0.85*Main!$G$546*'Pile Data'!X20*Y20+Main!$G$545*('Pile Data'!R20*S20+'Pile Data'!T20*U20+'Pile Data'!V20*W20)) -> 
A21: HP12x53R | B21: HP12x53R | C21: 10.81125 | D21: 11.655 | E21: 0.31 | F21: 11.92 | G21: 0.31 | H21: 87.53367285 | I21: 14.68685786 | J21: 2.845441234 | K21: 22.28850788 | O21: 16 | P21: 0.2792526803 | Q21: 0 | V21: 0 | W21: 0 | X21: 0 | Z21: =ABS(0.4*0.85*Main!$G$546*'Pile Data'!X21+Main!$G$545*'Pile Data'!R21-Main!$G$545*('Pile Data'!T21+'Pile Data'!V21)) ->  | AA21: =(0.4*0.85*Main!$G$546*'Pile Data'!X21*Y21+Main!$G$545*('Pile Data'!R21*S21+'Pile Data'!T21*U21+'Pile Data'!V21*W21)) -> 
A22: HP10x57R | B22: HP10x57R | C22: 12.8414 | D22: 9.865 | E22: 0.44 | F22: 10.1 | G22: 0.44 | H22: 75.61918819 | I22: 14.97409667 | J22: 2.426664955 | K22: 22.877074 | O22: 17 | P22: 0.2967059728 | Q22: 0 | V22: 0 | W22: 0 | X22: 0 | Z22: =ABS(0.4*0.85*Main!$G$546*'Pile Data'!X22+Main!$G$545*'Pile Data'!R22-Main!$G$545*('Pile Data'!T22+'Pile Data'!V22)) ->  | AA22: =(0.4*0.85*Main!$G$546*'Pile Data'!X22*Y22+Main!$G$545*('Pile Data'!R22*S22+'Pile Data'!T22*U22+'Pile Data'!V22*W22)) -> 
A23: HP10x42R | B23: HP10x42R | C23: 8.521075 | D23: 9.575 | E23: 0.295 | F23: 9.95 | G23: 0.295 | H23: 48.45207021 | I23: 9.73910959 | J23: 2.384563956 | K23: 14.79834866 | O23: 18 | P23: 0.3141592654 | Q23: 0 | V23: 0 | W23: 0 | X23: 0 | Z23: =ABS(0.4*0.85*Main!$G$546*'Pile Data'!X23+Main!$G$545*'Pile Data'!R23-Main!$G$545*('Pile Data'!T23+'Pile Data'!V23)) ->  | AA23: =(0.4*0.85*Main!$G$546*'Pile Data'!X23*Y23+Main!$G$545*('Pile Data'!R23*S23+'Pile Data'!T23*U23+'Pile Data'!V23*W23)) -> 
A24: HP8x36R | B24: HP8x36R | O24: 19 | P24: 0.3316125579 | Q24: 0 | V24: 0 | W24: 0 | X24: 0 | Z24: =ABS(0.4*0.85*Main!$G$546*'Pile Data'!X24+Main!$G$545*'Pile Data'!R24-Main!$G$545*('Pile Data'!T24+'Pile Data'!V24)) ->  | AA24: =(0.4*0.85*Main!$G$546*'Pile Data'!X24*Y24+Main!$G$545*('Pile Data'!R24*S24+'Pile Data'!T24*U24+'Pile Data'!V24*W24)) -> 
A25: Pipe | B25: =+FIXED(F25,1,TRUE)&" inch diameter pipe pile" -> 0.0 inch diameter pipe pile | C25: =+J26 ->  | D25: =+Main!G547 -> 0 | E25: =+Main!G548 -> 0 | F25: =+D25 -> 0 | G25: =+E25 -> 0 | H25: =PI()*(((D25-E25)/2)^3*E25+0.1*(D25/2-E25)^4/n) ->  | I25: =+H25/(D25/2) ->  | J25: =+(H25/C25)^0.5 ->  | K25: =(D25-E25)^2*E25 -> 0 | O25: 20 | P25: 0.3490658504 | Q25: 0 | V25: 0 | W25: 0 | X25: 0 | Z25: =ABS(0.4*0.85*Main!$G$546*'Pile Data'!X25+Main!$G$545*'Pile Data'!R25-Main!$G$545*('Pile Data'!T25+'Pile Data'!V25)) ->  | AA25: =(0.4*0.85*Main!$G$546*'Pile Data'!X25*Y25+Main!$G$545*('Pile Data'!R25*S25+'Pile Data'!T25*U25+'Pile Data'!V25*W25)) -> 
B26: =ROUND(29000/1820/Main!G546^0.5,0) ->  | C26: = n Ast = | D26: =+PI()*(D25^2/4-(D25-2*E25)^2/4) -> 0 | E26: in2 | F26: Ac = | G26: =PI()*(D25/2-E25)^2 -> 0 | H26: in2 | I26: Atransf = | J26: =+As+0.4*Ac/n ->  | K26: in2 | O26: 21 | P26: 0.3665191429 | Q26: 0 | V26: 0 | W26: 0 | X26: 0 | Z26: =ABS(0.4*0.85*Main!$G$546*'Pile Data'!X26+Main!$G$545*'Pile Data'!R26-Main!$G$545*('Pile Data'!T26+'Pile Data'!V26)) ->  | AA26: =(0.4*0.85*Main!$G$546*'Pile Data'!X26*Y26+Main!$G$545*('Pile Data'!R26*S26+'Pile Data'!T26*U26+'Pile Data'!V26*W26)) -> 
B27: Current Pile Data | O27: 22 | P27: 0.3839724354 | Q27: 0 | V27: 0 | W27: 0 | X27: 0 | Z27: =ABS(0.4*0.85*Main!$G$546*'Pile Data'!X27+Main!$G$545*'Pile Data'!R27-Main!$G$545*('Pile Data'!T27+'Pile Data'!V27)) ->  | AA27: =(0.4*0.85*Main!$G$546*'Pile Data'!X27*Y27+Main!$G$545*('Pile Data'!R27*S27+'Pile Data'!T27*U27+'Pile Data'!V27*W27)) -> 
A28: =VLOOKUP(piledesig,piledata,1,FALSE) ->  | B28: =VLOOKUP(piledesig,piledata,2,FALSE) ->  | C28: =VLOOKUP(piledesig,piledata,3,FALSE) ->  | D28: =VLOOKUP(piledesig,piledata,4,FALSE) ->  | E28: =VLOOKUP(piledesig,piledata,5,FALSE) ->  | F28: =VLOOKUP(piledesig,piledata,6,FALSE) ->  | G28: =VLOOKUP(piledesig,piledata,7,FALSE) ->  | H28: =VLOOKUP(piledesig,piledata,8,FALSE) ->  | I28: =VLOOKUP(piledesig,piledata,9,FALSE) ->  | J28: =VLOOKUP(piledesig,piledata,10,FALSE) ->  | K28: =VLOOKUP(piledesig,piledata,11,FALSE) ->  | O28: 23 | P28: 0.401425728 | Q28: 0 | V28: 0 | W28: 0 | X28: 0 | Z28: =ABS(0.4*0.85*Main!$G$546*'Pile Data'!X28+Main!$G$545*'Pile Data'!R28-Main!$G$545*('Pile Data'!T28+'Pile Data'!V28)) ->  | AA28: =(0.4*0.85*Main!$G$546*'Pile Data'!X28*Y28+Main!$G$545*('Pile Data'!R28*S28+'Pile Data'!T28*U28+'Pile Data'!V28*W28)) -> 
A29: HP360x174 | O29: 24 | P29: 0.4188790205 | Q29: 0 | V29: 0 | W29: 0 | X29: 0 | Z29: =ABS(0.4*0.85*Main!$G$546*'Pile Data'!X29+Main!$G$545*'Pile Data'!R29-Main!$G$545*('Pile Data'!T29+'Pile Data'!V29)) ->  | AA29: =(0.4*0.85*Main!$G$546*'Pile Data'!X29*Y29+Main!$G$545*('Pile Data'!R29*S29+'Pile Data'!T29*U29+'Pile Data'!V29*W29)) -> 
A30: HP360x152 | B30: For H-piles, the yield stress of the steel and the designation of the pile are required input. A list of available H-pile sections is provided. The user may then input the additional section properties manually, or press the button to the right, and the properties will be automatically retrieved. | O30: 25 | P30: 0.436332313 | Q30: 0 | V30: 0 | W30: 0 | X30: 0 | Z30: =ABS(0.4*0.85*Main!$G$546*'Pile Data'!X30+Main!$G$545*'Pile Data'!R30-Main!$G$545*('Pile Data'!T30+'Pile Data'!V30)) ->  | AA30: =(0.4*0.85*Main!$G$546*'Pile Data'!X30*Y30+Main!$G$545*('Pile Data'!R30*S30+'Pile Data'!T30*U30+'Pile Data'!V30*W30)) -> 
A31: HP360x132 | O31: 26 | P31: 0.4537856055 | Q31: 0 | V31: 0 | W31: 0 | X31: 0 | Z31: =ABS(0.4*0.85*Main!$G$546*'Pile Data'!X31+Main!$G$545*'Pile Data'!R31-Main!$G$545*('Pile Data'!T31+'Pile Data'!V31)) ->  | AA31: =(0.4*0.85*Main!$G$546*'Pile Data'!X31*Y31+Main!$G$545*('Pile Data'!R31*S31+'Pile Data'!T31*U31+'Pile Data'!V31*W31)) -> 
A32: HP360x108 | B32: For pipe piles, the compressive strength of the concrete, the yield stress of the steel, and the diameter and thickness of the pipe are required input. The user may then input the additional section properties manually, or press the button to the right, and the transformed properties, assuming only 40% of the concrete is effective (see DM-4 Ap.G.1.4.2.3), will be automatically calculated. The plastic section modulus is calculated ignoring the concrete contribution. | O32: 27 | P32: 0.471238898 | Q32: 0 | V32: 0 | W32: 0 | X32: 0 | Z32: =ABS(0.4*0.85*Main!$G$546*'Pile Data'!X32+Main!$G$545*'Pile Data'!R32-Main!$G$545*('Pile Data'!T32+'Pile Data'!V32)) ->  | AA32: =(0.4*0.85*Main!$G$546*'Pile Data'!X32*Y32+Main!$G$545*('Pile Data'!R32*S32+'Pile Data'!T32*U32+'Pile Data'!V32*W32)) -> 
A33: HP310x125 | O33: 28 | P33: 0.4886921906 | Q33: 0 | V33: 0 | W33: 0 | X33: 0 | Z33: =ABS(0.4*0.85*Main!$G$546*'Pile Data'!X33+Main!$G$545*'Pile Data'!R33-Main!$G$545*('Pile Data'!T33+'Pile Data'!V33)) ->  | AA33: =(0.4*0.85*Main!$G$546*'Pile Data'!X33*Y33+Main!$G$545*('Pile Data'!R33*S33+'Pile Data'!T33*U33+'Pile Data'!V33*W33)) -> 
A34: HP310x110 | O34: 29 | P34: 0.5061454831 | Q34: 0 | V34: 0 | W34: 0 | X34: 0 | Z34: =ABS(0.4*0.85*Main!$G$546*'Pile Data'!X34+Main!$G$545*'Pile Data'!R34-Main!$G$545*('Pile Data'!T34+'Pile Data'!V34)) ->  | AA34: =(0.4*0.85*Main!$G$546*'Pile Data'!X34*Y34+Main!$G$545*('Pile Data'!R34*S34+'Pile Data'!T34*U34+'Pile Data'!V34*W34)) -> 
A35: HP310x94 | O35: 30 | P35: 0.5235987756 | Q35: 0 | V35: 0 | W35: 0 | X35: 0 | Z35: =ABS(0.4*0.85*Main!$G$546*'Pile Data'!X35+Main!$G$545*'Pile Data'!R35-Main!$G$545*('Pile Data'!T35+'Pile Data'!V35)) ->  | AA35: =(0.4*0.85*Main!$G$546*'Pile Data'!X35*Y35+Main!$G$545*('Pile Data'!R35*S35+'Pile Data'!T35*U35+'Pile Data'!V35*W35)) -> 
A36: HP310x79 | B36: HP section properties taken from the AISC Steel Construction Manual, 14th Edition. | O36: 31 | P36: 0.5410520681 | Q36: 0 | V36: 0 | W36: 0 | X36: 0 | Z36: =ABS(0.4*0.85*Main!$G$546*'Pile Data'!X36+Main!$G$545*'Pile Data'!R36-Main!$G$545*('Pile Data'!T36+'Pile Data'!V36)) ->  | AA36: =(0.4*0.85*Main!$G$546*'Pile Data'!X36*Y36+Main!$G$545*('Pile Data'!R36*S36+'Pile Data'!T36*U36+'Pile Data'!V36*W36)) -> 
A37: HP250x85 | O37: 32 | P37: 0.5585053606 | Q37: =COS(P37/2)*($D$25-2*$E$25)/2 -> 0 | R37: =+(($D$25-$E$25)*ACOS(Q37*2/($D$25-$E$25)))*$E$25 ->  | S37: =+(($D$25-$E$25)/2)*SIN(ACOS(2*Q37/($D$25-$E$25)))/(ACOS(2*Q37/($D$25-$E$25))) ->  | V37: 0 | W37: =($D$25-$E$25)/PI() -> 0 | X37: =+($D$25/2-$E$25)^2*(P37-SIN(P37))/2 -> 0 | Z37: =ABS(0.4*0.85*Main!$G$546*'Pile Data'!X37+Main!$G$545*'Pile Data'!R37-Main!$G$545*('Pile Data'!T37+'Pile Data'!V37)) ->  | AA37: =(0.4*0.85*Main!$G$546*'Pile Data'!X37*Y37+Main!$G$545*('Pile Data'!R37*S37+'Pile Data'!T37*U37+'Pile Data'!V37*W37)) -> 
A38: HP250x62 | O38: 33 | P38: 0.5759586532 | Q38: 0 | V38: 0 | W38: 0 | X38: 0 | Y38: =2*($D$25/2-$E$25)^3*SIN(P38/2)^3/(3*X38) ->  | Z38: =ABS(0.4*0.85*Main!$G$546*'Pile Data'!X38+Main!$G$545*'Pile Data'!R38-Main!$G$545*('Pile Data'!T38+'Pile Data'!V38)) ->  | AA38: =(0.4*0.85*Main!$G$546*'Pile Data'!X38*Y38+Main!$G$545*('Pile Data'!R38*S38+'Pile Data'!T38*U38+'Pile Data'!V38*W38)) -> 
A39: HP200x54 | O39: 34 | P39: 0.5934119457 | Q39: 0 | V39: 0 | W39: 0 | X39: 0 | Z39: =ABS(0.4*0.85*Main!$G$546*'Pile Data'!X39+Main!$G$545*'Pile Data'!R39-Main!$G$545*('Pile Data'!T39+'Pile Data'!V39)) ->  | AA39: =(0.4*0.85*Main!$G$546*'Pile Data'!X39*Y39+Main!$G$545*('Pile Data'!R39*S39+'Pile Data'!T39*U39+'Pile Data'!V39*W39)) -> 
O40: 35 | P40: 0.6108652382 | Q40: 0 | V40: 0 | W40: 0 | X40: 0 | Z40: =ABS(0.4*0.85*Main!$G$546*'Pile Data'!X40+Main!$G$545*'Pile Data'!R40-Main!$G$545*('Pile Data'!T40+'Pile Data'!V40)) ->  | AA40: =(0.4*0.85*Main!$G$546*'Pile Data'!X40*Y40+Main!$G$545*('Pile Data'!R40*S40+'Pile Data'!T40*U40+'Pile Data'!V40*W40)) -> 
O41: 36 | P41: 0.6283185307 | Q41: 0 | V41: 0 | W41: 0 | X41: 0 | Z41: =ABS(0.4*0.85*Main!$G$546*'Pile Data'!X41+Main!$G$545*'Pile Data'!R41-Main!$G$545*('Pile Data'!T41+'Pile Data'!V41)) ->  | AA41: =(0.4*0.85*Main!$G$546*'Pile Data'!X41*Y41+Main!$G$545*('Pile Data'!R41*S41+'Pile Data'!T41*U41+'Pile Data'!V41*W41)) -> 
O42: 37 | P42: 0.6457718232 | Q42: 0 | V42: 0 | W42: 0 | X42: 0 | Z42: =ABS(0.4*0.85*Main!$G$546*'Pile Data'!X42+Main!$G$545*'Pile Data'!R42-Main!$G$545*('Pile Data'!T42+'Pile Data'!V42)) ->  | AA42: =(0.4*0.85*Main!$G$546*'Pile Data'!X42*Y42+Main!$G$545*('Pile Data'!R42*S42+'Pile Data'!T42*U42+'Pile Data'!V42*W42)) -> 
O43: 38 | P43: 0.6632251158 | Q43: 0 | V43: 0 | W43: 0 | X43: 0 | Z43: =ABS(0.4*0.85*Main!$G$546*'Pile Data'!X43+Main!$G$545*'Pile Data'!R43-Main!$G$545*('Pile Data'!T43+'Pile Data'!V43)) ->  | AA43: =(0.4*0.85*Main!$G$546*'Pile Data'!X43*Y43+Main!$G$545*('Pile Data'!R43*S43+'Pile Data'!T43*U43+'Pile Data'!V43*W43)) -> 
O44: 39 | P44: 0.6806784083 | Q44: 0 | V44: 0 | W44: 0 | X44: 0 | Z44: =ABS(0.4*0.85*Main!$G$546*'Pile Data'!X44+Main!$G$545*'Pile Data'!R44-Main!$G$545*('Pile Data'!T44+'Pile Data'!V44)) ->  | AA44: =(0.4*0.85*Main!$G$546*'Pile Data'!X44*Y44+Main!$G$545*('Pile Data'!R44*S44+'Pile Data'!T44*U44+'Pile Data'!V44*W44)) -> 
O45: 40 | P45: 0.6981317008 | Q45: 0 | V45: 0 | W45: 0 | X45: 0 | Z45: =ABS(0.4*0.85*Main!$G$546*'Pile Data'!X45+Main!$G$545*'Pile Data'!R45-Main!$G$545*('Pile Data'!T45+'Pile Data'!V45)) ->  | AA45: =(0.4*0.85*Main!$G$546*'Pile Data'!X45*Y45+Main!$G$545*('Pile Data'!R45*S45+'Pile Data'!T45*U45+'Pile Data'!V45*W45)) -> 
O46: 41 | P46: 0.7155849933 | Q46: 0 | V46: 0 | W46: 0 | X46: 0 | Z46: =ABS(0.4*0.85*Main!$G$546*'Pile Data'!X46+Main!$G$545*'Pile Data'!R46-Main!$G$545*('Pile Data'!T46+'Pile Data'!V46)) ->  | AA46: =(0.4*0.85*Main!$G$546*'Pile Data'!X46*Y46+Main!$G$545*('Pile Data'!R46*S46+'Pile Data'!T46*U46+'Pile Data'!V46*W46)) -> 
O47: 42 | P47: 0.7330382858 | Q47: 0 | V47: 0 | W47: 0 | X47: 0 | Z47: =ABS(0.4*0.85*Main!$G$546*'Pile Data'!X47+Main!$G$545*'Pile Data'!R47-Main!$G$545*('Pile Data'!T47+'Pile Data'!V47)) ->  | AA47: =(0.4*0.85*Main!$G$546*'Pile Data'!X47*Y47+Main!$G$545*('Pile Data'!R47*S47+'Pile Data'!T47*U47+'Pile Data'!V47*W47)) -> 
O48: 43 | P48: 0.7504915784 | Q48: 0 | V48: 0 | W48: 0 | X48: 0 | Z48: =ABS(0.4*0.85*Main!$G$546*'Pile Data'!X48+Main!$G$545*'Pile Data'!R48-Main!$G$545*('Pile Data'!T48+'Pile Data'!V48)) ->  | AA48: =(0.4*0.85*Main!$G$546*'Pile Data'!X48*Y48+Main!$G$545*('Pile Data'!R48*S48+'Pile Data'!T48*U48+'Pile Data'!V48*W48)) -> 
O49: 44 | P49: 0.7679448709 | Q49: 0 | V49: 0 | W49: 0 | X49: 0 | Z49: =ABS(0.4*0.85*Main!$G$546*'Pile Data'!X49+Main!$G$545*'Pile Data'!R49-Main!$G$545*('Pile Data'!T49+'Pile Data'!V49)) ->  | AA49: =(0.4*0.85*Main!$G$546*'Pile Data'!X49*Y49+Main!$G$545*('Pile Data'!R49*S49+'Pile Data'!T49*U49+'Pile Data'!V49*W49)) -> 
O50: 45 | P50: 0.7853981634 | Q50: 0 | V50: 0 | W50: 0 | X50: 0 | Z50: =ABS(0.4*0.85*Main!$G$546*'Pile Data'!X50+Main!$G$545*'Pile Data'!R50-Main!$G$545*('Pile Data'!T50+'Pile Data'!V50)) ->  | AA50: =(0.4*0.85*Main!$G$546*'Pile Data'!X50*Y50+Main!$G$545*('Pile Data'!R50*S50+'Pile Data'!T50*U50+'Pile Data'!V50*W50)) -> 
O51: 46 | P51: 0.8028514559 | Q51: 0 | V51: 0 | W51: 0 | X51: 0 | Z51: =ABS(0.4*0.85*Main!$G$546*'Pile Data'!X51+Main!$G$545*'Pile Data'!R51-Main!$G$545*('Pile Data'!T51+'Pile Data'!V51)) ->  | AA51: =(0.4*0.85*Main!$G$546*'Pile Data'!X51*Y51+Main!$G$545*('Pile Data'!R51*S51+'Pile Data'!T51*U51+'Pile Data'!V51*W51)) -> 
O52: 47 | P52: 0.8203047484 | Q52: 0 | V52: 0 | W52: 0 | X52: 0 | Z52: =ABS(0.4*0.85*Main!$G$546*'Pile Data'!X52+Main!$G$545*'Pile Data'!R52-Main!$G$545*('Pile Data'!T52+'Pile Data'!V52)) ->  | AA52: =(0.4*0.85*Main!$G$546*'Pile Data'!X52*Y52+Main!$G$545*('Pile Data'!R52*S52+'Pile Data'!T52*U52+'Pile Data'!V52*W52)) -> 
O53: 48 | P53: 0.837758041 | Q53: 0 | V53: 0 | W53: 0 | X53: 0 | Z53: =ABS(0.4*0.85*Main!$G$546*'Pile Data'!X53+Main!$G$545*'Pile Data'!R53-Main!$G$545*('Pile Data'!T53+'Pile Data'!V53)) ->  | AA53: =(0.4*0.85*Main!$G$546*'Pile Data'!X53*Y53+Main!$G$545*('Pile Data'!R53*S53+'Pile Data'!T53*U53+'Pile Data'!V53*W53)) -> 
O54: 49 | P54: 0.8552113335 | Q54: 0 | V54: 0 | W54: 0 | X54: 0 | Z54: =ABS(0.4*0.85*Main!$G$546*'Pile Data'!X54+Main!$G$545*'Pile Data'!R54-Main!$G$545*('Pile Data'!T54+'Pile Data'!V54)) ->  | AA54: =(0.4*0.85*Main!$G$546*'Pile Data'!X54*Y54+Main!$G$545*('Pile Data'!R54*S54+'Pile Data'!T54*U54+'Pile Data'!V54*W54)) -> 
O55: 50 | P55: 0.872664626 | Q55: 0 | V55: 0 | W55: 0 | X55: 0 | Z55: =ABS(0.4*0.85*Main!$G$546*'Pile Data'!X55+Main!$G$545*'Pile Data'!R55-Main!$G$545*('Pile Data'!T55+'Pile Data'!V55)) ->  | AA55: =(0.4*0.85*Main!$G$546*'Pile Data'!X55*Y55+Main!$G$545*('Pile Data'!R55*S55+'Pile Data'!T55*U55+'Pile Data'!V55*W55)) -> 
O56: 51 | P56: 0.8901179185 | Q56: 0 | V56: 0 | W56: 0 | X56: 0 | Z56: =ABS(0.4*0.85*Main!$G$546*'Pile Data'!X56+Main!$G$545*'Pile Data'!R56-Main!$G$545*('Pile Data'!T56+'Pile Data'!V56)) ->  | AA56: =(0.4*0.85*Main!$G$546*'Pile Data'!X56*Y56+Main!$G$545*('Pile Data'!R56*S56+'Pile Data'!T56*U56+'Pile Data'!V56*W56)) -> 
O57: 52 | P57: 0.907571211 | Q57: 0 | V57: 0 | W57: 0 | X57: 0 | Z57: =ABS(0.4*0.85*Main!$G$546*'Pile Data'!X57+Main!$G$545*'Pile Data'!R57-Main!$G$545*('Pile Data'!T57+'Pile Data'!V57)) ->  | AA57: =(0.4*0.85*Main!$G$546*'Pile Data'!X57*Y57+Main!$G$545*('Pile Data'!R57*S57+'Pile Data'!T57*U57+'Pile Data'!V57*W57)) -> 
O58: 53 | P58: 0.9250245036 | Q58: 0 | V58: 0 | W58: 0 | X58: 0 | Z58: =ABS(0.4*0.85*Main!$G$546*'Pile Data'!X58+Main!$G$545*'Pile Data'!R58-Main!$G$545*('Pile Data'!T58+'Pile Data'!V58)) ->  | AA58: =(0.4*0.85*Main!$G$546*'Pile Data'!X58*Y58+Main!$G$545*('Pile Data'!R58*S58+'Pile Data'!T58*U58+'Pile Data'!V58*W58)) -> 
O59: 54 | P59: 0.9424777961 | Q59: 0 | V59: 0 | W59: 0 | X59: 0 | Z59: =ABS(0.4*0.85*Main!$G$546*'Pile Data'!X59+Main!$G$545*'Pile Data'!R59-Main!$G$545*('Pile Data'!T59+'Pile Data'!V59)) ->  | AA59: =(0.4*0.85*Main!$G$546*'Pile Data'!X59*Y59+Main!$G$545*('Pile Data'!R59*S59+'Pile Data'!T59*U59+'Pile Data'!V59*W59)) -> 
O60: 55 | P60: 0.9599310886 | Q60: 0 | V60: 0 | W60: 0 | X60: 0 | Z60: =ABS(0.4*0.85*Main!$G$546*'Pile Data'!X60+Main!$G$545*'Pile Data'!R60-Main!$G$545*('Pile Data'!T60+'Pile Data'!V60)) ->  | AA60: =(0.4*0.85*Main!$G$546*'Pile Data'!X60*Y60+Main!$G$545*('Pile Data'!R60*S60+'Pile Data'!T60*U60+'Pile Data'!V60*W60)) -> 
O61: 56 | P61: 0.9773843811 | Q61: 0 | V61: 0 | W61: 0 | X61: 0 | Z61: =ABS(0.4*0.85*Main!$G$546*'Pile Data'!X61+Main!$G$545*'Pile Data'!R61-Main!$G$545*('Pile Data'!T61+'Pile Data'!V61)) ->  | AA61: =(0.4*0.85*Main!$G$546*'Pile Data'!X61*Y61+Main!$G$545*('Pile Data'!R61*S61+'Pile Data'!T61*U61+'Pile Data'!V61*W61)) -> 
O62: 57 | P62: 0.9948376736 | Q62: 0 | V62: 0 | W62: 0 | X62: 0 | Z62: =ABS(0.4*0.85*Main!$G$546*'Pile Data'!X62+Main!$G$545*'Pile Data'!R62-Main!$G$545*('Pile Data'!T62+'Pile Data'!V62)) ->  | AA62: =(0.4*0.85*Main!$G$546*'Pile Data'!X62*Y62+Main!$G$545*('Pile Data'!R62*S62+'Pile Data'!T62*U62+'Pile Data'!V62*W62)) -> 
O63: 58 | P63: 1.012290966 | Q63: 0 | V63: 0 | W63: 0 | X63: 0 | Z63: =ABS(0.4*0.85*Main!$G$546*'Pile Data'!X63+Main!$G$545*'Pile Data'!R63-Main!$G$545*('Pile Data'!T63+'Pile Data'!V63)) ->  | AA63: =(0.4*0.85*Main!$G$546*'Pile Data'!X63*Y63+Main!$G$545*('Pile Data'!R63*S63+'Pile Data'!T63*U63+'Pile Data'!V63*W63)) -> 
O64: 59 | P64: 1.029744259 | Q64: 0 | V64: 0 | W64: 0 | X64: 0 | Z64: =ABS(0.4*0.85*Main!$G$546*'Pile Data'!X64+Main!$G$545*'Pile Data'!R64-Main!$G$545*('Pile Data'!T64+'Pile Data'!V64)) ->  | AA64: =(0.4*0.85*Main!$G$546*'Pile Data'!X64*Y64+Main!$G$545*('Pile Data'!R64*S64+'Pile Data'!T64*U64+'Pile Data'!V64*W64)) -> 
O65: 60 | P65: 1.047197551 | Q65: 0 | V65: 0 | W65: 0 | X65: 0 | Z65: =ABS(0.4*0.85*Main!$G$546*'Pile Data'!X65+Main!$G$545*'Pile Data'!R65-Main!$G$545*('Pile Data'!T65+'Pile Data'!V65)) ->  | AA65: =(0.4*0.85*Main!$G$546*'Pile Data'!X65*Y65+Main!$G$545*('Pile Data'!R65*S65+'Pile Data'!T65*U65+'Pile Data'!V65*W65)) -> 
O66: 61 | P66: 1.064650844 | Q66: 0 | V66: 0 | W66: 0 | X66: 0 | Z66: =ABS(0.4*0.85*Main!$G$546*'Pile Data'!X66+Main!$G$545*'Pile Data'!R66-Main!$G$545*('Pile Data'!T66+'Pile Data'!V66)) ->  | AA66: =(0.4*0.85*Main!$G$546*'Pile Data'!X66*Y66+Main!$G$545*('Pile Data'!R66*S66+'Pile Data'!T66*U66+'Pile Data'!V66*W66)) -> 
O67: 62 | P67: 1.082104136 | Q67: 0 | V67: 0 | W67: 0 | X67: 0 | Z67: =ABS(0.4*0.85*Main!$G$546*'Pile Data'!X67+Main!$G$545*'Pile Data'!R67-Main!$G$545*('Pile Data'!T67+'Pile Data'!V67)) ->  | AA67: =(0.4*0.85*Main!$G$546*'Pile Data'!X67*Y67+Main!$G$545*('Pile Data'!R67*S67+'Pile Data'!T67*U67+'Pile Data'!V67*W67)) -> 
O68: 63 | P68: 1.099557429 | Q68: 0 | V68: 0 | W68: 0 | X68: 0 | Z68: =ABS(0.4*0.85*Main!$G$546*'Pile Data'!X68+Main!$G$545*'Pile Data'!R68-Main!$G$545*('Pile Data'!T68+'Pile Data'!V68)) ->  | AA68: =(0.4*0.85*Main!$G$546*'Pile Data'!X68*Y68+Main!$G$545*('Pile Data'!R68*S68+'Pile Data'!T68*U68+'Pile Data'!V68*W68)) -> 
O69: 64 | P69: 1.117010721 | Q69: =COS(P69/2)*($D$25-2*$E$25)/2 -> 0 | R69: =+(($D$25-$E$25)*ACOS(Q69*2/($D$25-$E$25)))*$E$25 ->  | S69: =+(($D$25-$E$25)/2)*SIN(ACOS(2*Q69/($D$25-$E$25)))/(ACOS(2*Q69/($D$25-$E$25))) ->  | U69: =+(V69*W69-R69*S69)/T69 ->  | V69: 0 | W69: =($D$25-$E$25)/PI() -> 0 | X69: =+($D$25/2-$E$25)^2*(P69-SIN(P69))/2 -> 0 | Z69: =ABS(0.4*0.85*Main!$G$546*'Pile Data'!X69+Main!$G$545*'Pile Data'!R69-Main!$G$545*('Pile Data'!T69+'Pile Data'!V69)) ->  | AA69: =(0.4*0.85*Main!$G$546*'Pile Data'!X69*Y69+Main!$G$545*('Pile Data'!R69*S69+'Pile Data'!T69*U69+'Pile Data'!V69*W69)) -> 
O70: 65 | P70: =+O70*PI()/180 -> 1.134464014 | Q70: 0 | T70: =+(As/2)-R70 ->  | V70: =+(As/2) -> 0 | W70: 0 | X70: 0 | Y70: =2*($D$25/2-$E$25)^3*SIN(P70/2)^3/(3*X70) ->  | Z70: =ABS(0.4*0.85*Main!$G$546*'Pile Data'!X70+Main!$G$545*'Pile Data'!R70-Main!$G$545*('Pile Data'!T70+'Pile Data'!V70)) ->  | AA70: =(0.4*0.85*Main!$G$546*'Pile Data'!X70*Y70+Main!$G$545*('Pile Data'!R70*S70+'Pile Data'!T70*U70+'Pile Data'!V70*W70)) -> 
O71: =+O70+1 -> 66 | P71: 1.151917306 | Q71: 0 | V71: 0 | W71: 0 | X71: 0 | Z71: =ABS(0.4*0.85*Main!$G$546*'Pile Data'!X71+Main!$G$545*'Pile Data'!R71-Main!$G$545*('Pile Data'!T71+'Pile Data'!V71)) ->  | AA71: =(0.4*0.85*Main!$G$546*'Pile Data'!X71*Y71+Main!$G$545*('Pile Data'!R71*S71+'Pile Data'!T71*U71+'Pile Data'!V71*W71)) -> 
O72: 67 | P72: 1.169370599 | Q72: 0 | V72: 0 | W72: 0 | X72: 0 | Z72: =ABS(0.4*0.85*Main!$G$546*'Pile Data'!X72+Main!$G$545*'Pile Data'!R72-Main!$G$545*('Pile Data'!T72+'Pile Data'!V72)) ->  | AA72: =(0.4*0.85*Main!$G$546*'Pile Data'!X72*Y72+Main!$G$545*('Pile Data'!R72*S72+'Pile Data'!T72*U72+'Pile Data'!V72*W72)) -> 
O73: 68 | P73: 1.186823891 | Q73: 0 | V73: 0 | W73: 0 | X73: 0 | Z73: =ABS(0.4*0.85*Main!$G$546*'Pile Data'!X73+Main!$G$545*'Pile Data'!R73-Main!$G$545*('Pile Data'!T73+'Pile Data'!V73)) ->  | AA73: =(0.4*0.85*Main!$G$546*'Pile Data'!X73*Y73+Main!$G$545*('Pile Data'!R73*S73+'Pile Data'!T73*U73+'Pile Data'!V73*W73)) -> 
O74: 69 | P74: 1.204277184 | Q74: 0 | V74: 0 | W74: 0 | X74: 0 | Z74: =ABS(0.4*0.85*Main!$G$546*'Pile Data'!X74+Main!$G$545*'Pile Data'!R74-Main!$G$545*('Pile Data'!T74+'Pile Data'!V74)) ->  | AA74: =(0.4*0.85*Main!$G$546*'Pile Data'!X74*Y74+Main!$G$545*('Pile Data'!R74*S74+'Pile Data'!T74*U74+'Pile Data'!V74*W74)) -> 
O75: 70 | P75: 1.221730476 | Q75: 0 | V75: 0 | W75: 0 | X75: 0 | Z75: =ABS(0.4*0.85*Main!$G$546*'Pile Data'!X75+Main!$G$545*'Pile Data'!R75-Main!$G$545*('Pile Data'!T75+'Pile Data'!V75)) ->  | AA75: =(0.4*0.85*Main!$G$546*'Pile Data'!X75*Y75+Main!$G$545*('Pile Data'!R75*S75+'Pile Data'!T75*U75+'Pile Data'!V75*W75)) -> 
O76: 71 | P76: 1.239183769 | Q76: 0 | V76: 0 | W76: 0 | X76: 0 | Z76: =ABS(0.4*0.85*Main!$G$546*'Pile Data'!X76+Main!$G$545*'Pile Data'!R76-Main!$G$545*('Pile Data'!T76+'Pile Data'!V76)) ->  | AA76: =(0.4*0.85*Main!$G$546*'Pile Data'!X76*Y76+Main!$G$545*('Pile Data'!R76*S76+'Pile Data'!T76*U76+'Pile Data'!V76*W76)) -> 
O77: 72 | P77: 1.256637061 | Q77: 0 | V77: 0 | W77: 0 | X77: 0 | Z77: =ABS(0.4*0.85*Main!$G$546*'Pile Data'!X77+Main!$G$545*'Pile Data'!R77-Main!$G$545*('Pile Data'!T77+'Pile Data'!V77)) ->  | AA77: =(0.4*0.85*Main!$G$546*'Pile Data'!X77*Y77+Main!$G$545*('Pile Data'!R77*S77+'Pile Data'!T77*U77+'Pile Data'!V77*W77)) -> 
O78: 73 | P78: 1.274090354 | Q78: 0 | V78: 0 | W78: 0 | X78: 0 | Z78: =ABS(0.4*0.85*Main!$G$546*'Pile Data'!X78+Main!$G$545*'Pile Data'!R78-Main!$G$545*('Pile Data'!T78+'Pile Data'!V78)) ->  | AA78: =(0.4*0.85*Main!$G$546*'Pile Data'!X78*Y78+Main!$G$545*('Pile Data'!R78*S78+'Pile Data'!T78*U78+'Pile Data'!V78*W78)) -> 
O79: 74 | P79: 1.291543646 | Q79: 0 | V79: 0 | W79: 0 | X79: 0 | Z79: =ABS(0.4*0.85*Main!$G$546*'Pile Data'!X79+Main!$G$545*'Pile Data'!R79-Main!$G$545*('Pile Data'!T79+'Pile Data'!V79)) ->  | AA79: =(0.4*0.85*Main!$G$546*'Pile Data'!X79*Y79+Main!$G$545*('Pile Data'!R79*S79+'Pile Data'!T79*U79+'Pile Data'!V79*W79)) -> 
O80: 75 | P80: 1.308996939 | Q80: 0 | V80: 0 | W80: 0 | X80: 0 | Z80: =ABS(0.4*0.85*Main!$G$546*'Pile Data'!X80+Main!$G$545*'Pile Data'!R80-Main!$G$545*('Pile Data'!T80+'Pile Data'!V80)) ->  | AA80: =(0.4*0.85*Main!$G$546*'Pile Data'!X80*Y80+Main!$G$545*('Pile Data'!R80*S80+'Pile Data'!T80*U80+'Pile Data'!V80*W80)) -> 
O81: 76 | P81: 1.326450232 | Q81: 0 | V81: 0 | W81: 0 | X81: 0 | Z81: =ABS(0.4*0.85*Main!$G$546*'Pile Data'!X81+Main!$G$545*'Pile Data'!R81-Main!$G$545*('Pile Data'!T81+'Pile Data'!V81)) ->  | AA81: =(0.4*0.85*Main!$G$546*'Pile Data'!X81*Y81+Main!$G$545*('Pile Data'!R81*S81+'Pile Data'!T81*U81+'Pile Data'!V81*W81)) -> 
O82: 77 | P82: 1.343903524 | Q82: 0 | V82: 0 | W82: 0 | X82: 0 | Z82: =ABS(0.4*0.85*Main!$G$546*'Pile Data'!X82+Main!$G$545*'Pile Data'!R82-Main!$G$545*('Pile Data'!T82+'Pile Data'!V82)) ->  | AA82: =(0.4*0.85*Main!$G$546*'Pile Data'!X82*Y82+Main!$G$545*('Pile Data'!R82*S82+'Pile Data'!T82*U82+'Pile Data'!V82*W82)) -> 
O83: 78 | P83: 1.361356817 | Q83: 0 | V83: 0 | W83: 0 | X83: 0 | Z83: =ABS(0.4*0.85*Main!$G$546*'Pile Data'!X83+Main!$G$545*'Pile Data'!R83-Main!$G$545*('Pile Data'!T83+'Pile Data'!V83)) ->  | AA83: =(0.4*0.85*Main!$G$546*'Pile Data'!X83*Y83+Main!$G$545*('Pile Data'!R83*S83+'Pile Data'!T83*U83+'Pile Data'!V83*W83)) -> 
O84: 79 | P84: 1.378810109 | Q84: 0 | V84: 0 | W84: 0 | X84: 0 | Z84: =ABS(0.4*0.85*Main!$G$546*'Pile Data'!X84+Main!$G$545*'Pile Data'!R84-Main!$G$545*('Pile Data'!T84+'Pile Data'!V84)) ->  | AA84: =(0.4*0.85*Main!$G$546*'Pile Data'!X84*Y84+Main!$G$545*('Pile Data'!R84*S84+'Pile Data'!T84*U84+'Pile Data'!V84*W84)) -> 
O85: 80 | P85: 1.396263402 | Q85: 0 | V85: 0 | W85: 0 | X85: 0 | Z85: =ABS(0.4*0.85*Main!$G$546*'Pile Data'!X85+Main!$G$545*'Pile Data'!R85-Main!$G$545*('Pile Data'!T85+'Pile Data'!V85)) ->  | AA85: =(0.4*0.85*Main!$G$546*'Pile Data'!X85*Y85+Main!$G$545*('Pile Data'!R85*S85+'Pile Data'!T85*U85+'Pile Data'!V85*W85)) -> 
O86: 81 | P86: 1.413716694 | Q86: 0 | V86: 0 | W86: 0 | X86: 0 | Z86: =ABS(0.4*0.85*Main!$G$546*'Pile Data'!X86+Main!$G$545*'Pile Data'!R86-Main!$G$545*('Pile Data'!T86+'Pile Data'!V86)) ->  | AA86: =(0.4*0.85*Main!$G$546*'Pile Data'!X86*Y86+Main!$G$545*('Pile Data'!R86*S86+'Pile Data'!T86*U86+'Pile Data'!V86*W86)) -> 
O87: 82 | P87: 1.431169987 | Q87: 0 | V87: 0 | W87: 0 | X87: 0 | Z87: =ABS(0.4*0.85*Main!$G$546*'Pile Data'!X87+Main!$G$545*'Pile Data'!R87-Main!$G$545*('Pile Data'!T87+'Pile Data'!V87)) ->  | AA87: =(0.4*0.85*Main!$G$546*'Pile Data'!X87*Y87+Main!$G$545*('Pile Data'!R87*S87+'Pile Data'!T87*U87+'Pile Data'!V87*W87)) -> 
O88: 83 | P88: 1.448623279 | Q88: 0 | V88: 0 | W88: 0 | X88: 0 | Z88: =ABS(0.4*0.85*Main!$G$546*'Pile Data'!X88+Main!$G$545*'Pile Data'!R88-Main!$G$545*('Pile Data'!T88+'Pile Data'!V88)) ->  | AA88: =(0.4*0.85*Main!$G$546*'Pile Data'!X88*Y88+Main!$G$545*('Pile Data'!R88*S88+'Pile Data'!T88*U88+'Pile Data'!V88*W88)) -> 
O89: 84 | P89: 1.466076572 | Q89: 0 | V89: 0 | W89: 0 | X89: 0 | Z89: =ABS(0.4*0.85*Main!$G$546*'Pile Data'!X89+Main!$G$545*'Pile Data'!R89-Main!$G$545*('Pile Data'!T89+'Pile Data'!V89)) ->  | AA89: =(0.4*0.85*Main!$G$546*'Pile Data'!X89*Y89+Main!$G$545*('Pile Data'!R89*S89+'Pile Data'!T89*U89+'Pile Data'!V89*W89)) -> 
O90: 85 | P90: 1.483529864 | Q90: 0 | V90: 0 | W90: 0 | X90: 0 | Z90: =ABS(0.4*0.85*Main!$G$546*'Pile Data'!X90+Main!$G$545*'Pile Data'!R90-Main!$G$545*('Pile Data'!T90+'Pile Data'!V90)) ->  | AA90: =(0.4*0.85*Main!$G$546*'Pile Data'!X90*Y90+Main!$G$545*('Pile Data'!R90*S90+'Pile Data'!T90*U90+'Pile Data'!V90*W90)) -> 
O91: 86 | P91: 1.500983157 | Q91: 0 | V91: 0 | W91: 0 | X91: 0 | Z91: =ABS(0.4*0.85*Main!$G$546*'Pile Data'!X91+Main!$G$545*'Pile Data'!R91-Main!$G$545*('Pile Data'!T91+'Pile Data'!V91)) ->  | AA91: =(0.4*0.85*Main!$G$546*'Pile Data'!X91*Y91+Main!$G$545*('Pile Data'!R91*S91+'Pile Data'!T91*U91+'Pile Data'!V91*W91)) -> 
O92: 87 | P92: 1.518436449 | Q92: 0 | V92: 0 | W92: 0 | X92: 0 | Z92: =ABS(0.4*0.85*Main!$G$546*'Pile Data'!X92+Main!$G$545*'Pile Data'!R92-Main!$G$545*('Pile Data'!T92+'Pile Data'!V92)) ->  | AA92: =(0.4*0.85*Main!$G$546*'Pile Data'!X92*Y92+Main!$G$545*('Pile Data'!R92*S92+'Pile Data'!T92*U92+'Pile Data'!V92*W92)) -> 
O93: 88 | P93: 1.535889742 | Q93: 0 | V93: 0 | W93: 0 | X93: 0 | Z93: =ABS(0.4*0.85*Main!$G$546*'Pile Data'!X93+Main!$G$545*'Pile Data'!R93-Main!$G$545*('Pile Data'!T93+'Pile Data'!V93)) ->  | AA93: =(0.4*0.85*Main!$G$546*'Pile Data'!X93*Y93+Main!$G$545*('Pile Data'!R93*S93+'Pile Data'!T93*U93+'Pile Data'!V93*W93)) -> 
O94: 89 | P94: 1.553343034 | Q94: 0 | V94: 0 | W94: 0 | X94: 0 | Z94: =ABS(0.4*0.85*Main!$G$546*'Pile Data'!X94+Main!$G$545*'Pile Data'!R94-Main!$G$545*('Pile Data'!T94+'Pile Data'!V94)) ->  | AA94: =(0.4*0.85*Main!$G$546*'Pile Data'!X94*Y94+Main!$G$545*('Pile Data'!R94*S94+'Pile Data'!T94*U94+'Pile Data'!V94*W94)) -> 
O95: 90 | P95: 1.570796327 | Q95: 0 | V95: 0 | W95: 0 | X95: 0 | Z95: =ABS(0.4*0.85*Main!$G$546*'Pile Data'!X95+Main!$G$545*'Pile Data'!R95-Main!$G$545*('Pile Data'!T95+'Pile Data'!V95)) ->  | AA95: =(0.4*0.85*Main!$G$546*'Pile Data'!X95*Y95+Main!$G$545*('Pile Data'!R95*S95+'Pile Data'!T95*U95+'Pile Data'!V95*W95)) -> 
O96: 91 | P96: 1.588249619 | Q96: 0 | V96: 0 | W96: 0 | X96: 0 | Z96: =ABS(0.4*0.85*Main!$G$546*'Pile Data'!X96+Main!$G$545*'Pile Data'!R96-Main!$G$545*('Pile Data'!T96+'Pile Data'!V96)) ->  | AA96: =(0.4*0.85*Main!$G$546*'Pile Data'!X96*Y96+Main!$G$545*('Pile Data'!R96*S96+'Pile Data'!T96*U96+'Pile Data'!V96*W96)) -> 
O97: 92 | P97: 1.605702912 | Q97: 0 | V97: 0 | W97: 0 | X97: 0 | Z97: =ABS(0.4*0.85*Main!$G$546*'Pile Data'!X97+Main!$G$545*'Pile Data'!R97-Main!$G$545*('Pile Data'!T97+'Pile Data'!V97)) ->  | AA97: =(0.4*0.85*Main!$G$546*'Pile Data'!X97*Y97+Main!$G$545*('Pile Data'!R97*S97+'Pile Data'!T97*U97+'Pile Data'!V97*W97)) -> 
O98: 93 | P98: 1.623156204 | Q98: 0 | V98: 0 | W98: 0 | X98: 0 | Z98: =ABS(0.4*0.85*Main!$G$546*'Pile Data'!X98+Main!$G$545*'Pile Data'!R98-Main!$G$545*('Pile Data'!T98+'Pile Data'!V98)) ->  | AA98: =(0.4*0.85*Main!$G$546*'Pile Data'!X98*Y98+Main!$G$545*('Pile Data'!R98*S98+'Pile Data'!T98*U98+'Pile Data'!V98*W98)) -> 
O99: 94 | P99: 1.640609497 | Q99: 0 | V99: 0 | W99: 0 | X99: 0 | Z99: =ABS(0.4*0.85*Main!$G$546*'Pile Data'!X99+Main!$G$545*'Pile Data'!R99-Main!$G$545*('Pile Data'!T99+'Pile Data'!V99)) ->  | AA99: =(0.4*0.85*Main!$G$546*'Pile Data'!X99*Y99+Main!$G$545*('Pile Data'!R99*S99+'Pile Data'!T99*U99+'Pile Data'!V99*W99)) -> 
O100: 95 | P100: 1.658062789 | Q100: 0 | V100: 0 | W100: 0 | X100: 0 | Z100: =ABS(0.4*0.85*Main!$G$546*'Pile Data'!X100+Main!$G$545*'Pile Data'!R100-Main!$G$545*('Pile Data'!T100+'Pile Data'!V100)) ->  | AA100: =(0.4*0.85*Main!$G$546*'Pile Data'!X100*Y100+Main!$G$545*('Pile Data'!R100*S100+'Pile Data'!T100*U100+'Pile Data'!V100*W100)) -> 
O101: 96 | P101: 1.675516082 | Q101: =COS(P101/2)*($D$25-2*$E$25)/2 -> 0 | R101: =+(($D$25-$E$25)*ACOS(Q101*2/($D$25-$E$25)))*$E$25 ->  | S101: =+(($D$25-$E$25)/2)*SIN(ACOS(2*Q101/($D$25-$E$25)))/(ACOS(2*Q101/($D$25-$E$25))) ->  | V101: 0 | W101: =($D$25-$E$25)/PI() -> 0 | X101: =+($D$25/2-$E$25)^2*(P101-SIN(P101))/2 -> 0 | Z101: =ABS(0.4*0.85*Main!$G$546*'Pile Data'!X101+Main!$G$545*'Pile Data'!R101-Main!$G$545*('Pile Data'!T101+'Pile Data'!V101)) ->  | AA101: =(0.4*0.85*Main!$G$546*'Pile Data'!X101*Y101+Main!$G$545*('Pile Data'!R101*S101+'Pile Data'!T101*U101+'Pile Data'!V101*W101)) -> 
O102: 97 | P102: 1.692969374 | Q102: 0 | V102: 0 | W102: 0 | X102: 0 | Y102: =2*($D$25/2-$E$25)^3*SIN(P102/2)^3/(3*X102) ->  | Z102: =ABS(0.4*0.85*Main!$G$546*'Pile Data'!X102+Main!$G$545*'Pile Data'!R102-Main!$G$545*('Pile Data'!T102+'Pile Data'!V102)) ->  | AA102: =(0.4*0.85*Main!$G$546*'Pile Data'!X102*Y102+Main!$G$545*('Pile Data'!R102*S102+'Pile Data'!T102*U102+'Pile Data'!V102*W102)) -> 
O103: 98 | P103: 1.710422667 | Q103: 0 | V103: 0 | W103: 0 | X103: 0 | Z103: =ABS(0.4*0.85*Main!$G$546*'Pile Data'!X103+Main!$G$545*'Pile Data'!R103-Main!$G$545*('Pile Data'!T103+'Pile Data'!V103)) ->  | AA103: =(0.4*0.85*Main!$G$546*'Pile Data'!X103*Y103+Main!$G$545*('Pile Data'!R103*S103+'Pile Data'!T103*U103+'Pile Data'!V103*W103)) -> 
O104: 99 | P104: 1.727875959 | Q104: 0 | V104: 0 | W104: 0 | X104: 0 | Z104: =ABS(0.4*0.85*Main!$G$546*'Pile Data'!X104+Main!$G$545*'Pile Data'!R104-Main!$G$545*('Pile Data'!T104+'Pile Data'!V104)) ->  | AA104: =(0.4*0.85*Main!$G$546*'Pile Data'!X104*Y104+Main!$G$545*('Pile Data'!R104*S104+'Pile Data'!T104*U104+'Pile Data'!V104*W104)) -> 
O105: 100 | P105: 1.745329252 | Q105: 0 | V105: 0 | W105: 0 | X105: 0 | Z105: =ABS(0.4*0.85*Main!$G$546*'Pile Data'!X105+Main!$G$545*'Pile Data'!R105-Main!$G$545*('Pile Data'!T105+'Pile Data'!V105)) ->  | AA105: =(0.4*0.85*Main!$G$546*'Pile Data'!X105*Y105+Main!$G$545*('Pile Data'!R105*S105+'Pile Data'!T105*U105+'Pile Data'!V105*W105)) -> 
O106: 101 | P106: 1.762782545 | Q106: 0 | V106: 0 | W106: 0 | X106: 0 | Z106: =ABS(0.4*0.85*Main!$G$546*'Pile Data'!X106+Main!$G$545*'Pile Data'!R106-Main!$G$545*('Pile Data'!T106+'Pile Data'!V106)) ->  | AA106: =(0.4*0.85*Main!$G$546*'Pile Data'!X106*Y106+Main!$G$545*('Pile Data'!R106*S106+'Pile Data'!T106*U106+'Pile Data'!V106*W106)) -> 
O107: 102 | P107: 1.780235837 | Q107: 0 | V107: 0 | W107: 0 | X107: 0 | Z107: =ABS(0.4*0.85*Main!$G$546*'Pile Data'!X107+Main!$G$545*'Pile Data'!R107-Main!$G$545*('Pile Data'!T107+'Pile Data'!V107)) ->  | AA107: =(0.4*0.85*Main!$G$546*'Pile Data'!X107*Y107+Main!$G$545*('Pile Data'!R107*S107+'Pile Data'!T107*U107+'Pile Data'!V107*W107)) -> 
O108: 103 | P108: 1.79768913 | Q108: 0 | V108: 0 | W108: 0 | X108: 0 | Z108: =ABS(0.4*0.85*Main!$G$546*'Pile Data'!X108+Main!$G$545*'Pile Data'!R108-Main!$G$545*('Pile Data'!T108+'Pile Data'!V108)) ->  | AA108: =(0.4*0.85*Main!$G$546*'Pile Data'!X108*Y108+Main!$G$545*('Pile Data'!R108*S108+'Pile Data'!T108*U108+'Pile Data'!V108*W108)) -> 
O109: 104 | P109: 1.815142422 | Q109: 0 | V109: 0 | W109: 0 | X109: 0 | Z109: =ABS(0.4*0.85*Main!$G$546*'Pile Data'!X109+Main!$G$545*'Pile Data'!R109-Main!$G$545*('Pile Data'!T109+'Pile Data'!V109)) ->  | AA109: =(0.4*0.85*Main!$G$546*'Pile Data'!X109*Y109+Main!$G$545*('Pile Data'!R109*S109+'Pile Data'!T109*U109+'Pile Data'!V109*W109)) -> 
O110: 105 | P110: 1.832595715 | Q110: 0 | V110: 0 | W110: 0 | X110: 0 | Z110: =ABS(0.4*0.85*Main!$G$546*'Pile Data'!X110+Main!$G$545*'Pile Data'!R110-Main!$G$545*('Pile Data'!T110+'Pile Data'!V110)) ->  | AA110: =(0.4*0.85*Main!$G$546*'Pile Data'!X110*Y110+Main!$G$545*('Pile Data'!R110*S110+'Pile Data'!T110*U110+'Pile Data'!V110*W110)) -> 
O111: 106 | P111: 1.850049007 | Q111: 0 | V111: 0 | W111: 0 | X111: 0 | Z111: =ABS(0.4*0.85*Main!$G$546*'Pile Data'!X111+Main!$G$545*'Pile Data'!R111-Main!$G$545*('Pile Data'!T111+'Pile Data'!V111)) ->  | AA111: =(0.4*0.85*Main!$G$546*'Pile Data'!X111*Y111+Main!$G$545*('Pile Data'!R111*S111+'Pile Data'!T111*U111+'Pile Data'!V111*W111)) -> 
O112: 107 | P112: 1.8675023 | Q112: 0 | V112: 0 | W112: 0 | X112: 0 | Z112: =ABS(0.4*0.85*Main!$G$546*'Pile Data'!X112+Main!$G$545*'Pile Data'!R112-Main!$G$545*('Pile Data'!T112+'Pile Data'!V112)) ->  | AA112: =(0.4*0.85*Main!$G$546*'Pile Data'!X112*Y112+Main!$G$545*('Pile Data'!R112*S112+'Pile Data'!T112*U112+'Pile Data'!V112*W112)) -> 
O113: 108 | P113: 1.884955592 | Q113: 0 | V113: 0 | W113: 0 | X113: 0 | Z113: =ABS(0.4*0.85*Main!$G$546*'Pile Data'!X113+Main!$G$545*'Pile Data'!R113-Main!$G$545*('Pile Data'!T113+'Pile Data'!V113)) ->  | AA113: =(0.4*0.85*Main!$G$546*'Pile Data'!X113*Y113+Main!$G$545*('Pile Data'!R113*S113+'Pile Data'!T113*U113+'Pile Data'!V113*W113)) -> 
O114: 109 | P114: 1.902408885 | Q114: 0 | V114: 0 | W114: 0 | X114: 0 | Z114: =ABS(0.4*0.85*Main!$G$546*'Pile Data'!X114+Main!$G$545*'Pile Data'!R114-Main!$G$545*('Pile Data'!T114+'Pile Data'!V114)) ->  | AA114: =(0.4*0.85*Main!$G$546*'Pile Data'!X114*Y114+Main!$G$545*('Pile Data'!R114*S114+'Pile Data'!T114*U114+'Pile Data'!V114*W114)) -> 
O115: 110 | P115: 1.919862177 | Q115: 0 | V115: 0 | W115: 0 | X115: 0 | Z115: =ABS(0.4*0.85*Main!$G$546*'Pile Data'!X115+Main!$G$545*'Pile Data'!R115-Main!$G$545*('Pile Data'!T115+'Pile Data'!V115)) ->  | AA115: =(0.4*0.85*Main!$G$546*'Pile Data'!X115*Y115+Main!$G$545*('Pile Data'!R115*S115+'Pile Data'!T115*U115+'Pile Data'!V115*W115)) -> 
O116: 111 | P116: 1.93731547 | Q116: 0 | V116: 0 | W116: 0 | X116: 0 | Z116: =ABS(0.4*0.85*Main!$G$546*'Pile Data'!X116+Main!$G$545*'Pile Data'!R116-Main!$G$545*('Pile Data'!T116+'Pile Data'!V116)) ->  | AA116: =(0.4*0.85*Main!$G$546*'Pile Data'!X116*Y116+Main!$G$545*('Pile Data'!R116*S116+'Pile Data'!T116*U116+'Pile Data'!V116*W116)) -> 
O117: 112 | P117: 1.954768762 | Q117: 0 | V117: 0 | W117: 0 | X117: 0 | Z117: =ABS(0.4*0.85*Main!$G$546*'Pile Data'!X117+Main!$G$545*'Pile Data'!R117-Main!$G$545*('Pile Data'!T117+'Pile Data'!V117)) ->  | AA117: =(0.4*0.85*Main!$G$546*'Pile Data'!X117*Y117+Main!$G$545*('Pile Data'!R117*S117+'Pile Data'!T117*U117+'Pile Data'!V117*W117)) -> 
O118: 113 | P118: 1.972222055 | Q118: 0 | V118: 0 | W118: 0 | X118: 0 | Z118: =ABS(0.4*0.85*Main!$G$546*'Pile Data'!X118+Main!$G$545*'Pile Data'!R118-Main!$G$545*('Pile Data'!T118+'Pile Data'!V118)) ->  | AA118: =(0.4*0.85*Main!$G$546*'Pile Data'!X118*Y118+Main!$G$545*('Pile Data'!R118*S118+'Pile Data'!T118*U118+'Pile Data'!V118*W118)) -> 
O119: 114 | P119: 1.989675347 | Q119: 0 | V119: 0 | W119: 0 | X119: 0 | Z119: =ABS(0.4*0.85*Main!$G$546*'Pile Data'!X119+Main!$G$545*'Pile Data'!R119-Main!$G$545*('Pile Data'!T119+'Pile Data'!V119)) ->  | AA119: =(0.4*0.85*Main!$G$546*'Pile Data'!X119*Y119+Main!$G$545*('Pile Data'!R119*S119+'Pile Data'!T119*U119+'Pile Data'!V119*W119)) -> 
O120: 115 | P120: 2.00712864 | Q120: 0 | V120: 0 | W120: 0 | X120: 0 | Z120: =ABS(0.4*0.85*Main!$G$546*'Pile Data'!X120+Main!$G$545*'Pile Data'!R120-Main!$G$545*('Pile Data'!T120+'Pile Data'!V120)) ->  | AA120: =(0.4*0.85*Main!$G$546*'Pile Data'!X120*Y120+Main!$G$545*('Pile Data'!R120*S120+'Pile Data'!T120*U120+'Pile Data'!V120*W120)) -> 
O121: 116 | P121: 2.024581932 | Q121: 0 | V121: 0 | W121: 0 | X121: 0 | Z121: =ABS(0.4*0.85*Main!$G$546*'Pile Data'!X121+Main!$G$545*'Pile Data'!R121-Main!$G$545*('Pile Data'!T121+'Pile Data'!V121)) ->  | AA121: =(0.4*0.85*Main!$G$546*'Pile Data'!X121*Y121+Main!$G$545*('Pile Data'!R121*S121+'Pile Data'!T121*U121+'Pile Data'!V121*W121)) -> 
O122: 117 | P122: 2.042035225 | Q122: 0 | V122: 0 | W122: 0 | X122: 0 | Z122: =ABS(0.4*0.85*Main!$G$546*'Pile Data'!X122+Main!$G$545*'Pile Data'!R122-Main!$G$545*('Pile Data'!T122+'Pile Data'!V122)) ->  | AA122: =(0.4*0.85*Main!$G$546*'Pile Data'!X122*Y122+Main!$G$545*('Pile Data'!R122*S122+'Pile Data'!T122*U122+'Pile Data'!V122*W122)) -> 
O123: 118 | P123: 2.059488517 | Q123: 0 | V123: 0 | W123: 0 | X123: 0 | Z123: =ABS(0.4*0.85*Main!$G$546*'Pile Data'!X123+Main!$G$545*'Pile Data'!R123-Main!$G$545*('Pile Data'!T123+'Pile Data'!V123)) ->  | AA123: =(0.4*0.85*Main!$G$546*'Pile Data'!X123*Y123+Main!$G$545*('Pile Data'!R123*S123+'Pile Data'!T123*U123+'Pile Data'!V123*W123)) -> 
O124: 119 | P124: 2.07694181 | Q124: 0 | V124: 0 | W124: 0 | X124: 0 | Z124: =ABS(0.4*0.85*Main!$G$546*'Pile Data'!X124+Main!$G$545*'Pile Data'!R124-Main!$G$545*('Pile Data'!T124+'Pile Data'!V124)) ->  | AA124: =(0.4*0.85*Main!$G$546*'Pile Data'!X124*Y124+Main!$G$545*('Pile Data'!R124*S124+'Pile Data'!T124*U124+'Pile Data'!V124*W124)) -> 
O125: 120 | P125: 2.094395102 | Q125: 0 | V125: 0 | W125: 0 | X125: 0 | Z125: =ABS(0.4*0.85*Main!$G$546*'Pile Data'!X125+Main!$G$545*'Pile Data'!R125-Main!$G$545*('Pile Data'!T125+'Pile Data'!V125)) ->  | AA125: =(0.4*0.85*Main!$G$546*'Pile Data'!X125*Y125+Main!$G$545*('Pile Data'!R125*S125+'Pile Data'!T125*U125+'Pile Data'!V125*W125)) -> 
O126: 121 | P126: 2.111848395 | Q126: 0 | V126: 0 | W126: 0 | X126: 0 | Z126: =ABS(0.4*0.85*Main!$G$546*'Pile Data'!X126+Main!$G$545*'Pile Data'!R126-Main!$G$545*('Pile Data'!T126+'Pile Data'!V126)) ->  | AA126: =(0.4*0.85*Main!$G$546*'Pile Data'!X126*Y126+Main!$G$545*('Pile Data'!R126*S126+'Pile Data'!T126*U126+'Pile Data'!V126*W126)) -> 
O127: 122 | P127: 2.129301687 | Q127: 0 | V127: 0 | W127: 0 | X127: 0 | Z127: =ABS(0.4*0.85*Main!$G$546*'Pile Data'!X127+Main!$G$545*'Pile Data'!R127-Main!$G$545*('Pile Data'!T127+'Pile Data'!V127)) ->  | AA127: =(0.4*0.85*Main!$G$546*'Pile Data'!X127*Y127+Main!$G$545*('Pile Data'!R127*S127+'Pile Data'!T127*U127+'Pile Data'!V127*W127)) -> 
O128: 123 | P128: 2.14675498 | Q128: 0 | V128: 0 | W128: 0 | X128: 0 | Z128: =ABS(0.4*0.85*Main!$G$546*'Pile Data'!X128+Main!$G$545*'Pile Data'!R128-Main!$G$545*('Pile Data'!T128+'Pile Data'!V128)) ->  | AA128: =(0.4*0.85*Main!$G$546*'Pile Data'!X128*Y128+Main!$G$545*('Pile Data'!R128*S128+'Pile Data'!T128*U128+'Pile Data'!V128*W128)) -> 
O129: 124 | P129: 2.164208272 | Q129: 0 | V129: 0 | W129: 0 | X129: 0 | Z129: =ABS(0.4*0.85*Main!$G$546*'Pile Data'!X129+Main!$G$545*'Pile Data'!R129-Main!$G$545*('Pile Data'!T129+'Pile Data'!V129)) ->  | AA129: =(0.4*0.85*Main!$G$546*'Pile Data'!X129*Y129+Main!$G$545*('Pile Data'!R129*S129+'Pile Data'!T129*U129+'Pile Data'!V129*W129)) -> 
O130: 125 | P130: 2.181661565 | Q130: 0 | V130: 0 | W130: 0 | X130: 0 | Z130: =ABS(0.4*0.85*Main!$G$546*'Pile Data'!X130+Main!$G$545*'Pile Data'!R130-Main!$G$545*('Pile Data'!T130+'Pile Data'!V130)) ->  | AA130: =(0.4*0.85*Main!$G$546*'Pile Data'!X130*Y130+Main!$G$545*('Pile Data'!R130*S130+'Pile Data'!T130*U130+'Pile Data'!V130*W130)) -> 
O131: 126 | P131: 2.199114858 | Q131: 0 | V131: 0 | W131: 0 | X131: 0 | Z131: =ABS(0.4*0.85*Main!$G$546*'Pile Data'!X131+Main!$G$545*'Pile Data'!R131-Main!$G$545*('Pile Data'!T131+'Pile Data'!V131)) ->  | AA131: =(0.4*0.85*Main!$G$546*'Pile Data'!X131*Y131+Main!$G$545*('Pile Data'!R131*S131+'Pile Data'!T131*U131+'Pile Data'!V131*W131)) -> 
O132: 127 | P132: 2.21656815 | Q132: 0 | V132: 0 | W132: 0 | X132: 0 | Z132: =ABS(0.4*0.85*Main!$G$546*'Pile Data'!X132+Main!$G$545*'Pile Data'!R132-Main!$G$545*('Pile Data'!T132+'Pile Data'!V132)) ->  | AA132: =(0.4*0.85*Main!$G$546*'Pile Data'!X132*Y132+Main!$G$545*('Pile Data'!R132*S132+'Pile Data'!T132*U132+'Pile Data'!V132*W132)) -> 
O133: 128 | P133: 2.234021443 | Q133: =COS(P133/2)*($D$25-2*$E$25)/2 -> 0 | R133: =+(($D$25-$E$25)*ACOS(Q133*2/($D$25-$E$25)))*$E$25 ->  | S133: =+(($D$25-$E$25)/2)*SIN(ACOS(2*Q133/($D$25-$E$25)))/(ACOS(2*Q133/($D$25-$E$25))) ->  | U133: =+(V133*W133-R133*S133)/T133 ->  | V133: 0 | W133: =($D$25-$E$25)/PI() -> 0 | X133: =+($D$25/2-$E$25)^2*(P133-SIN(P133))/2 -> 0 | Z133: =ABS(0.4*0.85*Main!$G$546*'Pile Data'!X133+Main!$G$545*'Pile Data'!R133-Main!$G$545*('Pile Data'!T133+'Pile Data'!V133)) ->  | AA133: =(0.4*0.85*Main!$G$546*'Pile Data'!X133*Y133+Main!$G$545*('Pile Data'!R133*S133+'Pile Data'!T133*U133+'Pile Data'!V133*W133)) -> 
O134: 129 | P134: =+O134*PI()/180 -> 2.251474735 | Q134: 0 | T134: =+(As/2)-R134 ->  | V134: =+(As/2) -> 0 | W134: 0 | X134: 0 | Y134: =2*($D$25/2-$E$25)^3*SIN(P134/2)^3/(3*X134) ->  | Z134: =ABS(0.4*0.85*Main!$G$546*'Pile Data'!X134+Main!$G$545*'Pile Data'!R134-Main!$G$545*('Pile Data'!T134+'Pile Data'!V134)) ->  | AA134: =(0.4*0.85*Main!$G$546*'Pile Data'!X134*Y134+Main!$G$545*('Pile Data'!R134*S134+'Pile Data'!T134*U134+'Pile Data'!V134*W134)) -> 
O135: =+O134+1 -> 130 | P135: 2.268928028 | Q135: 0 | V135: 0 | W135: 0 | X135: 0 | Z135: =ABS(0.4*0.85*Main!$G$546*'Pile Data'!X135+Main!$G$545*'Pile Data'!R135-Main!$G$545*('Pile Data'!T135+'Pile Data'!V135)) ->  | AA135: =(0.4*0.85*Main!$G$546*'Pile Data'!X135*Y135+Main!$G$545*('Pile Data'!R135*S135+'Pile Data'!T135*U135+'Pile Data'!V135*W135)) -> 
O136: 131 | P136: 2.28638132 | Q136: 0 | V136: 0 | W136: 0 | X136: 0 | Z136: =ABS(0.4*0.85*Main!$G$546*'Pile Data'!X136+Main!$G$545*'Pile Data'!R136-Main!$G$545*('Pile Data'!T136+'Pile Data'!V136)) ->  | AA136: =(0.4*0.85*Main!$G$546*'Pile Data'!X136*Y136+Main!$G$545*('Pile Data'!R136*S136+'Pile Data'!T136*U136+'Pile Data'!V136*W136)) -> 
O137: 132 | P137: 2.303834613 | Q137: 0 | V137: 0 | W137: 0 | X137: 0 | Z137: =ABS(0.4*0.85*Main!$G$546*'Pile Data'!X137+Main!$G$545*'Pile Data'!R137-Main!$G$545*('Pile Data'!T137+'Pile Data'!V137)) ->  | AA137: =(0.4*0.85*Main!$G$546*'Pile Data'!X137*Y137+Main!$G$545*('Pile Data'!R137*S137+'Pile Data'!T137*U137+'Pile Data'!V137*W137)) -> 
O138: 133 | P138: 2.321287905 | Q138: 0 | V138: 0 | W138: 0 | X138: 0 | Z138: =ABS(0.4*0.85*Main!$G$546*'Pile Data'!X138+Main!$G$545*'Pile Data'!R138-Main!$G$545*('Pile Data'!T138+'Pile Data'!V138)) ->  | AA138: =(0.4*0.85*Main!$G$546*'Pile Data'!X138*Y138+Main!$G$545*('Pile Data'!R138*S138+'Pile Data'!T138*U138+'Pile Data'!V138*W138)) -> 
O139: 134 | P139: 2.338741198 | Q139: 0 | V139: 0 | W139: 0 | X139: 0 | Z139: =ABS(0.4*0.85*Main!$G$546*'Pile Data'!X139+Main!$G$545*'Pile Data'!R139-Main!$G$545*('Pile Data'!T139+'Pile Data'!V139)) ->  | AA139: =(0.4*0.85*Main!$G$546*'Pile Data'!X139*Y139+Main!$G$545*('Pile Data'!R139*S139+'Pile Data'!T139*U139+'Pile Data'!V139*W139)) -> 
O140: 135 | P140: 2.35619449 | Q140: 0 | V140: 0 | W140: 0 | X140: 0 | Z140: =ABS(0.4*0.85*Main!$G$546*'Pile Data'!X140+Main!$G$545*'Pile Data'!R140-Main!$G$545*('Pile Data'!T140+'Pile Data'!V140)) ->  | AA140: =(0.4*0.85*Main!$G$546*'Pile Data'!X140*Y140+Main!$G$545*('Pile Data'!R140*S140+'Pile Data'!T140*U140+'Pile Data'!V140*W140)) -> 
O141: 136 | P141: 2.373647783 | Q141: 0 | V141: 0 | W141: 0 | X141: 0 | Z141: =ABS(0.4*0.85*Main!$G$546*'Pile Data'!X141+Main!$G$545*'Pile Data'!R141-Main!$G$545*('Pile Data'!T141+'Pile Data'!V141)) ->  | AA141: =(0.4*0.85*Main!$G$546*'Pile Data'!X141*Y141+Main!$G$545*('Pile Data'!R141*S141+'Pile Data'!T141*U141+'Pile Data'!V141*W141)) -> 
O142: 137 | P142: 2.391101075 | Q142: 0 | V142: 0 | W142: 0 | X142: 0 | Z142: =ABS(0.4*0.85*Main!$G$546*'Pile Data'!X142+Main!$G$545*'Pile Data'!R142-Main!$G$545*('Pile Data'!T142+'Pile Data'!V142)) ->  | AA142: =(0.4*0.85*Main!$G$546*'Pile Data'!X142*Y142+Main!$G$545*('Pile Data'!R142*S142+'Pile Data'!T142*U142+'Pile Data'!V142*W142)) -> 
O143: 138 | P143: 2.408554368 | Q143: 0 | V143: 0 | W143: 0 | X143: 0 | Z143: =ABS(0.4*0.85*Main!$G$546*'Pile Data'!X143+Main!$G$545*'Pile Data'!R143-Main!$G$545*('Pile Data'!T143+'Pile Data'!V143)) ->  | AA143: =(0.4*0.85*Main!$G$546*'Pile Data'!X143*Y143+Main!$G$545*('Pile Data'!R143*S143+'Pile Data'!T143*U143+'Pile Data'!V143*W143)) -> 
O144: 139 | P144: 2.42600766 | Q144: 0 | V144: 0 | W144: 0 | X144: 0 | Z144: =ABS(0.4*0.85*Main!$G$546*'Pile Data'!X144+Main!$G$545*'Pile Data'!R144-Main!$G$545*('Pile Data'!T144+'Pile Data'!V144)) ->  | AA144: =(0.4*0.85*Main!$G$546*'Pile Data'!X144*Y144+Main!$G$545*('Pile Data'!R144*S144+'Pile Data'!T144*U144+'Pile Data'!V144*W144)) -> 
O145: 140 | P145: 2.443460953 | Q145: 0 | V145: 0 | W145: 0 | X145: 0 | Z145: =ABS(0.4*0.85*Main!$G$546*'Pile Data'!X145+Main!$G$545*'Pile Data'!R145-Main!$G$545*('Pile Data'!T145+'Pile Data'!V145)) ->  | AA145: =(0.4*0.85*Main!$G$546*'Pile Data'!X145*Y145+Main!$G$545*('Pile Data'!R145*S145+'Pile Data'!T145*U145+'Pile Data'!V145*W145)) -> 
O146: 141 | P146: 2.460914245 | Q146: 0 | V146: 0 | W146: 0 | X146: 0 | Z146: =ABS(0.4*0.85*Main!$G$546*'Pile Data'!X146+Main!$G$545*'Pile Data'!R146-Main!$G$545*('Pile Data'!T146+'Pile Data'!V146)) ->  | AA146: =(0.4*0.85*Main!$G$546*'Pile Data'!X146*Y146+Main!$G$545*('Pile Data'!R146*S146+'Pile Data'!T146*U146+'Pile Data'!V146*W146)) -> 
O147: 142 | P147: 2.478367538 | Q147: 0 | V147: 0 | W147: 0 | X147: 0 | Z147: =ABS(0.4*0.85*Main!$G$546*'Pile Data'!X147+Main!$G$545*'Pile Data'!R147-Main!$G$545*('Pile Data'!T147+'Pile Data'!V147)) ->  | AA147: =(0.4*0.85*Main!$G$546*'Pile Data'!X147*Y147+Main!$G$545*('Pile Data'!R147*S147+'Pile Data'!T147*U147+'Pile Data'!V147*W147)) -> 
O148: 143 | P148: 2.49582083 | Q148: 0 | V148: 0 | W148: 0 | X148: 0 | Z148: =ABS(0.4*0.85*Main!$G$546*'Pile Data'!X148+Main!$G$545*'Pile Data'!R148-Main!$G$545*('Pile Data'!T148+'Pile Data'!V148)) ->  | AA148: =(0.4*0.85*Main!$G$546*'Pile Data'!X148*Y148+Main!$G$545*('Pile Data'!R148*S148+'Pile Data'!T148*U148+'Pile Data'!V148*W148)) -> 
O149: 144 | P149: 2.513274123 | Q149: 0 | V149: 0 | W149: 0 | X149: 0 | Z149: =ABS(0.4*0.85*Main!$G$546*'Pile Data'!X149+Main!$G$545*'Pile Data'!R149-Main!$G$545*('Pile Data'!T149+'Pile Data'!V149)) ->  | AA149: =(0.4*0.85*Main!$G$546*'Pile Data'!X149*Y149+Main!$G$545*('Pile Data'!R149*S149+'Pile Data'!T149*U149+'Pile Data'!V149*W149)) -> 
O150: 145 | P150: 2.530727415 | Q150: 0 | V150: 0 | W150: 0 | X150: 0 | Z150: =ABS(0.4*0.85*Main!$G$546*'Pile Data'!X150+Main!$G$545*'Pile Data'!R150-Main!$G$545*('Pile Data'!T150+'Pile Data'!V150)) ->  | AA150: =(0.4*0.85*Main!$G$546*'Pile Data'!X150*Y150+Main!$G$545*('Pile Data'!R150*S150+'Pile Data'!T150*U150+'Pile Data'!V150*W150)) -> 
O151: 146 | P151: 2.548180708 | Q151: 0 | V151: 0 | W151: 0 | X151: 0 | Z151: =ABS(0.4*0.85*Main!$G$546*'Pile Data'!X151+Main!$G$545*'Pile Data'!R151-Main!$G$545*('Pile Data'!T151+'Pile Data'!V151)) ->  | AA151: =(0.4*0.85*Main!$G$546*'Pile Data'!X151*Y151+Main!$G$545*('Pile Data'!R151*S151+'Pile Data'!T151*U151+'Pile Data'!V151*W151)) -> 
O152: 147 | P152: 2.565634 | Q152: 0 | V152: 0 | W152: 0 | X152: 0 | Z152: =ABS(0.4*0.85*Main!$G$546*'Pile Data'!X152+Main!$G$545*'Pile Data'!R152-Main!$G$545*('Pile Data'!T152+'Pile Data'!V152)) ->  | AA152: =(0.4*0.85*Main!$G$546*'Pile Data'!X152*Y152+Main!$G$545*('Pile Data'!R152*S152+'Pile Data'!T152*U152+'Pile Data'!V152*W152)) -> 
O153: 148 | P153: 2.583087293 | Q153: 0 | V153: 0 | W153: 0 | X153: 0 | Z153: =ABS(0.4*0.85*Main!$G$546*'Pile Data'!X153+Main!$G$545*'Pile Data'!R153-Main!$G$545*('Pile Data'!T153+'Pile Data'!V153)) ->  | AA153: =(0.4*0.85*Main!$G$546*'Pile Data'!X153*Y153+Main!$G$545*('Pile Data'!R153*S153+'Pile Data'!T153*U153+'Pile Data'!V153*W153)) -> 
O154: 149 | P154: 2.600540585 | Q154: 0 | V154: 0 | W154: 0 | X154: 0 | Z154: =ABS(0.4*0.85*Main!$G$546*'Pile Data'!X154+Main!$G$545*'Pile Data'!R154-Main!$G$545*('Pile Data'!T154+'Pile Data'!V154)) ->  | AA154: =(0.4*0.85*Main!$G$546*'Pile Data'!X154*Y154+Main!$G$545*('Pile Data'!R154*S154+'Pile Data'!T154*U154+'Pile Data'!V154*W154)) -> 
O155: 150 | P155: 2.617993878 | Q155: 0 | V155: 0 | W155: 0 | X155: 0 | Z155: =ABS(0.4*0.85*Main!$G$546*'Pile Data'!X155+Main!$G$545*'Pile Data'!R155-Main!$G$545*('Pile Data'!T155+'Pile Data'!V155)) ->  | AA155: =(0.4*0.85*Main!$G$546*'Pile Data'!X155*Y155+Main!$G$545*('Pile Data'!R155*S155+'Pile Data'!T155*U155+'Pile Data'!V155*W155)) -> 
O156: 151 | P156: 2.635447171 | Q156: 0 | V156: 0 | W156: 0 | X156: 0 | Z156: =ABS(0.4*0.85*Main!$G$546*'Pile Data'!X156+Main!$G$545*'Pile Data'!R156-Main!$G$545*('Pile Data'!T156+'Pile Data'!V156)) ->  | AA156: =(0.4*0.85*Main!$G$546*'Pile Data'!X156*Y156+Main!$G$545*('Pile Data'!R156*S156+'Pile Data'!T156*U156+'Pile Data'!V156*W156)) -> 
O157: 152 | P157: 2.652900463 | Q157: 0 | V157: 0 | W157: 0 | X157: 0 | Z157: =ABS(0.4*0.85*Main!$G$546*'Pile Data'!X157+Main!$G$545*'Pile Data'!R157-Main!$G$545*('Pile Data'!T157+'Pile Data'!V157)) ->  | AA157: =(0.4*0.85*Main!$G$546*'Pile Data'!X157*Y157+Main!$G$545*('Pile Data'!R157*S157+'Pile Data'!T157*U157+'Pile Data'!V157*W157)) -> 
O158: 153 | P158: 2.670353756 | Q158: 0 | V158: 0 | W158: 0 | X158: 0 | Z158: =ABS(0.4*0.85*Main!$G$546*'Pile Data'!X158+Main!$G$545*'Pile Data'!R158-Main!$G$545*('Pile Data'!T158+'Pile Data'!V158)) ->  | AA158: =(0.4*0.85*Main!$G$546*'Pile Data'!X158*Y158+Main!$G$545*('Pile Data'!R158*S158+'Pile Data'!T158*U158+'Pile Data'!V158*W158)) -> 
O159: 154 | P159: 2.687807048 | Q159: 0 | V159: 0 | W159: 0 | X159: 0 | Z159: =ABS(0.4*0.85*Main!$G$546*'Pile Data'!X159+Main!$G$545*'Pile Data'!R159-Main!$G$545*('Pile Data'!T159+'Pile Data'!V159)) ->  | AA159: =(0.4*0.85*Main!$G$546*'Pile Data'!X159*Y159+Main!$G$545*('Pile Data'!R159*S159+'Pile Data'!T159*U159+'Pile Data'!V159*W159)) -> 
O160: 155 | P160: 2.705260341 | Q160: 0 | V160: 0 | W160: 0 | X160: 0 | Z160: =ABS(0.4*0.85*Main!$G$546*'Pile Data'!X160+Main!$G$545*'Pile Data'!R160-Main!$G$545*('Pile Data'!T160+'Pile Data'!V160)) ->  | AA160: =(0.4*0.85*Main!$G$546*'Pile Data'!X160*Y160+Main!$G$545*('Pile Data'!R160*S160+'Pile Data'!T160*U160+'Pile Data'!V160*W160)) -> 
O161: 156 | P161: 2.722713633 | Q161: 0 | V161: 0 | W161: 0 | X161: 0 | Z161: =ABS(0.4*0.85*Main!$G$546*'Pile Data'!X161+Main!$G$545*'Pile Data'!R161-Main!$G$545*('Pile Data'!T161+'Pile Data'!V161)) ->  | AA161: =(0.4*0.85*Main!$G$546*'Pile Data'!X161*Y161+Main!$G$545*('Pile Data'!R161*S161+'Pile Data'!T161*U161+'Pile Data'!V161*W161)) -> 
O162: 157 | P162: 2.740166926 | Q162: 0 | V162: 0 | W162: 0 | X162: 0 | Z162: =ABS(0.4*0.85*Main!$G$546*'Pile Data'!X162+Main!$G$545*'Pile Data'!R162-Main!$G$545*('Pile Data'!T162+'Pile Data'!V162)) ->  | AA162: =(0.4*0.85*Main!$G$546*'Pile Data'!X162*Y162+Main!$G$545*('Pile Data'!R162*S162+'Pile Data'!T162*U162+'Pile Data'!V162*W162)) -> 
O163: 158 | P163: 2.757620218 | Q163: 0 | V163: 0 | W163: 0 | X163: 0 | Z163: =ABS(0.4*0.85*Main!$G$546*'Pile Data'!X163+Main!$G$545*'Pile Data'!R163-Main!$G$545*('Pile Data'!T163+'Pile Data'!V163)) ->  | AA163: =(0.4*0.85*Main!$G$546*'Pile Data'!X163*Y163+Main!$G$545*('Pile Data'!R163*S163+'Pile Data'!T163*U163+'Pile Data'!V163*W163)) -> 
O164: 159 | P164: 2.775073511 | Q164: 0 | V164: 0 | W164: 0 | X164: 0 | Z164: =ABS(0.4*0.85*Main!$G$546*'Pile Data'!X164+Main!$G$545*'Pile Data'!R164-Main!$G$545*('Pile Data'!T164+'Pile Data'!V164)) ->  | AA164: =(0.4*0.85*Main!$G$546*'Pile Data'!X164*Y164+Main!$G$545*('Pile Data'!R164*S164+'Pile Data'!T164*U164+'Pile Data'!V164*W164)) -> 
O165: 160 | P165: 2.792526803 | Q165: =COS(P165/2)*($D$25-2*$E$25)/2 -> 0 | R165: =+(($D$25-$E$25)*ACOS(Q165*2/($D$25-$E$25)))*$E$25 ->  | S165: =+(($D$25-$E$25)/2)*SIN(ACOS(2*Q165/($D$25-$E$25)))/(ACOS(2*Q165/($D$25-$E$25))) ->  | V165: 0 | W165: =($D$25-$E$25)/PI() -> 0 | X165: =+($D$25/2-$E$25)^2*(P165-SIN(P165))/2 -> 0 | Z165: =ABS(0.4*0.85*Main!$G$546*'Pile Data'!X165+Main!$G$545*'Pile Data'!R165-Main!$G$545*('Pile Data'!T165+'Pile Data'!V165)) ->  | AA165: =(0.4*0.85*Main!$G$546*'Pile Data'!X165*Y165+Main!$G$545*('Pile Data'!R165*S165+'Pile Data'!T165*U165+'Pile Data'!V165*W165)) -> 
O166: 161 | P166: 2.809980096 | Q166: 0 | V166: 0 | W166: 0 | X166: 0 | Y166: =2*($D$25/2-$E$25)^3*SIN(P166/2)^3/(3*X166) ->  | Z166: =ABS(0.4*0.85*Main!$G$546*'Pile Data'!X166+Main!$G$545*'Pile Data'!R166-Main!$G$545*('Pile Data'!T166+'Pile Data'!V166)) ->  | AA166: =(0.4*0.85*Main!$G$546*'Pile Data'!X166*Y166+Main!$G$545*('Pile Data'!R166*S166+'Pile Data'!T166*U166+'Pile Data'!V166*W166)) -> 
O167: 162 | P167: 2.827433388 | Q167: 0 | V167: 0 | W167: 0 | X167: 0 | Z167: =ABS(0.4*0.85*Main!$G$546*'Pile Data'!X167+Main!$G$545*'Pile Data'!R167-Main!$G$545*('Pile Data'!T167+'Pile Data'!V167)) ->  | AA167: =(0.4*0.85*Main!$G$546*'Pile Data'!X167*Y167+Main!$G$545*('Pile Data'!R167*S167+'Pile Data'!T167*U167+'Pile Data'!V167*W167)) -> 
O168: 163 | P168: 2.844886681 | Q168: 0 | V168: 0 | W168: 0 | X168: 0 | Z168: =ABS(0.4*0.85*Main!$G$546*'Pile Data'!X168+Main!$G$545*'Pile Data'!R168-Main!$G$545*('Pile Data'!T168+'Pile Data'!V168)) ->  | AA168: =(0.4*0.85*Main!$G$546*'Pile Data'!X168*Y168+Main!$G$545*('Pile Data'!R168*S168+'Pile Data'!T168*U168+'Pile Data'!V168*W168)) -> 
O169: 164 | P169: 2.862339973 | Q169: 0 | V169: 0 | W169: 0 | X169: 0 | Z169: =ABS(0.4*0.85*Main!$G$546*'Pile Data'!X169+Main!$G$545*'Pile Data'!R169-Main!$G$545*('Pile Data'!T169+'Pile Data'!V169)) ->  | AA169: =(0.4*0.85*Main!$G$546*'Pile Data'!X169*Y169+Main!$G$545*('Pile Data'!R169*S169+'Pile Data'!T169*U169+'Pile Data'!V169*W169)) -> 
O170: 165 | P170: 2.879793266 | Q170: 0 | V170: 0 | W170: 0 | X170: 0 | Z170: =ABS(0.4*0.85*Main!$G$546*'Pile Data'!X170+Main!$G$545*'Pile Data'!R170-Main!$G$545*('Pile Data'!T170+'Pile Data'!V170)) ->  | AA170: =(0.4*0.85*Main!$G$546*'Pile Data'!X170*Y170+Main!$G$545*('Pile Data'!R170*S170+'Pile Data'!T170*U170+'Pile Data'!V170*W170)) -> 
O171: 166 | P171: 2.897246558 | Q171: 0 | V171: 0 | W171: 0 | X171: 0 | Z171: =ABS(0.4*0.85*Main!$G$546*'Pile Data'!X171+Main!$G$545*'Pile Data'!R171-Main!$G$545*('Pile Data'!T171+'Pile Data'!V171)) ->  | AA171: =(0.4*0.85*Main!$G$546*'Pile Data'!X171*Y171+Main!$G$545*('Pile Data'!R171*S171+'Pile Data'!T171*U171+'Pile Data'!V171*W171)) -> 
O172: 167 | P172: 2.914699851 | Q172: 0 | V172: 0 | W172: 0 | X172: 0 | Z172: =ABS(0.4*0.85*Main!$G$546*'Pile Data'!X172+Main!$G$545*'Pile Data'!R172-Main!$G$545*('Pile Data'!T172+'Pile Data'!V172)) ->  | AA172: =(0.4*0.85*Main!$G$546*'Pile Data'!X172*Y172+Main!$G$545*('Pile Data'!R172*S172+'Pile Data'!T172*U172+'Pile Data'!V172*W172)) -> 
O173: 168 | P173: 2.932153143 | Q173: 0 | V173: 0 | W173: 0 | X173: 0 | Z173: =ABS(0.4*0.85*Main!$G$546*'Pile Data'!X173+Main!$G$545*'Pile Data'!R173-Main!$G$545*('Pile Data'!T173+'Pile Data'!V173)) ->  | AA173: =(0.4*0.85*Main!$G$546*'Pile Data'!X173*Y173+Main!$G$545*('Pile Data'!R173*S173+'Pile Data'!T173*U173+'Pile Data'!V173*W173)) -> 
O174: 169 | P174: 2.949606436 | Q174: 0 | V174: 0 | W174: 0 | X174: 0 | Z174: =ABS(0.4*0.85*Main!$G$546*'Pile Data'!X174+Main!$G$545*'Pile Data'!R174-Main!$G$545*('Pile Data'!T174+'Pile Data'!V174)) ->  | AA174: =(0.4*0.85*Main!$G$546*'Pile Data'!X174*Y174+Main!$G$545*('Pile Data'!R174*S174+'Pile Data'!T174*U174+'Pile Data'!V174*W174)) -> 
O175: 170 | P175: 2.967059728 | Q175: 0 | V175: 0 | W175: 0 | X175: 0 | Z175: =ABS(0.4*0.85*Main!$G$546*'Pile Data'!X175+Main!$G$545*'Pile Data'!R175-Main!$G$545*('Pile Data'!T175+'Pile Data'!V175)) ->  | AA175: =(0.4*0.85*Main!$G$546*'Pile Data'!X175*Y175+Main!$G$545*('Pile Data'!R175*S175+'Pile Data'!T175*U175+'Pile Data'!V175*W175)) -> 
O176: 171 | P176: 2.984513021 | Q176: 0 | V176: 0 | W176: 0 | X176: 0 | Z176: =ABS(0.4*0.85*Main!$G$546*'Pile Data'!X176+Main!$G$545*'Pile Data'!R176-Main!$G$545*('Pile Data'!T176+'Pile Data'!V176)) ->  | AA176: =(0.4*0.85*Main!$G$546*'Pile Data'!X176*Y176+Main!$G$545*('Pile Data'!R176*S176+'Pile Data'!T176*U176+'Pile Data'!V176*W176)) -> 
O177: 172 | P177: 3.001966313 | Q177: 0 | V177: 0 | W177: 0 | X177: 0 | Z177: =ABS(0.4*0.85*Main!$G$546*'Pile Data'!X177+Main!$G$545*'Pile Data'!R177-Main!$G$545*('Pile Data'!T177+'Pile Data'!V177)) ->  | AA177: =(0.4*0.85*Main!$G$546*'Pile Data'!X177*Y177+Main!$G$545*('Pile Data'!R177*S177+'Pile Data'!T177*U177+'Pile Data'!V177*W177)) -> 
O178: 173 | P178: 3.019419606 | Q178: 0 | V178: 0 | W178: 0 | X178: 0 | Z178: =ABS(0.4*0.85*Main!$G$546*'Pile Data'!X178+Main!$G$545*'Pile Data'!R178-Main!$G$545*('Pile Data'!T178+'Pile Data'!V178)) ->  | AA178: =(0.4*0.85*Main!$G$546*'Pile Data'!X178*Y178+Main!$G$545*('Pile Data'!R178*S178+'Pile Data'!T178*U178+'Pile Data'!V178*W178)) -> 
O179: 174 | P179: 3.036872898 | Q179: 0 | V179: 0 | W179: 0 | X179: 0 | Z179: =ABS(0.4*0.85*Main!$G$546*'Pile Data'!X179+Main!$G$545*'Pile Data'!R179-Main!$G$545*('Pile Data'!T179+'Pile Data'!V179)) ->  | AA179: =(0.4*0.85*Main!$G$546*'Pile Data'!X179*Y179+Main!$G$545*('Pile Data'!R179*S179+'Pile Data'!T179*U179+'Pile Data'!V179*W179)) -> 
O180: 175 | P180: 3.054326191 | Q180: 0 | V180: 0 | W180: 0 | X180: 0 | Z180: =ABS(0.4*0.85*Main!$G$546*'Pile Data'!X180+Main!$G$545*'Pile Data'!R180-Main!$G$545*('Pile Data'!T180+'Pile Data'!V180)) ->  | AA180: =(0.4*0.85*Main!$G$546*'Pile Data'!X180*Y180+Main!$G$545*('Pile Data'!R180*S180+'Pile Data'!T180*U180+'Pile Data'!V180*W180)) -> 
O181: 176 | P181: 3.071779484 | Q181: 0 | V181: 0 | W181: 0 | X181: 0 | Z181: =ABS(0.4*0.85*Main!$G$546*'Pile Data'!X181+Main!$G$545*'Pile Data'!R181-Main!$G$545*('Pile Data'!T181+'Pile Data'!V181)) ->  | AA181: =(0.4*0.85*Main!$G$546*'Pile Data'!X181*Y181+Main!$G$545*('Pile Data'!R181*S181+'Pile Data'!T181*U181+'Pile Data'!V181*W181)) -> 
O182: 177 | P182: 3.089232776 | Q182: 0 | V182: 0 | W182: 0 | X182: 0 | Z182: =ABS(0.4*0.85*Main!$G$546*'Pile Data'!X182+Main!$G$545*'Pile Data'!R182-Main!$G$545*('Pile Data'!T182+'Pile Data'!V182)) ->  | AA182: =(0.4*0.85*Main!$G$546*'Pile Data'!X182*Y182+Main!$G$545*('Pile Data'!R182*S182+'Pile Data'!T182*U182+'Pile Data'!V182*W182)) -> 
O183: 178 | P183: 3.106686069 | Q183: 0 | V183: 0 | W183: 0 | X183: 0 | Z183: =ABS(0.4*0.85*Main!$G$546*'Pile Data'!X183+Main!$G$545*'Pile Data'!R183-Main!$G$545*('Pile Data'!T183+'Pile Data'!V183)) ->  | AA183: =(0.4*0.85*Main!$G$546*'Pile Data'!X183*Y183+Main!$G$545*('Pile Data'!R183*S183+'Pile Data'!T183*U183+'Pile Data'!V183*W183)) -> 
O184: 179 | P184: 3.124139361 | Q184: 0 | V184: 0 | W184: 0 | X184: 0 | Z184: =ABS(0.4*0.85*Main!$G$546*'Pile Data'!X184+Main!$G$545*'Pile Data'!R184-Main!$G$545*('Pile Data'!T184+'Pile Data'!V184)) ->  | AA184: =(0.4*0.85*Main!$G$546*'Pile Data'!X184*Y184+Main!$G$545*('Pile Data'!R184*S184+'Pile Data'!T184*U184+'Pile Data'!V184*W184)) -> 
O185: 180 | P185: 3.141592654 | Q185: 0 | U185: 0 | V185: 0 | W185: 0 | X185: 0 | Z185: =ABS(0.4*0.85*Main!$G$546*'Pile Data'!X185+Main!$G$545*'Pile Data'!R185-Main!$G$545*('Pile Data'!T185+'Pile Data'!V185)) ->  | AA185: =(0.4*0.85*Main!$G$546*'Pile Data'!X185*Y185+Main!$G$545*('Pile Data'!R185*S185+'Pile Data'!T185*U185+'Pile Data'!V185*W185)) -> 
Z186: Plastic moment, Mp = | AA186: =VLOOKUP(MIN(Z5:Z185),mplastic,2,FALSE) ->  | AB186: k-in
B200: Full Pile Section and Dimensions with Fy = 36 ksi | I200: Slender Check - Flange | L200: Slender Check - Web | N200: Pile
B201: Designation | C201: Depth | D201: tw | E201: bf | F201: tf | G201: T | H201: b | I201: b / t | K201: b | L201: b / t | N201: Section | O201: Flange | V201: For Information Only
B202: English | C202: in | D202: in | E202: in | F202: in | G202: in | H202: in | I202: --- | J202: Slender? | K202: in | L202: --- | M202: Slender? | N202: Slender? | O202: Qs | V202: Iyy | W202: Syy | X202: ryy | Y202: Zyy
B203: HP14x117 | C203: 14.2 | D203: 0.805 | E203: 14.9 | F203: 0.805 | G203: 11.25 | H203: =E203/2 -> 7.45 | I203: =H203/F203 -> 9.254658385 | J203: =IF($I$217>I203,"No","Yes") -> No | K203: =G203 -> 11.25 | L203: =K203/D203 -> 13.97515528 | M203: =IF($L$217>L203,"No","Yes") -> No | N203: =IF(AND(J203="No",M203="No"),"No","Yes") -> No | O203: =IF(I203<=$I$217,1,IF(I203>1.03*($I$215/$I$216)^0.5,0.69*$I$215/$I$216/(I203^2),1.415-0.74*I203*($I$216/$I$215)^0.5)) -> 1 | V203: in4 | W203: in3 | X203: in | Y203: in3
B204: HP14x102 | C204: 14 | D204: 0.705 | E204: 14.8 | F204: 0.705 | G204: 11.25 | H204: 7.4 | I204: 10.4964539 | J204: No | K204: 11.25 | L204: 15.95744681 | M204: No | N204: No | O204: =IF(I204<=$I$217,1,IF(I204>1.03*($I$215/$I$216)^0.5,0.69*$I$215/$I$216/(I204^2),1.415-0.74*I204*($I$216/$I$215)^0.5)) -> 1 | V204: 443 | W204: 59.5 | X204: 3.59 | Y204: 91.4
B205: HP14x89 | C205: 13.8 | D205: 0.615 | E205: 14.7 | F205: 0.615 | G205: 11.25 | H205: 7.35 | I205: 11.95121951 | J205: No | K205: 11.25 | L205: 18.29268293 | M205: No | N205: No | O205: 1 | V205: 380 | W205: 51.4 | X205: 3.56 | Y205: 78.8
B206: HP14x73 | C206: 13.6 | D206: 0.505 | E206: 14.6 | F206: 0.505 | G206: 11.25 | H206: 7.3 | I206: 14.45544554 | J206: No | K206: 11.25 | L206: 22.27722772 | M206: No | N206: No | O206: 1 | V206: 326 | W206: 44.3 | X206: 3.53 | Y206: 67.7
B207: HP12x84 | C207: 12.3 | D207: 0.685 | E207: 12.3 | F207: 0.685 | G207: 9.5 | H207: 6.15 | I207: 8.97810219 | J207: No | K207: 9.5 | L207: 13.86861314 | M207: No | N207: No | O207: 1 | V207: 261 | W207: 35.8 | X207: 3.49 | Y207: 54.6
B208: HP12x74 | C208: 12.1 | D208: 0.605 | E208: 12.2 | F208: 0.61 | G208: 9.5 | H208: 6.1 | I208: 10 | J208: No | K208: 9.5 | L208: 15.70247934 | M208: No | N208: No | O208: 1 | V208: 213 | W208: 34.6 | X208: 2.94 | Y208: 53.2
B209: HP12x63 | C209: 11.9 | D209: 0.515 | E209: 12.1 | F209: 0.515 | G209: 9.5 | H209: 6.05 | I209: 11.74757282 | J209: No | K209: 9.5 | L209: 18.44660194 | M209: No | N209: No | O209: 1 | V209: 186 | W209: 30.4 | X209: 2.92 | Y209: 46.6
B210: HP12x53 | C210: 11.8 | D210: 0.435 | E210: 12 | F210: 0.435 | G210: 9.5 | H210: 6 | I210: 13.79310345 | J210: No | K210: 9.5 | L210: 21.83908046 | M210: No | N210: No | O210: 1 | V210: 153 | W210: 25.3 | X210: 2.88 | Y210: 38.7
B211: HP10x57 | C211: 9.99 | D211: 0.565 | E211: 10.2 | F211: 0.565 | G211: 7.5 | H211: 5.1 | I211: 9.026548673 | J211: No | K211: 7.5 | L211: 13.27433628 | M211: No | N211: No | O211: 1 | V211: 127 | W211: 21.1 | X211: 2.86 | Y211: 32.2
B212: HP10x42 | C212: 9.7 | D212: 0.415 | E212: 10.1 | F212: 0.42 | G212: 7.5 | H212: 5.05 | I212: 12.02380952 | J212: No | K212: 7.5 | L212: 18.07228916 | M212: No | N212: No | O212: 1 | V212: 101 | W212: 19.7 | X212: 2.45 | Y212: 30.3
B213: HP8x36 | C213: 8.02 | D213: 0.445 | E213: 8.16 | F213: 0.445 | G213: 5.75 | H213: 4.08 | I213: 9.168539326 | J213: No | K213: 5.75 | L213: 12.92134831 | M213: No | N213: No | O213: 1 | V213: 71.7 | W213: 14.2 | X213: 2.41 | Y213: 21.8
... 83 more rows

Sheet Sketch Data (hidden)
A1: length = | B1: =+length -> 0 | C1: ft | E1: 0 | F1: 0
A2: =IF(B2>0,"Curb-to-curb width","") ->  | B2: =+curbwidth -> 0 | C2: ft | E2: =+B1 -> 0 | F2: 0
A3: out-to-out width = | B3: =+width -> 0 | C3: ft | E3: =+B1+E4 ->  | F3: =+F4 -> 0
A4: skew = | B4: =+skew -> 0 | C4: degrees | E4: =+B3/TAN(B4*PI()/180) ->  | F4: =+B3 -> 0
A5: =+"skew = "&B4&" degrees" -> skew = 0 degrees | E5: 0 | F5: 0
A6: =+"= "&B1&" ft" -> = 0 ft
A7: =IF(B2>0,"= "&B2&" ft","") ->  | E7: =IF(B2>0,(B3-B2)/2/TAN(B4*PI()/180),NA()) ->  | F7: =+(B3-B2)/2 -> 0
A8: =+"= "&B3&" ft" -> = 0 ft | E8: =IF(B2>0,E7+B1,NA()) ->  | F8: =+F7 -> 0
E10: =+E11+B1 ->  | F10: =+F11 -> 0
E11: =+E4-E7 ->  | F11: =+F4-F7 -> 0
E13: =+E16+E25/20 ->  | F13: =+F16+F26/20 -> 0
E14: =+E16 ->  | F14: =+F16 -> 0
E15: =+E14+E25/20 ->  | F15: =+F16-F26/20 -> 0
E16: =+B3*3/4/TAN(B4*PI()/180) ->  | F16: =+B3*3/4 -> 0
E17: =+E16+B1 ->  | F17: =+F16 -> 0
E18: =+E17-E25/20 ->  | F18: =+F17+F26/20 -> 0
E19: =+E17 ->  | F19: =+F17 -> 0
E20: =+E17-E25/20 ->  | F20: =+F17-F26/20 -> 0
E22: =IF(B2>0,E25-E25/20,NA()) ->  | F22: =+F25+F26/20 -> 0
E23: =IF(B2>0,E25,NA()) ->  | F23: =+F25 -> 0
E24: =+E23+E25/20 ->  | F24: =+F25+F26/20 -> 0
E25: =+B1*2/3 -> 0 | F25: =+F7 -> 0
E26: =IF(B2>0,E25,NA()) ->  | F26: =+F4-F7 -> 0
E27: =IF(B2>0,E26-E25/20,NA()) ->  | F27: =+F26-F26/20 -> 0
E28: =IF(B2>0,E26,NA()) ->  | F28: =+F26 -> 0
E29: =+E26+E25/20 ->  | F29: =+F26-F26/20 -> 0
E31: =+E34-E25/20 -> 0 | F31: =+F34+F26/20 -> 0
E32: =+E34 -> 0 | F32: =+F34 -> 0
E33: =+E32+E25/20 -> 0 | F33: =+F34+F26/20 -> 0
E34: =+B1*5/6 -> 0 | F34: 0
E35: =+E34 -> 0 | F35: =+B3 -> 0
E36: =+E35-E25/20 -> 0 | F36: =+F35-F26/20 -> 0
E37: =+E35 -> 0 | F37: =+F35 -> 0
E38: =+E35+E25/20 -> 0 | F38: =+F35-F26/20 -> 0
E40: =+E41+E25/20 ->  | F40: =+F41-F26/20 -> 0
E41: =+B3*2/5/TAN(B4*PI()/180) ->  | F41: =+B3*2/5 -> 0
E42: =E40 ->  | F42: =+F41+F26/20 -> 0
E43: =+E41 ->  | F43: =F41 -> 0
E44: =E43+E2/10 ->  | F44: =F43 -> 0
E46: =E40+$E$2 ->  | F46: =F40 -> 0
E47: =E41+$E$2 ->  | F47: =F41 -> 0
E48: =E42+$E$2 ->  | F48: =F42 -> 0
E49: =E43+$E$2 ->  | F49: =F43 -> 0
E50: =E44+$E$2 ->  | F50: =F44 -> 0
E52: =+E35-E25/50 -> 0 | F52: =+F35 -> 0
E53: =IF(E4-E25/50<E35,NA(),E4-E25/50) ->  | F53: =IF(E4-E25/50<E35,NA(),F4) -> 
E55: =+E26-E25/50 ->  | F55: =+F26 -> 0
E56: =IF(E11-E25/50<E26,NA(),E11-E25/50) ->  | F56: =IF(E11-E25/50<E26,NA(),F11) -> 
A58: Bridge Cross-section
A60: Deck cross-section data
B61: out-to-out width = | C61: =+B3*12 -> 0 | D61: in | E61: 0 | F61: 0
B62: abutment width = | C62: =IF(Main!H240="D",'Sketch Data'!C61+2*14,'Sketch Data'!C61) -> 0 | D62: in | E62: =+C61/2-C63 -> -20.25 | F62: 0 | G62: Barrier Points
B63: assumed parapet width = | C63: 20.25 | D63: in | E63: =+E62 -> -20.25 | F63: 3
B64: deck depth = | C64: =+Main!G128 -> 0 | D64: in | E64: =+E63+4.875 -> -15.375 | F64: 10
A65: Girder data | E65: =+E64+3.375 -> -12 | F65: 42
B66: type of girder = | C66: =+girdertype -> 0 | E66: =+C61/2 -> 0 | F66: 42
B67: girder material = | C67: =+Main!G33 -> 0 | E67: =+E66 -> 0 | F67: =-C64 -> 0
B68: number of girders = | C68: =+ngirder -> 0 | E68: =-E67 -> 0 | F68: =+F67 -> 0
B69: girder spacing = | C69: =+Main!G117*12 -> 0 | D69: in | E69: =-E66 -> 0 | F69: =+F66 -> 42
B70: depth of girders = | C70: =+Main!G122*12 -> 0 | D70: in | E70: =-E65 -> 12 | F70: =+F65 -> 42
B71: width of girders = | C71: =+Main!G119*12 -> 0 | D71: in | E71: =-E64 -> 15.375 | F71: =+F64 -> 10
B72: origin = | C72: =IF(ODD(C68)/C68=1,0,C69/2) ->  | D72: in | E72: =-E63 -> 20.25 | F72: =+F63 -> 3
A73: Pile data | E73: =-E62 -> 20.25 | F73: =+F62 -> 0
B74: number of piles = | C74: =+Main!G566 -> 0 | E74: =+E61 -> 0 | F74: =+F61 -> 0
B75: pile spacing = | C75: =+Main!H596*12 -> 0 | D75: in
B76: width of piles = | C76: =+pilewidth -> 0 | D76: in | E76: =+C62/2 -> 0 | F76: =+F67 -> 0 | G76: Abutment Corners
B77: origin = | C77: =IF(ODD(C74)/C74=1,0,C75/2) ->  | D77: in | E77: =+E76 -> 0 | F77: =+F76-C70-39 -> -39
E78: =-E77 -> 0 | F78: =+F77 -> -39
A79: ="Girder Spacing = "&FIXED(C69/12,3)&" ft (TYP)" -> Girder Spacing = 0.000 ft (TYP) | E79: =+E78 -> 0 | F79: =+F76 -> 0
A80: ="Pile Spacing = "&FIXED(pilespacing,3)&" ft (TYP)" -> Pile Spacing = 0.000 ft (TYP) | E80: =+E76 -> 0 | F80: =+F76 -> 0
E82: =+E76-3 -> -3 | F82: =+F76-C70-6 -> -6 | G82: Rebar
E83: =E82/2 -> -1.5 | F83: =+F82 -> -6
E84: =+E78+3 -> 3 | F84: =+F82 -> -6
E86: =+E82 -> -3 | F86: =+F77+4 -> -35 | G86: Rebar
E87: =E86/2 -> -1.5 | F87: =+F86 -> -35
E88: =+E84 -> 3 | F88: =+F86 -> -35
E90: =+origin ->  | F90: 2 | G90: Girder Spacing Dimension Lines
E91: =+E90 ->  | F91: =+F90+20 -> 22
E93: =+E91 ->  | F93: =+F91-2*F90 -> 18 | G93: Girder Spacing Dimension Lines
E94: =+E93-C69 ->  | F94: =+F93 -> 18
E96: =+E94 ->  | F96: =+F90 -> 2 | G96: Girder Spacing Dimension Lines
E97: =+E96 ->  | F97: =+F91 -> 22
E99: =+E100-F90*2 ->  | F99: =+F100+F90*2 -> 22 | G99: Girder Spacing Dimension Lines
E100: =+E93 ->  | F100: =+F93 -> 18
E101: =+E99 ->  | F101: =+F100-F90*2 -> 14
E102: 2
E103: =+E104+F90*2 ->  | F103: =+F104+F90*2 -> 22 | G103: Girder Spacing Dimension Lines
E104: =+E94 ->  | F104: =+F94 -> 18
E105: =+E103 ->  | F105: =+F104-F90*2 -> 14
E107: =+origin2 ->  | F107: =+F534-3 -> -102 | G107: Pile Spacing Dimension Lines
E108: =+E107 ->  | F108: =+F107-20 -> -122
E110: =+origin2 ->  | F110: =+F108+F96*2 -> -118 | G110: Pile Spacing Dimension Lines
E111: =+E110-C75 ->  | F111: =+F110 -> -118
E113: =+E111 ->  | F113: =+F107 -> -102 | G113: Pile Spacing Dimension Lines
E114: =+E113 ->  | F114: =+F108 -> -122
E116: =+E117-F96*2 ->  | F116: =+F117+F96*2 -> -114 | G116: Pile Spacing Dimension Lines
E117: =+E110 ->  | F117: =+F110 -> -118
E118: =+E116 ->  | F118: =+F117-F96*2 -> -122
E120: =+E121+F96*2 ->  | F120: =+F121+F96*2 -> -114 | G120: Pile Spacing Dimension Lines
E121: =+E111 ->  | F121: =+F111 -> -118
E122: =+E120 ->  | F122: =+F121-F96*2 -> -122
E124: =E83 -> -1.5 | F124: =F83 -> -6 | G124: Rebar Dimension Lines
E125: =+E124*1.2 -> -1.8 | F125: =+F128 -> -133
E127: =E87 -> -1.5 | F127: =F87 -> -35 | G127: Rebar Dimension Lines
E128: =+E125 -> -1.8 | F128: =F127-98 -> -133
E129: =+E128+20 -> 18.2 | F129: =+F128 -> -133
E131: =+origin2 ->  | F131: =+F108-20 -> -142 | G131: ?
E133: =IF($C$66="I",IF($C$67="S",origin+C71/2,origin+C71/3),origin+C71/2) ->  | F133: =IF($C$66="I",IF($C$67="S",-C64,-C64),-C64) -> 0 | G133: Girder Points
E134: =IF($C$66="I",IF($C$67="S",+E133,+E133),+E133) ->  | F134: =IF($C$66="I",IF($C$67="S",+F133-C70/20,+F133-C70/10),+F133-C70) -> 0
E135: =IF($C$66="I",IF($C$67="S",+origin+C70/20,+origin+C70/20),origin-C71/2) ->  | F135: =IF($C$66="I",IF($C$67="S",+F134,+F134-C70/10),+F134) -> 0
E136: =IF($C$66="I",IF($C$67="S",+E135,+E135),+E135) ->  | F136: =IF($C$66="I",IF($C$67="S",+F133-C70+C70/20,+F133-C70+C70/3),+F133) -> 0
E137: =IF($C$66="I",IF($C$67="S",+E134,+origin+C71/2),+E133) ->  | F137: =IF($C$66="I",IF($C$67="S",+F136,+F136-C70/6),F133) -> 0
E139: =IF($C$66="I",IF($C$67="S",+E133,+E137),origin+C71/2-5-3) ->  | F139: =IF($C$66="I",IF($C$67="S",+F137,+F137),-C64-3) -> -3 | G139: Girder Points
E140: =IF($C$66="I",IF($C$67="S",+E133,+E137),origin+C71/2-5) ->  | F140: =IF($C$66="I",IF($C$67="S",+F137-C70/20,+F133-C70),-C64-3-3) -> -6
E141: =IF($C$66="I",IF($C$67="S",origin-C71/2,origin-C71/2),+E140) ->  | F141: =IF($C$66="I",IF($C$67="S",+F140,+F140),-C64-C70+5.5+3) -> 8.5
E142: =IF($C$66="I",IF($C$67="S",+E141,+E141),E139) ->  | F142: =IF($C$66="I",IF($C$67="S",+F137,+F137),+F141-3) -> 5.5
E143: =IF($C$66="I",IF($C$67="S",+origin-C70/20,+origin-C70/20),origin-C71/2+5+3) ->  | F143: =IF($C$66="I",IF($C$67="S",+F136,+F136),+F142) -> 5.5
E144: =IF($C$66="I",IF($C$67="S",+E143,+E143),+E143-3) ->  | F144: =IF($C$66="I",IF($C$67="S",+F135,+F135),+F141) -> 8.5
E145: =IF($C$66="I",IF($C$67="S",+E142,+origin-C71/3),+E144) ->  | F145: =IF($C$66="I",IF($C$67="S",+F134,+F134),+F140) -> -6
E146: =IF($C$66="I",IF($C$67="S",+E141,+E145),+E145+3) ->  | F146: =IF($C$66="I",IF($C$67="S",+F133,+F133),+F139) -> -3
E147: =IF($C$66="I",IF($C$67="S",+E133,+E133),+E139) ->  | F147: =IF($C$66="I",IF($C$67="S",+F133,+F133),+F139) -> -3
E149: =IF($C$68>=2,E133-$C$69,NA()) ->  | F149: =IF($C$68>=2,F133,NA()) ->  | G149: Girder Points
E150: =IF($C$68>=2,E134-$C$69,NA()) ->  | F150: =IF($C$68>=2,F134,NA()) -> 
E151: =IF($C$68>=2,E135-$C$69,NA()) ->  | F151: =IF($C$68>=2,F135,NA()) -> 
E152: =IF($C$68>=2,E136-$C$69,NA()) ->  | F152: =IF($C$68>=2,F136,NA()) -> 
E153: =IF($C$68>=2,E137-$C$69,NA()) ->  | F153: =IF($C$68>=2,F137,NA()) -> 
E155: =IF($C$68>=2,E139-$C$69,NA()) ->  | F155: =IF($C$68>=2,F139,NA()) ->  | G155: Girder Points
E165: =IF($C$68>=3,E133+$C$69,NA()) ->  | F165: =IF($C$68>=3,F133,NA()) ->  | G165: Girder Points
E166: =IF($C$68>=3,E134+$C$69,NA()) ->  | F166: =IF($C$68>=3,F134,NA()) -> 
E167: =IF($C$68>=3,E135+$C$69,NA()) ->  | F167: =IF($C$68>=3,F135,NA()) -> 
E168: =IF($C$68>=3,E136+$C$69,NA()) ->  | F168: =IF($C$68>=3,F136,NA()) -> 
E169: =IF($C$68>=3,E137+$C$69,NA()) ->  | F169: =IF($C$68>=3,F137,NA()) -> 
E171: =IF($C$68>=3,E139+$C$69,NA()) ->  | F171: =IF($C$68>=3,F139,NA()) ->  | G171: Girder Points
E181: =IF($C$68>=4,E133-2*$C$69,NA()) ->  | F181: =IF($C$68>=4,F133,NA()) ->  | G181: Girder Points
E182: =IF($C$68>=4,E134-2*$C$69,NA()) ->  | F182: =IF($C$68>=4,F134,NA()) -> 
E183: =IF($C$68>=4,E135-2*$C$69,NA()) ->  | F183: =IF($C$68>=4,F135,NA()) -> 
E184: =IF($C$68>=4,E136-2*$C$69,NA()) ->  | F184: =IF($C$68>=4,F136,NA()) -> 
E185: =IF($C$68>=4,E137-2*$C$69,NA()) ->  | F185: =IF($C$68>=4,F137,NA()) -> 
E187: =IF($C$68>=4,E139-2*$C$69,NA()) ->  | F187: =IF($C$68>=4,F139,NA()) ->  | G187: Girder Points
E197: =IF($C$68>=5,E133+2*$C$69,NA()) ->  | F197: =IF($C$68>=5,F133,NA()) ->  | G197: Girder Points
E198: =IF($C$68>=5,E134+2*$C$69,NA()) ->  | F198: =IF($C$68>=5,F134,NA()) -> 
E199: =IF($C$68>=5,E135+2*$C$69,NA()) ->  | F199: =IF($C$68>=5,F135,NA()) -> 
E200: =IF($C$68>=5,E136+2*$C$69,NA()) ->  | F200: =IF($C$68>=5,F136,NA()) -> 
E201: =IF($C$68>=5,E137+2*$C$69,NA()) ->  | F201: =IF($C$68>=5,F137,NA()) -> 
E203: =IF($C$68>=5,E139+2*$C$69,NA()) ->  | F203: =IF($C$68>=5,F139,NA()) ->  | G203: Girder Points
E213: =IF($C$68>=6,E133-3*$C$69,NA()) ->  | F213: =IF($C$68>=6,F133,NA()) ->  | G213: Girder Points
E214: =IF($C$68>=6,E134-3*$C$69,NA()) ->  | F214: =IF($C$68>=6,F134,NA()) -> 
E215: =IF($C$68>=6,E135-3*$C$69,NA()) ->  | F215: =IF($C$68>=6,F135,NA()) -> 
E216: =IF($C$68>=6,E136-3*$C$69,NA()) ->  | F216: =IF($C$68>=6,F136,NA()) -> 
E217: =IF($C$68>=6,E137-3*$C$69,NA()) ->  | F217: =IF($C$68>=6,F137,NA()) -> 
E219: =IF($C$68>=6,E139-3*$C$69,NA()) ->  | F219: =IF($C$68>=6,F139,NA()) ->  | G219: Girder Points
E229: =IF($C$68>=7,E133+3*$C$69,NA()) ->  | F229: =IF($C$68>=7,F133,NA()) ->  | G229: Girder Points
E230: =IF($C$68>=7,E134+3*$C$69,NA()) ->  | F230: =IF($C$68>=7,F134,NA()) -> 
E231: =IF($C$68>=7,E135+3*$C$69,NA()) ->  | F231: =IF($C$68>=7,F135,NA()) -> 
E232: =IF($C$68>=7,E136+3*$C$69,NA()) ->  | F232: =IF($C$68>=7,F136,NA()) -> 
E233: =IF($C$68>=7,E137+3*$C$69,NA()) ->  | F233: =IF($C$68>=7,F137,NA()) -> 
E235: =IF($C$68>=7,E139+3*$C$69,NA()) ->  | F235: =IF($C$68>=7,F139,NA()) ->  | G235: Girder Points
E245: =IF($C$68>=8,E133-4*$C$69,NA()) ->  | F245: =IF($C$68>=8,F133,NA()) ->  | G245: Girder Points
E246: =IF($C$68>=8,E134-4*$C$69,NA()) ->  | F246: =IF($C$68>=8,F134,NA()) -> 
E247: =IF($C$68>=8,E135-4*$C$69,NA()) ->  | F247: =IF($C$68>=8,F135,NA()) -> 
E248: =IF($C$68>=8,E136-4*$C$69,NA()) ->  | F248: =IF($C$68>=8,F136,NA()) -> 
E249: =IF($C$68>=8,E137-4*$C$69,NA()) ->  | F249: =IF($C$68>=8,F137,NA()) -> 
E251: =IF($C$68>=8,E139-4*$C$69,NA()) ->  | F251: =IF($C$68>=8,F139,NA()) ->  | G251: Girder Points
E261: =IF($C$68>=9,E133+4*$C$69,NA()) ->  | F261: =IF($C$68>=9,F133,NA()) ->  | G261: Girder Points
E262: =IF($C$68>=9,E134+4*$C$69,NA()) ->  | F262: =IF($C$68>=9,F134,NA()) -> 
E263: =IF($C$68>=9,E135+4*$C$69,NA()) ->  | F263: =IF($C$68>=9,F135,NA()) -> 
E264: =IF($C$68>=9,E136+4*$C$69,NA()) ->  | F264: =IF($C$68>=9,F136,NA()) -> 
E265: =IF($C$68>=9,E137+4*$C$69,NA()) ->  | F265: =IF($C$68>=9,F137,NA()) -> 
E267: =IF($C$68>=9,E139+4*$C$69,NA()) ->  | F267: =IF($C$68>=9,F139,NA()) ->  | G267: Girder Points
E277: =IF($C$68>=10,E133-5*$C$69,NA()) ->  | F277: =IF($C$68>=10,F133,NA()) ->  | G277: Girder Points
E278: =IF($C$68>=10,E134-5*$C$69,NA()) ->  | F278: =IF($C$68>=10,F134,NA()) -> 
E279: =IF($C$68>=10,E135-5*$C$69,NA()) ->  | F279: =IF($C$68>=10,F135,NA()) -> 
E280: =IF($C$68>=10,E136-5*$C$69,NA()) ->  | F280: =IF($C$68>=10,F136,NA()) -> 
E281: =IF($C$68>=10,E137-5*$C$69,NA()) ->  | F281: =IF($C$68>=10,F137,NA()) -> 
E283: =IF($C$68>=10,E139-5*$C$69,NA()) ->  | F283: =IF($C$68>=10,F139,NA()) ->  | G283: Girder Points
E293: =IF($C$68>=11,E133+5*$C$69,NA()) ->  | F293: =IF($C$68>=11,F133,NA()) ->  | G293: Girder Points
E294: =IF($C$68>=11,E134+5*$C$69,NA()) ->  | F294: =IF($C$68>=11,F134,NA()) -> 
E295: =IF($C$68>=11,E135+5*$C$69,NA()) ->  | F295: =IF($C$68>=11,F135,NA()) -> 
E296: =IF($C$68>=11,E136+5*$C$69,NA()) ->  | F296: =IF($C$68>=11,F136,NA()) -> 
E297: =IF($C$68>=11,E137+5*$C$69,NA()) ->  | F297: =IF($C$68>=11,F137,NA()) -> 
E299: =IF($C$68>=11,E139+5*$C$69,NA()) ->  | F299: =IF($C$68>=11,F139,NA()) ->  | G299: Girder Points
E309: =IF($C$68>=12,E133-6*$C$69,NA()) ->  | F309: =IF($C$68>=12,F133,NA()) ->  | G309: Girder Points
E310: =IF($C$68>=12,E134-6*$C$69,NA()) ->  | F310: =IF($C$68>=12,F134,NA()) -> 
E311: =IF($C$68>=12,E135-6*$C$69,NA()) ->  | F311: =IF($C$68>=12,F135,NA()) -> 
E312: =IF($C$68>=12,E136-6*$C$69,NA()) ->  | F312: =IF($C$68>=12,F136,NA()) -> 
E313: =IF($C$68>=12,E137-6*$C$69,NA()) ->  | F313: =IF($C$68>=12,F137,NA()) -> 
E315: =IF($C$68>=12,E139-6*$C$69,NA()) ->  | F315: =IF($C$68>=12,F139,NA()) ->  | G315: Girder Points
E325: =IF($C$68>=13,E133+6*$C$69,NA()) ->  | F325: =IF($C$68>=13,F133,NA()) ->  | G325: Girder Points
E326: =IF($C$68>=13,E134+6*$C$69,NA()) ->  | F326: =IF($C$68>=13,F134,NA()) -> 
E327: =IF($C$68>=13,E135+6*$C$69,NA()) ->  | F327: =IF($C$68>=13,F135,NA()) -> 
E328: =IF($C$68>=13,E136+6*$C$69,NA()) ->  | F328: =IF($C$68>=13,F136,NA()) -> 
E329: =IF($C$68>=13,E137+6*$C$69,NA()) ->  | F329: =IF($C$68>=13,F137,NA()) -> 
E331: =IF($C$68>=13,E139+6*$C$69,NA()) ->  | F331: =IF($C$68>=13,F139,NA()) ->  | G331: Girder Points
E341: =IF($C$68>=14,E133-7*$C$69,NA()) ->  | F341: =IF($C$68>=14,F133,NA()) ->  | G341: Girder Points
E342: =IF($C$68>=14,E134-7*$C$69,NA()) ->  | F342: =IF($C$68>=14,F134,NA()) -> 
E343: =IF($C$68>=14,E135-7*$C$69,NA()) ->  | F343: =IF($C$68>=14,F135,NA()) -> 
E344: =IF($C$68>=14,E136-7*$C$69,NA()) ->  | F344: =IF($C$68>=14,F136,NA()) -> 
E345: =IF($C$68>=14,E137-7*$C$69,NA()) ->  | F345: =IF($C$68>=14,F137,NA()) -> 
E347: =IF($C$68>=14,E139-7*$C$69,NA()) ->  | F347: =IF($C$68>=14,F139,NA()) ->  | G347: Girder Points
E357: =IF($C$68>=15,E133+7*$C$69,NA()) ->  | F357: =IF($C$68>=15,F133,NA()) ->  | G357: Girder Points
... 220 more rows
